NUMERO_MANDATO;RIGA_MANDATO;QUIET;IMPORTO_RIGA;IMPORTO_MANDATO;BENEFICIARIO;CIG;TITOLO_PAGAMENTO;DATA_MANDATO;CAPITOLO;ARTICOLO;NUMERO_IMPEGNO;TITOLO;DESCR_TITOLO;LIVELLO_II;DESCR_LIVELLO_II;LIVELLO_III;DESCR_LIVELLO_III;LIVELLO_IV;DESCR_LIVELLO_IV;LIVELLO_V;DESCR_LIVELLO_V;DATA_PAG_EFF;
1640;1;0;"63,01";"63,01";CIVIS SPA;Z5D21A9503;SALDO Fatt.n. V9/0001558  del 02/06/2018 SERVIZIO VIGILANZA P.ZZA MATTEOTTI 10;02-07-2018;370;0;73;1;Spese correnti;3;Acquisto di beni e servizi;2;Acquisto di servizi;13;Servizi ausiliari per il funzionamento dell'ente;1;"Servizi di sorveglianza, custodia e accoglienza";02-07-2018;
1641;1;0;"37,81";"37,81";CIVIS SPA;Z5D21A9503;SALDO Fatt.n. V9/0001559  del 02/06/2018 SERVIZIO ISPETTIVO VIA VOLTA;02-07-2018;370;0;73;1;Spese correnti;3;Acquisto di beni e servizi;2;Acquisto di servizi;13;Servizi ausiliari per il funzionamento dell'ente;1;"Servizi di sorveglianza, custodia e accoglienza";02-07-2018;
1642;1;0;"155,55";"155,55";GIORNI NUOVI SOCIETA' COOP. SOCIALE DI SOLIDARIETA';ZE4225CDE5;SALDO Fatt.n. 2/73  del 31/05/2018 SERVIZIO PULIZIA SALETTA RIUNIONI;02-07-2018;932;0;239;1;Spese correnti;3;Acquisto di beni e servizi;2;Acquisto di servizi;99;Altri servizi;999;Altri servizi diversi n.a.c.;02-07-2018;
1643;1;0;"2.148,20";"2.148,20";GIORNI NUOVI SOCIETA' COOP. SOCIALE DI SOLIDARIETA';67802821B6;ACCONTO Fatt.n. 2/71  del 31/05/2018 SERVIZIO PULIZIA SEDE COMUNALE E VARIE;02-07-2018;259;5;547;1;Spese correnti;3;Acquisto di beni e servizi;2;Acquisto di servizi;13;Servizi ausiliari per il funzionamento dell'ente;2;Servizi di pulizia e lavanderia;02-07-2018;
1644;1;0;"1.224,07";"1.224,07";GIORNI NUOVI SOCIETA' COOP. SOCIALE DI SOLIDARIETA';67802821B6;ACCONTO Fatt.n. 2/71  del 31/05/2018 SERVIZIO PULIZIA SEDE COMUNALE E VARIE;02-07-2018;1810;3;548;1;Spese correnti;3;Acquisto di beni e servizi;2;Acquisto di servizi;13;Servizi ausiliari per il funzionamento dell'ente;2;Servizi di pulizia e lavanderia;02-07-2018;
1645;1;0;"207,95";"207,95";GIORNI NUOVI SOCIETA' COOP. SOCIALE DI SOLIDARIETA';67802821B6;ACCONTO Fatt.n. 2/71  del 31/05/2018 SERVIZIO PULIZIA SEDE COMUNALE E VARIE;02-07-2018;1285;0;549;1;Spese correnti;3;Acquisto di beni e servizi;2;Acquisto di servizi;13;Servizi ausiliari per il funzionamento dell'ente;2;Servizi di pulizia e lavanderia;02-07-2018;
1646;1;0;"499,83";"499,83";GIORNI NUOVI SOCIETA' COOP. SOCIALE DI SOLIDARIETA';67802821B6;ACCONTO Fatt.n. 2/71  del 31/05/2018 SERVIZIO PULIZIA SEDE COMUNALE E VARIE;02-07-2018;1565;0;550;1;Spese correnti;3;Acquisto di beni e servizi;2;Acquisto di servizi;13;Servizi ausiliari per il funzionamento dell'ente;2;Servizi di pulizia e lavanderia;02-07-2018;
1647;1;0;"414,69";"414,69";GIORNI NUOVI SOCIETA' COOP. SOCIALE DI SOLIDARIETA';67802821B6;SALDO Fatt.n. 2/71  del 31/05/2018 SERVIZIO PULIZIA SEDE COMUNALE E VARIE;02-07-2018;3147;1;551;1;Spese correnti;3;Acquisto di beni e servizi;2;Acquisto di servizi;13;Servizi ausiliari per il funzionamento dell'ente;2;Servizi di pulizia e lavanderia;02-07-2018;
1648;1;0;"178,36";"178,36";GIORNI NUOVI SOCIETA' COOP. SOCIALE DI SOLIDARIETA';ZA71DBB6F4;SALDO Fatt.n. 2/72  del 31/05/2018 SERVIZIO PULIZIE BAGNI CIMITERO;02-07-2018;259;5;269;1;Spese correnti;3;Acquisto di beni e servizi;2;Acquisto di servizi;13;Servizi ausiliari per il funzionamento dell'ente;2;Servizi di pulizia e lavanderia;02-07-2018;
1649;1;0;"270,00";"270,00";CENTRO STUDI AMMINISTRATIVI DELLA MARCA TREVIGIANA; ;SALDO Fatt.n. 139/2018  del 07/06/2018 CORSO DI FORMAZIONE IN HOUSE;02-07-2018;150;0;350;1;Spese correnti;3;Acquisto di beni e servizi;2;Acquisto di servizi;4;Acquisto di servizi per formazione e addestramento del personale dell'ente;999;Acquisto di servizi per altre spese per formazione e addestramento n.a.c.;02-07-2018;
1650;1;0;"180,00";"180,00";A.N.U.S.C.A. SRL;NO;SALDO Fatt.n. 1059E  del 18/06/2018 PARTECIPAZIONE CORSI DI AGGIORNAMENTO;02-07-2018;150;0;390;1;Spese correnti;3;Acquisto di beni e servizi;2;Acquisto di servizi;4;Acquisto di servizi per formazione e addestramento del personale dell'ente;999;Acquisto di servizi per altre spese per formazione e addestramento n.a.c.;02-07-2018;
1651;1;0;"454,38";"454,38";CASA DI RIPOSO DI DUEVILLE; ;SALDO Fatt.n. 45/VH  del 31/05/2018 RETTE OSPITI MESE MAGGIO 2018;02-07-2018;3201;0;154;1;Spese correnti;3;Acquisto di beni e servizi;2;Acquisto di servizi;15;Contratti di servizio pubblico;8;Contratti di servizio di assistenza sociale residenziale e semiresidenziale;02-07-2018;
1652;1;0;"2.196,00";"2.196,00";MAGGIOLI SPA;ZA3233AB52;SALDO Fatt.n. 0002126298  del 15/06/2018 MUNICIPIUM TRIENNALE - I ANNUALITA';02-07-2018;340;0;355;1;Spese correnti;3;Acquisto di beni e servizi;2;Acquisto di servizi;19;Servizi informatici e di telecomunicazioni;5;Servizi per i sistemi e relativa manutenzione;02-07-2018;
1653;1;0;"1.409,10";"1.409,10";BIOCONTROL SRL;Z79219890C;SALDO Fatt.n. 2/29  del 31/05/2018 ANTILARVALE ZANZARE;02-07-2018;2000;0;61;1;Spese correnti;3;Acquisto di beni e servizi;2;Acquisto di servizi;99;Altri servizi;999;Altri servizi diversi n.a.c.;02-07-2018;
1654;1;0;"2.340,00";"2.340,00";SERENISSIMA RISTORAZIONE S.P.A.;6996960A0B;SALDO Fatt.n. 03317/4  del 31/05/2018 GESTIONE MENSA SCOLASTICA MESE DI MAGGIO 2018;02-07-2018;1425;0;603;1;Spese correnti;3;Acquisto di beni e servizi;2;Acquisto di servizi;14;Servizi di ristorazione;999;Altri servizi di ristorazione;02-07-2018;
1655;1;0;"4.029,64";"4.029,64";MARGHERITA SOC. COOP. SOCIALE ONLUS;5342930550;SALDO Fatt.n. 117/E  del 31/05/2018 SERVIZIO DI ASSISTENZA DOMICILIARE MESE DI MAGGIO 2018;02-07-2018;3140;0;611;1;Spese correnti;3;Acquisto di beni e servizi;2;Acquisto di servizi;99;Altri servizi;999;Altri servizi diversi n.a.c.;02-07-2018;
1656;1;0;"378,00";"378,00";MARGHERITA SOC. COOP. SOCIALE ONLUS;5342930550;SALDO Fatt.n. 118/E  del 31/05/2018 PROGETTO OASI DEL MESE DI MAGGIO 2018;02-07-2018;3140;0;611;1;Spese correnti;3;Acquisto di beni e servizi;2;Acquisto di servizi;99;Altri servizi;999;Altri servizi diversi n.a.c.;02-07-2018;
1657;1;0;"857,33";"857,33";MARGHERITA SOC. COOP. SOCIALE ONLUS;Z2421EC016;SALDO Fatt.n. 119/E  del 31/05/2018 SERVIZIO DI SOSTEGNO SOCIO EDUCATIVO DEL MESE DI MAGGIO 2018/TUTOR;02-07-2018;2741;0;249;1;Spese correnti;3;Acquisto di beni e servizi;2;Acquisto di servizi;99;Altri servizi;999;Altri servizi diversi n.a.c.;02-07-2018;
1658;1;0;"821,60";"821,60";IPAB di VICENZA; ;SALDO Fatt.n. 85/E  del 31/05/2018 RETTE OSPITI MESE MAGGIO 2018;02-07-2018;3201;0;152;1;Spese correnti;3;Acquisto di beni e servizi;2;Acquisto di servizi;15;Contratti di servizio pubblico;8;Contratti di servizio di assistenza sociale residenziale e semiresidenziale;02-07-2018;
1659;1;0;"1.550,00";"1.550,00";I.P.A.B. SUOR DIODATA BERTOLO; ;SALDO Fatt.n. 90/E  del 13/06/2018 SERVIZI VARI OSPITI CASA DI RIPOSO;02-07-2018;3201;0;151;1;Spese correnti;3;Acquisto di beni e servizi;2;Acquisto di servizi;15;Contratti di servizio pubblico;8;Contratti di servizio di assistenza sociale residenziale e semiresidenziale;02-07-2018;
1660;1;0;"547,25";"547,25";I.P.A.B. SUOR DIODATA BERTOLO; ;SALDO Fatt.n. 92/E  del 14/06/2018 SERVIZI VARI OSPITI CASA DI RIPOSO;02-07-2018;3201;0;151;1;Spese correnti;3;Acquisto di beni e servizi;2;Acquisto di servizi;15;Contratti di servizio pubblico;8;Contratti di servizio di assistenza sociale residenziale e semiresidenziale;02-07-2018;
1661;1;0;"766,16";"766,16";GARDEN FIORI E FOGLIE SOLUTION di De Pretto S.;ZEF23ED548;ACCONTO Fatt.n. 000014-2018-PA  del 20/06/2018  POTATURA SIEPE LUNGO PISTA CICLABILE VIA PIAVE E SPOSTAMENTO E POTATURA DI ALCUNE PIANTE ALL'INTERNO DEL TERRITORIO COMUNALE;02-07-2018;3343;0;508;1;Spese correnti;3;Acquisto di beni e servizi;2;Acquisto di servizi;99;Altri servizi;999;Altri servizi diversi n.a.c.;02-07-2018;
1662;1;0;"337,94";"337,94";GARDEN FIORI E FOGLIE SOLUTION di De Pretto S.;ZEF23ED548;SALDO Fatt.n. 000014-2018-PA  del 20/06/2018  POTATURA SIEPE LUNGO PISTA CICLABILE VIA PIAVE E SPOSTAMENTO E POTATURA DI ALCUNE PIANTE ALL'INTERNO DEL TERRITORIO COMUNALE;02-07-2018;2800;0;509;1;Spese correnti;3;Acquisto di beni e servizi;2;Acquisto di servizi;9;Manutenzione ordinaria e riparazioni;12;Manutenzione ordinaria e riparazioni di terreni e beni materiali non prodotti;02-07-2018;
1664;1;0;"982,00";"982,00";CECCHINATO CRISTIAN;Z312244E54;SALDO Fatt.n. FATTPA 10_18  del 18/06/2018 VISITE MEDICHE;02-07-2018;761;0;218;1;Spese correnti;3;Acquisto di beni e servizi;2;Acquisto di servizi;99;Altri servizi;999;Altri servizi diversi n.a.c.;02-07-2018;
1665;1;0;"3.965,00";"3.965,00";TRAFFIC TECNOLOGY SRL;Z302197E32;SALDO Fatt.n. 778  del 19/06/2018 CANONE SISTEMA VISTA RED;02-07-2018;3342;0;169;1;Spese correnti;3;Acquisto di beni e servizi;2;Acquisto di servizi;99;Altri servizi;999;Altri servizi diversi n.a.c.;02-07-2018;
1666;1;0;"374,58";"374,58";COSTRUZIONI GENERALI GIRARDINI SPA;Z9E21B7F37;SALDO Fatt.n. 0000078/E  del 31/05/2018 MACINATO ECO CEMENTATO;02-07-2018;3420;0;114;1;Spese correnti;3;Acquisto di beni e servizi;1;Acquisto di beni;2;Altri beni di consumo;999;Altri beni e materiali di consumo n.a.c.;02-07-2018;
1667;1;0;"487,33";"487,33";MATERIALE EDILE DONA' SRL;Z5A21B8566;SALDO Fatt.n. 0000008  del 31/05/2018 MATERIALE PER EDILIZIA VARIO;02-07-2018;3420;0;113;1;Spese correnti;3;Acquisto di beni e servizi;1;Acquisto di beni;2;Altri beni di consumo;999;Altri beni e materiali di consumo n.a.c.;02-07-2018;
1668;1;0;"503,48";"503,48";CAVALIERE SRL;Z8F23DE6A5;"SALDO Fatt.n. 239 / 210105  del 26/06/2018 Veicolo - Targa: DT651JY , Telaio: ZCFC60D0005767334 , KM: 115505 , Descr Veicolo: IVECO - Daily (2006-2009)";02-07-2018;781;0;506;1;Spese correnti;3;Acquisto di beni e servizi;2;Acquisto di servizi;9;Manutenzione ordinaria e riparazioni;1;"Manutenzione ordinaria e riparazioni di mezzi di trasporto ad uso civile, di sicurezza e ordine pubblico";02-07-2018;
1669;1;0;"1.032,02";"1.032,02";TIM SPA;29726146AB;SALDO Fatt.n. 7X02138668  del 14/06/2018 4BIM 2018 NOLEGGI;02-07-2018;259;3;49;1;Spese correnti;3;Acquisto di beni e servizi;2;Acquisto di servizi;5;Utenze e canoni;2;Telefonia mobile;02-07-2018;
1670;1;0;"1.316,00";"1.316,00";CAPUANO ALESSANDRA;Z6E020BF3E;ACCONTO Fatt.n. 2/2018/EL  del 07/06/2018 Compensi per la pratica AZIENDA AGRICOLA CAV.NOVELLO Ricorso 2847/2008 Tribunale di Vicenza. A chiusura delle determine di impegno per le attivita svolte;02-07-2018;500;0;390;1;Spese correnti;3;Acquisto di beni e servizi;2;Acquisto di servizi;11;Prestazioni professionali e specialistiche;6;Patrocinio legale;02-07-2018;
1671;1;0;"5.000,00";"5.000,00";CAPUANO ALESSANDRA;Z6E020BF3E;ACCONTO Fatt.n. 2/2018/EL  del 07/06/2018 Compensi per la pratica AZIENDA AGRICOLA CAV.NOVELLO Ricorso 2847/2008 Tribunale di Vicenza. A chiusura delle determine di impegno per le attivita svolte;02-07-2018;500;0;860;1;Spese correnti;3;Acquisto di beni e servizi;2;Acquisto di servizi;11;Prestazioni professionali e specialistiche;6;Patrocinio legale;02-07-2018;
1672;1;0;"1.189,60";"1.189,60";CAPUANO ALESSANDRA;Z6E020BF3E;SALDO Fatt.n. 2/2018/EL  del 07/06/2018 Compensi per la pratica AZIENDA AGRICOLA CAV.NOVELLO Ricorso 2847/2008 Tribunale di Vicenza. A chiusura delle determine di impegno per le attivita svolte;02-07-2018;500;0;911;1;Spese correnti;3;Acquisto di beni e servizi;2;Acquisto di servizi;11;Prestazioni professionali e specialistiche;6;Patrocinio legale;02-07-2018;
1673;1;0;"2.537,60";"2.537,60";CAPUANO ALESSANDRA;Z4814D7A31;ACCONTO Fatt.n. 3/2018/EL  del 07/06/2018 Compensi per la pratica NOVELLO ricorso avversario. Ricorso 7089/14 RG Tribunale di Vicenza.;02-07-2018;500;0;301;1;Spese correnti;3;Acquisto di beni e servizi;2;Acquisto di servizi;11;Prestazioni professionali e specialistiche;6;Patrocinio legale;02-07-2018;
1674;1;0;"1.643,08";"1.643,08";CAPUANO ALESSANDRA;Z5910BB448;SALDO Fatt.n. 3/2018/EL  del 07/06/2018 Compensi per la pratica NOVELLO ricorso avversario. Ricorso 7089/14 RG Tribunale di Vicenza.;02-07-2018;500;0;732;1;Spese correnti;3;Acquisto di beni e servizi;2;Acquisto di servizi;11;Prestazioni professionali e specialistiche;6;Patrocinio legale;02-07-2018;
1676;1;0;"270,85";"270,85";ALFA ANTINCENDIO SRL;Z2B22EF460;SALDO Fatt.n. 80  del 31/05/2018 REVISIONE SEMESTRALE ESTINTORI CONTROOLO ATTACCHI E IDRANTI;03-07-2018;961;0;346;1;Spese correnti;3;Acquisto di beni e servizi;2;Acquisto di servizi;9;Manutenzione ordinaria e riparazioni;5;Manutenzione ordinaria e riparazioni di attrezzature;03-07-2018;
1677;1;0;"2.894,50";"2.894,50";ALFA ANTINCENDIO SRL;Z2B22EF460;SALDO Fatt.n. 82  del 31/05/2018 CONTROLLI E COLLAUDI VARI;03-07-2018;961;0;346;1;Spese correnti;3;Acquisto di beni e servizi;2;Acquisto di servizi;9;Manutenzione ordinaria e riparazioni;5;Manutenzione ordinaria e riparazioni di attrezzature;03-07-2018;
1678;1;0;"419,05";"419,05";COMMERCIALE '98 SRL;ZF323291EB;SALDO Fatt.n. 5/E  del 30/04/2018 MATERIALE VARIO;03-07-2018;1432;3;348;1;Spese correnti;3;Acquisto di beni e servizi;2;Acquisto di servizi;9;Manutenzione ordinaria e riparazioni;4;Manutenzione ordinaria e riparazioni di impianti e macchinari;03-07-2018;
1679;1;0;"710,16";"710,16";SCREMIN SRL;Z4323ACA9C;ACCONTO Fatt.n. 21FPA  del 31/05/2018 INTERVENTI DI MANUTENZIONE IMPIANTI ELETTRICI SCUOLE;03-07-2018;928;0;446;1;Spese correnti;3;Acquisto di beni e servizi;2;Acquisto di servizi;9;Manutenzione ordinaria e riparazioni;8;Manutenzione ordinaria e riparazioni di beni immobili;03-07-2018;
1680;1;0;"510,20";"510,20";SCREMIN SRL;Z4323ACA9C;ACCONTO Fatt.n. 21FPA  del 31/05/2018 INTERVENTI DI MANUTENZIONE IMPIANTI ELETTRICI SCUOLE;03-07-2018;1810;4;447;1;Spese correnti;3;Acquisto di beni e servizi;2;Acquisto di servizi;9;Manutenzione ordinaria e riparazioni;4;Manutenzione ordinaria e riparazioni di impianti e macchinari;03-07-2018;
1681;1;0;"458,94";"458,94";SCREMIN SRL;Z4323ACA9C;ACCONTO Fatt.n. 21FPA  del 31/05/2018 INTERVENTI DI MANUTENZIONE IMPIANTI ELETTRICI SCUOLE;03-07-2018;1651;4;448;1;Spese correnti;3;Acquisto di beni e servizi;2;Acquisto di servizi;9;Manutenzione ordinaria e riparazioni;8;Manutenzione ordinaria e riparazioni di beni immobili;03-07-2018;
1682;1;0;"590,36";"590,36";SCREMIN SRL;Z4323ACA9C;SALDO Fatt.n. 21FPA  del 31/05/2018 INTERVENTI DI MANUTENZIONE IMPIANTI ELETTRICI SCUOLE;03-07-2018;3342;0;449;1;Spese correnti;3;Acquisto di beni e servizi;2;Acquisto di servizi;99;Altri servizi;999;Altri servizi diversi n.a.c.;03-07-2018;
1683;1;0;"156,00";"156,00";COSMO GIURIDICO VENETO SAS DI MARANGON IVONNE;Z6D23DDA8A;SALDO Fatt.n. FATTPA 39_18  del 15/06/2018 ABBONAMENTO ITALIA IUS;03-07-2018;768;1;497;1;Spese correnti;3;Acquisto di beni e servizi;2;Acquisto di servizi;99;Altri servizi;999;Altri servizi diversi n.a.c.;03-07-2018;
1684;1;0;"2.011,78";"2.011,78";SCREMIN SRL;Z1F22FEF15;SALDO Fatt.n. 24FPA  del 21/06/2018 LAVORI INTERVENTO PALI ILLUMINAZIONE PUBBLICA;03-07-2018;3320;0;293;1;Spese correnti;3;Acquisto di beni e servizi;2;Acquisto di servizi;9;Manutenzione ordinaria e riparazioni;4;Manutenzione ordinaria e riparazioni di impianti e macchinari;03-07-2018;
1685;1;0;"13.500,00";"13.500,00";CIRCOLO ACLI - CENTRO DON MILANI; ;CONTRIBUTO AL CENTRO DON MILANI - ACCONTO 50% ANNO 2018.;03-07-2018;3115;0;607;1;Spese correnti;4;Trasferimenti correnti;4;Trasferimenti correnti a Istituzioni Sociali Private;1;Trasferimenti correnti a Istituzioni Sociali Private;1;Trasferimenti correnti a Istituzioni Sociali Private;03-07-2018;
1686;1;0;"1.246,84";"1.246,84";T.E.S. SPA;ZBC222FE3C;SALDO Fatt.n. 401PA  del 27/06/2018 INSTALLAZIONE MATERIALE VARIO;03-07-2018;3380;0;213;1;Spese correnti;3;Acquisto di beni e servizi;1;Acquisto di beni;2;Altri beni di consumo;999;Altri beni e materiali di consumo n.a.c.;03-07-2018;
1687;1;0;"4.200,00";"4.200,00";ASSOCIAZIONE NAZIONALE ALPINI SEZIONE DI VICENZA; ;MANUTENZIONE E GESTIONE DELLE AREE VERDI TRIENNIO 2018/2020 - LIQUIDAZIONE ALL'ASSOCIAZIONE NAZIONALE ALPINI SEZIONE DI VICENZA DEL 60% DEL CONTRIBUTO RELATIVO ALL'ANNO 2018;03-07-2018;2811;0;361;1;Spese correnti;4;Trasferimenti correnti;4;Trasferimenti correnti a Istituzioni Sociali Private;1;Trasferimenti correnti a Istituzioni Sociali Private;1;Trasferimenti correnti a Istituzioni Sociali Private;03-07-2018;
1688;1;0;"5.400,00";"5.400,00";ASSOCIAZIONE NAZIONALE ALPINI SEZIONE DI VICENZA; ;MANUTENZIONE E GESTIONE BOSCO DI PIANURA TRIENNIO 2018/2020 - LIQUIDAZIONE ALL'ASSOCIAZIONE NAZIONALE ALPINI SEZIONE DI VICENZA DEL 60% DEL CONTRIBUTO RELATIVO ALL'ANNO 2018;03-07-2018;2810;0;362;1;Spese correnti;4;Trasferimenti correnti;4;Trasferimenti correnti a Istituzioni Sociali Private;1;Trasferimenti correnti a Istituzioni Sociali Private;1;Trasferimenti correnti a Istituzioni Sociali Private;03-07-2018;
1689;1;0;"2.400,00";"2.400,00";ASSOCIAZIONE VOLONTARI PROTEZIONE CIVILE DI SANDRIGO; ;MANUTENZIONE DEL PERCORSO TESINA - TRIENNIO 2018/2020 - LIQUIDAZIONE ALL'ASSOCIAZIONE DI VOLONTARI DI PROTEZIONE CIVILE DI SANDRIGO DEL 60% DEL CONTRIBUTO  RELATIVO ALL'ANNO 2018;03-07-2018;2807;0;360;1;Spese correnti;4;Trasferimenti correnti;4;Trasferimenti correnti a Istituzioni Sociali Private;1;Trasferimenti correnti a Istituzioni Sociali Private;1;Trasferimenti correnti a Istituzioni Sociali Private;03-07-2018;
1690;1;0;"12.000,00";"12.000,00";ASSOCIAZIONE SANDRIGO AMBIENTE POLLICE VERDE; ;MANUTENZIONE E GESTIONE DELLE AREE VERDI - TRIENNIO / - LI\QUIDAZIONE ALL'ASSOCIAZIONESANDRIGO AMBIENTE POLLICE VERDE DEL 60% DEL CONTRIBUTO RELATIVO ALL'ANNO;03-07-2018;2806;0;358;1;Spese correnti;4;Trasferimenti correnti;4;Trasferimenti correnti a Istituzioni Sociali Private;1;Trasferimenti correnti a Istituzioni Sociali Private;1;Trasferimenti correnti a Istituzioni Sociali Private;03-07-2018;
1691;1;0;"49,67";"49,67";BANCO POSTA - POSTE ITALIANE SPA;ZF421B5C8C;IMPEGNO DI SPESA PER LA GESTIONE DEI CONTI CORRENTI POSTALI PER L'ANNO 2018.;05-07-2018;1115;0;71;1;Spese correnti;3;Acquisto di beni e servizi;2;Acquisto di servizi;3;Aggi di riscossione;999;Altri aggi di riscossione n.a.c.;05-07-2018;
1692;1;0;"8.911,83";"8.911,83";SCUOLA DELL'INFANZIA "IDA TONOLLI"; ;"FONDO NAZIONALE SISTEMA INTEGRATO EDUCAZIONE ISTRUZIONE BAMBINI 0-6 ANNI. ANNO 2017. ACCERTAMENTO ENTRATA, IMPEGNO E CONTESTUALE LIQUIDAZIONE";06-07-2018;1400;0;451;1;Spese correnti;4;Trasferimenti correnti;4;Trasferimenti correnti a Istituzioni Sociali Private;1;Trasferimenti correnti a Istituzioni Sociali Private;1;Trasferimenti correnti a Istituzioni Sociali Private;06-07-2018;
1693;1;0;"7.226,45";"7.226,45";ASSOCIAZIONE SERVIZI PER L'INFANZIA TOMMASO ANDRIGHETTO; ;"FONDO NAZIONALE SISTEMA INTEGRATO EDUCAZIONE ISTRUZIONE BAMBINI 0-6 ANNI. ANNO 2017. ACCERTAMENTO ENTRATA, IMPEGNO E CONTESTUALE LIQUIDAZIONE";06-07-2018;1400;0;452;1;Spese correnti;4;Trasferimenti correnti;4;Trasferimenti correnti a Istituzioni Sociali Private;1;Trasferimenti correnti a Istituzioni Sociali Private;1;Trasferimenti correnti a Istituzioni Sociali Private;06-07-2018;
1694;1;0;"500,00";"3.250,00";OMESSO NOMINATIVO NEL RISPETTO DELLA NORMATIVA SULLA PROTEZIONE DATI PERSONALI; ;"D.G.R. n. 1488/2017: ""PROGRAMMA DI INTERVENTI ECONOMICI STRAORDINARI A FAVORE DELLE FAMIGLIE CON PARTI TRIGEMELLARI E DELLE FAMIGLIE CON NUMERO DI FIGLI PARI O SUPERIORE A QUATTRO"". ACCERTAMENTO ENTRATA, IMPEGNO DI SPESA E CONTESTUALE LIQUIDAZIONE.";06-07-2018;3203;0;525;1;Spese correnti;4;Trasferimenti correnti;2;Trasferimenti correnti a Famiglie;2;Interventi assistenziali;999;Altri assegni e sussidi assistenziali;06-07-2018;
1694;2;2132;"500,00";"3.250,00";OMESSO NOMINATIVO NEL RISPETTO DELLA NORMATIVA SULLA PROTEZIONE DATI PERSONALI; ;"D.G.R. n. 1488/2017: ""PROGRAMMA DI INTERVENTI ECONOMICI STRAORDINARI A FAVORE DELLE FAMIGLIE CON PARTI TRIGEMELLARI E DELLE FAMIGLIE CON NUMERO DI FIGLI PARI O SUPERIORE A QUATTRO"". ACCERTAMENTO ENTRATA, IMPEGNO DI SPESA E CONTESTUALE LIQUIDAZIONE.";06-07-2018;3203;0;525;1;Spese correnti;4;Trasferimenti correnti;2;Trasferimenti correnti a Famiglie;2;Interventi assistenziali;999;Altri assegni e sussidi assistenziali;27-12-2018;
1694;3;0;"875,00";"3.250,00";OMESSO NOMINATIVO NEL RISPETTO DELLA NORMATIVA SULLA PROTEZIONE DATI PERSONALI; ;"D.G.R. n. 1488/2017: ""PROGRAMMA DI INTERVENTI ECONOMICI STRAORDINARI A FAVORE DELLE FAMIGLIE CON PARTI TRIGEMELLARI E DELLE FAMIGLIE CON NUMERO DI FIGLI PARI O SUPERIORE A QUATTRO"". ACCERTAMENTO ENTRATA, IMPEGNO DI SPESA E CONTESTUALE LIQUIDAZIONE.";06-07-2018;3203;0;525;1;Spese correnti;4;Trasferimenti correnti;2;Trasferimenti correnti a Famiglie;2;Interventi assistenziali;999;Altri assegni e sussidi assistenziali;06-07-2018;
1694;4;0;"625,00";"3.250,00";OMESSO NOMINATIVO NEL RISPETTO DELLA NORMATIVA SULLA PROTEZIONE DATI PERSONALI; ;"D.G.R. n. 1488/2017: ""PROGRAMMA DI INTERVENTI ECONOMICI STRAORDINARI A FAVORE DELLE FAMIGLIE CON PARTI TRIGEMELLARI E DELLE FAMIGLIE CON NUMERO DI FIGLI PARI O SUPERIORE A QUATTRO"". ACCERTAMENTO ENTRATA, IMPEGNO DI SPESA E CONTESTUALE LIQUIDAZIONE.";06-07-2018;3203;0;525;1;Spese correnti;4;Trasferimenti correnti;2;Trasferimenti correnti a Famiglie;2;Interventi assistenziali;999;Altri assegni e sussidi assistenziali;06-07-2018;
1694;5;0;"750,00";"3.250,00";OMESSO NOMINATIVO NEL RISPETTO DELLA NORMATIVA SULLA PROTEZIONE DATI PERSONALI; ;"D.G.R. n. 1488/2017: ""PROGRAMMA DI INTERVENTI ECONOMICI STRAORDINARI A FAVORE DELLE FAMIGLIE CON PARTI TRIGEMELLARI E DELLE FAMIGLIE CON NUMERO DI FIGLI PARI O SUPERIORE A QUATTRO"". ACCERTAMENTO ENTRATA, IMPEGNO DI SPESA E CONTESTUALE LIQUIDAZIONE.";06-07-2018;3203;0;525;1;Spese correnti;4;Trasferimenti correnti;2;Trasferimenti correnti a Famiglie;2;Interventi assistenziali;999;Altri assegni e sussidi assistenziali;06-07-2018;
1695;1;0;"500,00";"2.500,00";OMESSO NOMINATIVO NEL RISPETTO DELLA NORMATIVA SULLA PROTEZIONE DATI PERSONALI; ;"D.G.R. n. 1488/2017: ""PROGRAMMA DI INTERVENTI ECONOMICI STRAORDINARI A FAVORE DELLE FAMIGLIE CON PARTI TRIGEMELLARI E DELLE FAMIGLIE CON NUMERO DI FIGLI PARI O SUPERIORE A QUATTRO"". ACCERTAMENTO ENTRATA, IMPEGNO DI SPESA E CONTESTUALE LIQUIDAZIONE.";06-07-2018;3203;0;525;1;Spese correnti;4;Trasferimenti correnti;2;Trasferimenti correnti a Famiglie;2;Interventi assistenziali;999;Altri assegni e sussidi assistenziali;06-07-2018;
1695;2;0;"500,00";"2.500,00";OMESSO NOMINATIVO NEL RISPETTO DELLA NORMATIVA SULLA PROTEZIONE DATI PERSONALI; ;"D.G.R. n. 1488/2017: ""PROGRAMMA DI INTERVENTI ECONOMICI STRAORDINARI A FAVORE DELLE FAMIGLIE CON PARTI TRIGEMELLARI E DELLE FAMIGLIE CON NUMERO DI FIGLI PARI O SUPERIORE A QUATTRO"". ACCERTAMENTO ENTRATA, IMPEGNO DI SPESA E CONTESTUALE LIQUIDAZIONE.";06-07-2018;3203;0;525;1;Spese correnti;4;Trasferimenti correnti;2;Trasferimenti correnti a Famiglie;2;Interventi assistenziali;999;Altri assegni e sussidi assistenziali;06-07-2018;
1695;3;0;"500,00";"2.500,00";OMESSO NOMINATIVO NEL RISPETTO DELLA NORMATIVA SULLA PROTEZIONE DATI PERSONALI; ;"D.G.R. n. 1488/2017: ""PROGRAMMA DI INTERVENTI ECONOMICI STRAORDINARI A FAVORE DELLE FAMIGLIE CON PARTI TRIGEMELLARI E DELLE FAMIGLIE CON NUMERO DI FIGLI PARI O SUPERIORE A QUATTRO"". ACCERTAMENTO ENTRATA, IMPEGNO DI SPESA E CONTESTUALE LIQUIDAZIONE.";06-07-2018;3203;0;525;1;Spese correnti;4;Trasferimenti correnti;2;Trasferimenti correnti a Famiglie;2;Interventi assistenziali;999;Altri assegni e sussidi assistenziali;06-07-2018;
1695;4;2133;"500,00";"2.500,00";OMESSO NOMINATIVO NEL RISPETTO DELLA NORMATIVA SULLA PROTEZIONE DATI PERSONALI; ;"D.G.R. n. 1488/2017: ""PROGRAMMA DI INTERVENTI ECONOMICI STRAORDINARI A FAVORE DELLE FAMIGLIE CON PARTI TRIGEMELLARI E DELLE FAMIGLIE CON NUMERO DI FIGLI PARI O SUPERIORE A QUATTRO"". ACCERTAMENTO ENTRATA, IMPEGNO DI SPESA E CONTESTUALE LIQUIDAZIONE.";06-07-2018;3203;0;525;1;Spese correnti;4;Trasferimenti correnti;2;Trasferimenti correnti a Famiglie;2;Interventi assistenziali;999;Altri assegni e sussidi assistenziali;27-12-2018;
1695;5;0;"500,00";"2.500,00";OMESSO NOMINATIVO NEL RISPETTO DELLA NORMATIVA SULLA PROTEZIONE DATI PERSONALI; ;"D.G.R. n. 1488/2017: ""PROGRAMMA DI INTERVENTI ECONOMICI STRAORDINARI A FAVORE DELLE FAMIGLIE CON PARTI TRIGEMELLARI E DELLE FAMIGLIE CON NUMERO DI FIGLI PARI O SUPERIORE A QUATTRO"". ACCERTAMENTO ENTRATA, IMPEGNO DI SPESA E CONTESTUALE LIQUIDAZIONE.";06-07-2018;3203;0;525;1;Spese correnti;4;Trasferimenti correnti;2;Trasferimenti correnti a Famiglie;2;Interventi assistenziali;999;Altri assegni e sussidi assistenziali;06-07-2018;
1696;1;0;"1.000,00";"3.750,00";OMESSO NOMINATIVO NEL RISPETTO DELLA NORMATIVA SULLA PROTEZIONE DATI PERSONALI; ;"D.G.R. n. 1488/2017: ""PROGRAMMA DI INTERVENTI ECONOMICI STRAORDINARI A FAVORE DELLE FAMIGLIE CON PARTI TRIGEMELLARI E DELLE FAMIGLIE CON NUMERO DI FIGLI PARI O SUPERIORE A QUATTRO"". ACCERTAMENTO ENTRATA, IMPEGNO DI SPESA E CONTESTUALE LIQUIDAZIONE.";06-07-2018;3203;0;525;1;Spese correnti;4;Trasferimenti correnti;2;Trasferimenti correnti a Famiglie;2;Interventi assistenziali;999;Altri assegni e sussidi assistenziali;06-07-2018;
1696;2;0;"1.125,00";"3.750,00";OMESSO NOMINATIVO NEL RISPETTO DELLA NORMATIVA SULLA PROTEZIONE DATI PERSONALI; ;"D.G.R. n. 1488/2017: ""PROGRAMMA DI INTERVENTI ECONOMICI STRAORDINARI A FAVORE DELLE FAMIGLIE CON PARTI TRIGEMELLARI E DELLE FAMIGLIE CON NUMERO DI FIGLI PARI O SUPERIORE A QUATTRO"". ACCERTAMENTO ENTRATA, IMPEGNO DI SPESA E CONTESTUALE LIQUIDAZIONE.";06-07-2018;3203;0;525;1;Spese correnti;4;Trasferimenti correnti;2;Trasferimenti correnti a Famiglie;2;Interventi assistenziali;999;Altri assegni e sussidi assistenziali;06-07-2018;
1696;3;0;"625,00";"3.750,00";OMESSO NOMINATIVO NEL RISPETTO DELLA NORMATIVA SULLA PROTEZIONE DATI PERSONALI; ;"D.G.R. n. 1488/2017: ""PROGRAMMA DI INTERVENTI ECONOMICI STRAORDINARI A FAVORE DELLE FAMIGLIE CON PARTI TRIGEMELLARI E DELLE FAMIGLIE CON NUMERO DI FIGLI PARI O SUPERIORE A QUATTRO"". ACCERTAMENTO ENTRATA, IMPEGNO DI SPESA E CONTESTUALE LIQUIDAZIONE.";06-07-2018;3203;0;525;1;Spese correnti;4;Trasferimenti correnti;2;Trasferimenti correnti a Famiglie;2;Interventi assistenziali;999;Altri assegni e sussidi assistenziali;06-07-2018;
1696;4;0;"500,00";"3.750,00";OMESSO NOMINATIVO NEL RISPETTO DELLA NORMATIVA SULLA PROTEZIONE DATI PERSONALI; ;"D.G.R. n. 1488/2017: ""PROGRAMMA DI INTERVENTI ECONOMICI STRAORDINARI A FAVORE DELLE FAMIGLIE CON PARTI TRIGEMELLARI E DELLE FAMIGLIE CON NUMERO DI FIGLI PARI O SUPERIORE A QUATTRO"". ACCERTAMENTO ENTRATA, IMPEGNO DI SPESA E CONTESTUALE LIQUIDAZIONE.";06-07-2018;3203;0;525;1;Spese correnti;4;Trasferimenti correnti;2;Trasferimenti correnti a Famiglie;2;Interventi assistenziali;999;Altri assegni e sussidi assistenziali;06-07-2018;
1696;5;0;"500,00";"3.750,00";OMESSO NOMINATIVO NEL RISPETTO DELLA NORMATIVA SULLA PROTEZIONE DATI PERSONALI; ;"D.G.R. n. 1488/2017: ""PROGRAMMA DI INTERVENTI ECONOMICI STRAORDINARI A FAVORE DELLE FAMIGLIE CON PARTI TRIGEMELLARI E DELLE FAMIGLIE CON NUMERO DI FIGLI PARI O SUPERIORE A QUATTRO"". ACCERTAMENTO ENTRATA, IMPEGNO DI SPESA E CONTESTUALE LIQUIDAZIONE.";06-07-2018;3203;0;525;1;Spese correnti;4;Trasferimenti correnti;2;Trasferimenti correnti a Famiglie;2;Interventi assistenziali;999;Altri assegni e sussidi assistenziali;06-07-2018;
1697;1;0;"1.778,20";"1.778,20";ZONCHEDDU E ASSOCIATI;ZC42027072;SALDO Fatt.n. 14  del 22/06/2018 COMPETENZE PROFESSIONALI PERIZIA DI VARIANTE DEI LAVORI DI MANUTENZIONE STRAORDINARIA STRADE E MARCIAPIEDI COMUNALI;06-07-2018;4584;0;512;2;Spese in conto capitale;2;Investimenti fissi lordi e acquisto di terreni;1;Beni materiali;9;Beni immobili;12;Infrastrutture stradali;06-07-2018;
1698;1;0;"1.664,00";"1.664,00";STUDIO TECNICO DI PROGETTAZIONE GEOM.FABBRIS TITA;ZC722E8578;SALDO Fatt.n. 0000001/PA  del 26/04/2018 FRAZIONAMENTO MAPPALI;06-07-2018;740;0;292;1;Spese correnti;3;Acquisto di beni e servizi;2;Acquisto di servizi;10;Consulenze;1;"Incarichi libero professionali di studi, ricerca e consulenza";06-07-2018;
1699;1;0;"4.416,00";"4.416,00";PARROCCHIA DI S. STEFANO - SCUOLA MAT.PRINCIPE UMBERTO; ;"FONDO NAZIONALE SISTEMA INTEGRATO EDUCAZIONE ISTRUZIONE BAMBINI 0-6 ANNI. ANNO 2017. ACCERTAMENTO ENTRATA, IMPEGNO E CONTESTUALE LIQUIDAZIONE";17-07-2018;1400;0;453;1;Spese correnti;4;Trasferimenti correnti;4;Trasferimenti correnti a Istituzioni Sociali Private;1;Trasferimenti correnti a Istituzioni Sociali Private;1;Trasferimenti correnti a Istituzioni Sociali Private;17-07-2018;
1700;1;0;"364,00";"364,00";L'UFFICIO MODERNO DI BONALANCIA E BRAMBINI F.LLI SNC;Z6820B3E42;SALDO Fatt.n. EIMM000032  del 23/05/2018 MATERIALE CANCELLERIA UFF. URBANISTICA;17-07-2018;766;0;755;1;Spese correnti;3;Acquisto di beni e servizi;1;Acquisto di beni;2;Altri beni di consumo;1;"Carta, cancelleria e stampati";17-07-2018;
1701;1;0;"73,30";"73,30";TIM SPA; ;SALDO Fatt.n. 8E00524562  del 06/06/2018 4BIM 2018 LINEA ISDN APRILE MAGGIO;17-07-2018;259;3;50;1;Spese correnti;3;Acquisto di beni e servizi;2;Acquisto di servizi;5;Utenze e canoni;1;Telefonia fissa;17-07-2018;
1702;1;0;"388,51";"388,51";TIM SPA; ;SALDO Fatt.n. 8E00524773  del 06/06/2018 4BIM 2018 LINEA ISDN APRILE MAGGIO;17-07-2018;259;3;50;1;Spese correnti;3;Acquisto di beni e servizi;2;Acquisto di servizi;5;Utenze e canoni;1;Telefonia fissa;17-07-2018;
1703;1;0;"60,91";"60,91";TIM SPA; ;SALDO Fatt.n. 8E00524684  del 06/06/2018 4BIM 2018 LINEA ASDN APRILE MAGGIO;17-07-2018;259;3;50;1;Spese correnti;3;Acquisto di beni e servizi;2;Acquisto di servizi;5;Utenze e canoni;1;Telefonia fissa;17-07-2018;
1704;1;0;"12,29";"12,29";TIM SPA; ;SALDO Fatt.n. 8A00441231  del 06/06/2018 4BIM 2018 ABILITAZIONE UTILIZZO FAX;17-07-2018;259;3;50;1;Spese correnti;3;Acquisto di beni e servizi;2;Acquisto di servizi;5;Utenze e canoni;1;Telefonia fissa;17-07-2018;
1705;1;0;"158,60";"158,60";TIM SPA; ;SALDO Fatt.n. 8E00520098  del 06/06/2018 4BIM 2018 NUVOLA INTERNET BUSINESS APRILE MAGGIO;17-07-2018;259;3;50;1;Spese correnti;3;Acquisto di beni e servizi;2;Acquisto di servizi;5;Utenze e canoni;1;Telefonia fissa;17-07-2018;
1706;1;0;"219,07";"219,07";TIM SPA; ;SALDO Fatt.n. 8E00525796  del 06/06/2018 4BIM 2018 INTERNET PROFESSIONAL APRILE MAGGIO;17-07-2018;259;3;50;1;Spese correnti;3;Acquisto di beni e servizi;2;Acquisto di servizi;5;Utenze e canoni;1;Telefonia fissa;17-07-2018;
1707;1;0;"26,21";"26,21";TIM SPA; ;SALDO Fatt.n. 8E00520615  del 06/06/2018 4BIM 2018 LINEA TELEFONICA AFFARI APRILE MAGGIO;17-07-2018;259;3;50;1;Spese correnti;3;Acquisto di beni e servizi;2;Acquisto di servizi;5;Utenze e canoni;1;Telefonia fissa;17-07-2018;
1708;1;0;"216,20";"216,20";TIM SPA; ;SALDO Fatt.n. 8E00524537  del 06/06/2018 4BIM 2018 LINEA ISDN APRILE MAGGIO;17-07-2018;1651;0;308;1;Spese correnti;3;Acquisto di beni e servizi;2;Acquisto di servizi;5;Utenze e canoni;1;Telefonia fissa;17-07-2018;
1709;1;0;"65,72";"65,72";TIM SPA; ;SALDO Fatt.n. 8E00521176  del 06/06/2018 4BIM 2018 LINEA ASDN APRILE MAGGIO;17-07-2018;1651;0;308;1;Spese correnti;3;Acquisto di beni e servizi;2;Acquisto di servizi;5;Utenze e canoni;1;Telefonia fissa;17-07-2018;
1710;1;0;"103,19";"103,19";TIM SPA; ;SALDO Fatt.n. 8E00524206  del 06/06/2018 4BIM 2018 ALICE BUSINESS FLAT ROUTER APRILE MAGGIO;17-07-2018;1651;0;308;1;Spese correnti;3;Acquisto di beni e servizi;2;Acquisto di servizi;5;Utenze e canoni;1;Telefonia fissa;17-07-2018;
1711;1;0;"127,21";"127,21";TIM SPA; ;SALDO Fatt.n. 8E00524258  del 06/06/2018 4BIM 2018 ALICE BUSINESS LINEA AFFARI ROUTER DI POSTA APRILE MAGGIO;17-07-2018;1651;0;308;1;Spese correnti;3;Acquisto di beni e servizi;2;Acquisto di servizi;5;Utenze e canoni;1;Telefonia fissa;17-07-2018;
1712;1;0;"6.501,46";"6.501,46";S.I.A. Societa' Intercomunale Ambiente SRL; ;SALDO Fatt.n. 101/PA18  del 31/05/2018 CONFERIMENTO RSU SECCO MESE DI MAGGIO 2018;17-07-2018;2695;0;163;1;Spese correnti;3;Acquisto di beni e servizi;2;Acquisto di servizi;15;Contratti di servizio pubblico;5;Contratti di servizio per il conferimento in discarica dei rifiuti;17-07-2018;
1713;1;0;"1.421,11";"1.421,11";F.LLI URBANI SRL;ZB521BB575;ACCONTO Fatt.n. 21/PA  del 31/05/2018 TRASPORTO E SMALTIMENTO;17-07-2018;2798;0;336;1;Spese correnti;3;Acquisto di beni e servizi;2;Acquisto di servizi;99;Altri servizi;999;Altri servizi diversi n.a.c.;17-07-2018;
1714;1;0;"280,59";"280,59";F.LLI URBANI SRL;Z812374A81;SALDO Fatt.n. 21/PA  del 31/05/2018 TRASPORTO E SMALTIMENTO;17-07-2018;2798;0;386;1;Spese correnti;3;Acquisto di beni e servizi;2;Acquisto di servizi;99;Altri servizi;999;Altri servizi diversi n.a.c.;17-07-2018;
1715;1;0;"31.897,29";"31.897,29";SO.RA.RIS. SPA; ;SALDO Fatt.n. 000087/PA  del 31/05/2018 SERVIZIO NETTEZZA URBANA MAGGIO 2018;17-07-2018;2691;0;117;1;Spese correnti;3;Acquisto di beni e servizi;2;Acquisto di servizi;15;Contratti di servizio pubblico;4;Contratti di servizio per la raccolta rifiuti;17-07-2018;
1716;1;0;"1.000,00";"1.000,00";PENZO DAVIDE; ;LIQUIDAZIONE ACCONTO AL DR. PENZO DAVIDE PER COMPENSO NUCLEO DI VALUTAZIONE IN FORMA ASSOCIATA;17-07-2018;67;0;145;1;Spese correnti;3;Acquisto di beni e servizi;2;Acquisto di servizi;1;Organi e incarichi istituzionali dell'amministrazione;8;"Compensi agli organi istituzionali di revisione, di controllo ed altri incarichi istituzionali dell'amministrazione";17-07-2018;
1717;1;0;"103,77";"103,77";COMMERCIALE '98 SRL;ZF721B7BC0;SALDO Fatt.n. 9/E  del 30/06/2018 MATERIALE VARIO;17-07-2018;1640;0;344;1;Spese correnti;3;Acquisto di beni e servizi;1;Acquisto di beni;2;Altri beni di consumo;999;Altri beni e materiali di consumo n.a.c.;17-07-2018;
1718;1;0;"2.992,00";"2.992,00";COOP.SOCIALE DI SOLIDARIETA' S.MARCO a r.l. O.N.L.U.S.;ZE021A05E0;SALDO Fatt.n. 97/01  del 30/06/2018 SERVIZIO CONDUZIONE ECOCENTRO MESE GIUGNO 2018;17-07-2018;2689;0;164;1;Spese correnti;3;Acquisto di beni e servizi;2;Acquisto di servizi;13;Servizi ausiliari per il funzionamento dell'ente;999;Altri servizi ausiliari n.a.c.;17-07-2018;
1719;1;0;"1.270,73";"1.270,73";CENTRO BIBLIOTECHE LOVAT SRL;ZAC2287ADB;SALDO Fatt.n. 263-18PA  del 20/06/2018 FORNITURA LIBRI BIBLIOTECA;17-07-2018;1795;0;260;1;Spese correnti;3;Acquisto di beni e servizi;1;Acquisto di beni;1;"Giornali, riviste e pubblicazioni";2;Pubblicazioni;17-07-2018;
1720;1;0;"120,01";"120,01";KUWAIT PETROLEUM ITALIA SPA;ZE3176A2E8;ACCONTO Fatt.n. PJ00144418  del 30/06/2018 CONSUMO CARBURANTE MESE GIUGNO 2018;17-07-2018;3182;0;252;1;Spese correnti;3;Acquisto di beni e servizi;1;Acquisto di beni;2;Altri beni di consumo;2;"Carburanti, combustibili e lubrificanti";17-07-2018;
1721;1;0;"1.209,04";"1.209,04";KUWAIT PETROLEUM ITALIA SPA;ZE3176A2E8;SALDO Fatt.n. PJ00144418  del 30/06/2018 CONSUMO CARBURANTE MESE GIUGNO 2018;17-07-2018;780;0;251;1;Spese correnti;3;Acquisto di beni e servizi;1;Acquisto di beni;2;Altri beni di consumo;2;"Carburanti, combustibili e lubrificanti";17-07-2018;
1723;1;0;"241,20";"241,20";IPAB COMM. A MICHELAZZO; ;SALDO Fatt.n. 50/B  del 30/06/2018 RETTE OSPITI CASA DI RIPOSO;17-07-2018;3201;0;153;1;Spese correnti;3;Acquisto di beni e servizi;2;Acquisto di servizi;15;Contratti di servizio pubblico;8;Contratti di servizio di assistenza sociale residenziale e semiresidenziale;17-07-2018;
1724;1;0;"3.297,25";"3.297,25";ROSTICCERIA GASTRONOMIA CUNICO INES DI POLTRONIERI S.;Z2321D9C9E;SALDO Fatt.n. FATTPA 10_18  del 30/06/2018 PASTI CONSEGNATI NEL MESE DI GIUGNO;17-07-2018;3139;0;159;1;Spese correnti;3;Acquisto di beni e servizi;1;Acquisto di beni;2;Altri beni di consumo;11;Generi alimentari;17-07-2018;
1725;1;0;"1.270,14";"1.270,14";I.P.A.B. SUOR DIODATA BERTOLO; ;SALDO Fatt.n. 107/E  del 06/07/2018 Determina impegno di spesa nr. 74 del 30/01/2018;17-07-2018;3201;0;151;1;Spese correnti;3;Acquisto di beni e servizi;2;Acquisto di servizi;15;Contratti di servizio pubblico;8;Contratti di servizio di assistenza sociale residenziale e semiresidenziale;17-07-2018;
1726;1;0;"1.335,29";"1.335,29";COSTRUZIONI GENERALI GIRARDINI SPA;Z9E21B7F37;SALDO Fatt.n. 0000094/E  del 30/06/2018 MACINATO ECO;17-07-2018;3420;0;114;1;Spese correnti;3;Acquisto di beni e servizi;1;Acquisto di beni;2;Altri beni di consumo;999;Altri beni e materiali di consumo n.a.c.;17-07-2018;
1727;1;0;"1.985,05";"1.985,05";ALFA ANTINCENDIO SRL;Z2B22EF460;SALDO Fatt.n. 93  del 30/06/2018 IMPIANTO RILEVAZIONE CONTROLLATO PRESSO PALAZZO MOCENIGO;17-07-2018;961;0;346;1;Spese correnti;3;Acquisto di beni e servizi;2;Acquisto di servizi;9;Manutenzione ordinaria e riparazioni;5;Manutenzione ordinaria e riparazioni di attrezzature;17-07-2018;
1729;1;0;"730,79";"730,79";MATERIALE EDILE DONA' SRL;Z5A21B8566;SALDO Fatt.n. 0000009  del 30/06/2018 FORNITURA MATERIALE VARIO;17-07-2018;3420;0;113;1;Spese correnti;3;Acquisto di beni e servizi;1;Acquisto di beni;2;Altri beni di consumo;999;Altri beni e materiali di consumo n.a.c.;17-07-2018;
1730;1;0;"124,44";"124,44";GIORNI NUOVI SOCIETA' COOP. SOCIALE DI SOLIDARIETA';ZE4225CDE5;SALDO Fatt.n. 2/87  del 30/06/2018 SERVIZIO PULIZIA SALETTA RIUNIONI;17-07-2018;932;0;437;1;Spese correnti;3;Acquisto di beni e servizi;2;Acquisto di servizi;99;Altri servizi;999;Altri servizi diversi n.a.c.;17-07-2018;
1731;1;0;"178,36";"178,36";GIORNI NUOVI SOCIETA' COOP. SOCIALE DI SOLIDARIETA';ZA71DBB6F4;SALDO Fatt.n. 2/86  del 30/06/2018 SERVIZIO PULIZIE BAGNI CIMITERO;17-07-2018;259;5;269;1;Spese correnti;3;Acquisto di beni e servizi;2;Acquisto di servizi;13;Servizi ausiliari per il funzionamento dell'ente;2;Servizi di pulizia e lavanderia;17-07-2018;
1732;1;0;"2.148,20";"2.148,20";GIORNI NUOVI SOCIETA' COOP. SOCIALE DI SOLIDARIETA';67802821B6;ACCONTO Fatt.n. 2/85  del 30/06/2018 SERVIZIO PULIZIE SEDE MUNICIPALE E VARIE MESE GIUGNO 2018;18-07-2018;259;5;547;1;Spese correnti;3;Acquisto di beni e servizi;2;Acquisto di servizi;13;Servizi ausiliari per il funzionamento dell'ente;2;Servizi di pulizia e lavanderia;18-07-2018;
1733;1;0;"1.224,07";"1.224,07";GIORNI NUOVI SOCIETA' COOP. SOCIALE DI SOLIDARIETA';67802821B6;ACCONTO Fatt.n. 2/85  del 30/06/2018 SERVIZIO PULIZIE SEDE MUNICIPALE E VARIE MESE GIUGNO 2018;18-07-2018;1810;3;548;1;Spese correnti;3;Acquisto di beni e servizi;2;Acquisto di servizi;13;Servizi ausiliari per il funzionamento dell'ente;2;Servizi di pulizia e lavanderia;18-07-2018;
1734;1;0;"207,95";"207,95";GIORNI NUOVI SOCIETA' COOP. SOCIALE DI SOLIDARIETA';67802821B6;ACCONTO Fatt.n. 2/85  del 30/06/2018 SERVIZIO PULIZIE SEDE MUNICIPALE E VARIE MESE GIUGNO 2018;18-07-2018;1285;0;549;1;Spese correnti;3;Acquisto di beni e servizi;2;Acquisto di servizi;13;Servizi ausiliari per il funzionamento dell'ente;2;Servizi di pulizia e lavanderia;18-07-2018;
1735;1;0;"499,83";"499,83";GIORNI NUOVI SOCIETA' COOP. SOCIALE DI SOLIDARIETA';67802821B6;ACCONTO Fatt.n. 2/85  del 30/06/2018 SERVIZIO PULIZIE SEDE MUNICIPALE E VARIE MESE GIUGNO 2018;18-07-2018;1565;0;550;1;Spese correnti;3;Acquisto di beni e servizi;2;Acquisto di servizi;13;Servizi ausiliari per il funzionamento dell'ente;2;Servizi di pulizia e lavanderia;18-07-2018;
1736;1;0;"414,69";"414,69";GIORNI NUOVI SOCIETA' COOP. SOCIALE DI SOLIDARIETA';67802821B6;SALDO Fatt.n. 2/85  del 30/06/2018 SERVIZIO PULIZIE SEDE MUNICIPALE E VARIE MESE GIUGNO 2018;18-07-2018;3147;1;551;1;Spese correnti;3;Acquisto di beni e servizi;2;Acquisto di servizi;13;Servizi ausiliari per il funzionamento dell'ente;2;Servizi di pulizia e lavanderia;18-07-2018;
1737;1;0;"755,55";"755,55";MINISTERO DELL'INTERNO; ;COMUNE DI SANDRIGO -  CORRISPETTIVO RILASCIO N. 45 CIE EMESSE DAL 16.06.2018 AL 30.06.2018 - LIQUIDAZIONE COMPETENZE DOVUTE AL MINISTERO;18-07-2018;901;0;147;1;Spese correnti;4;Trasferimenti correnti;1;Trasferimenti correnti a Amministrazioni Pubbliche;1;Trasferimenti correnti a Amministrazioni Centrali;1;Trasferimenti correnti a Ministeri;18-07-2018;
1739;1;0;"48,26";"48,26";ECONOMO COMUNALE - DALLE NOGARE LUCIA; ;APPROVAZIONE RENDICONTO SPESE ECONOMALI II TRIMESTRE 2018.;18-07-2018;319;0;2;1;Spese correnti;3;Acquisto di beni e servizi;2;Acquisto di servizi;99;Altri servizi;999;Altri servizi diversi n.a.c.;18-07-2018;
1740;1;0;"93,80";"93,80";ECONOMO COMUNALE - DALLE NOGARE LUCIA; ;APPROVAZIONE RENDICONTO SPESE ECONOMALI II TRIMESTRE 2018.;18-07-2018;323;0;3;1;Spese correnti;3;Acquisto di beni e servizi;1;Acquisto di beni;2;Altri beni di consumo;1;"Carta, cancelleria e stampati";18-07-2018;
1741;1;0;"1.030,90";"1.030,90";BISSON GRU S.R.L.;Z4F23D4D1C;ACCONTO Fatt.n. 18  del 29/06/2018 VERIFICA PERIODICA GRU;18-07-2018;781;0;514;1;Spese correnti;3;Acquisto di beni e servizi;2;Acquisto di servizi;9;Manutenzione ordinaria e riparazioni;1;"Manutenzione ordinaria e riparazioni di mezzi di trasporto ad uso civile, di sicurezza e ordine pubblico";18-07-2018;
1742;1;0;"523,44";"523,44";BISSON GRU S.R.L.;Z4F23D4D1C;SALDO Fatt.n. 18  del 29/06/2018 VERIFICA PERIODICA GRU;18-07-2018;781;0;493;1;Spese correnti;3;Acquisto di beni e servizi;2;Acquisto di servizi;9;Manutenzione ordinaria e riparazioni;1;"Manutenzione ordinaria e riparazioni di mezzi di trasporto ad uso civile, di sicurezza e ordine pubblico";18-07-2018;
1743;1;0;"523,44";"523,44";BISSON GRU S.R.L.;Z0A23D4065;SALDO Fatt.n. 15  del 15/06/2018 VERIFICA PERIODICA GRU;18-07-2018;781;0;491;1;Spese correnti;3;Acquisto di beni e servizi;2;Acquisto di servizi;9;Manutenzione ordinaria e riparazioni;1;"Manutenzione ordinaria e riparazioni di mezzi di trasporto ad uso civile, di sicurezza e ordine pubblico";18-07-2018;
1744;1;0;"1.159,00";"1.159,00";BISSON GRU S.R.L.;Z0A23D4065;SALDO Fatt.n. 20  del 06/07/2018 INSTALLAZIONE KIT TUBI FLESSIBILI;18-07-2018;781;0;491;1;Spese correnti;3;Acquisto di beni e servizi;2;Acquisto di servizi;9;Manutenzione ordinaria e riparazioni;1;"Manutenzione ordinaria e riparazioni di mezzi di trasporto ad uso civile, di sicurezza e ordine pubblico";18-07-2018;
1746;1;0;"977,68";"977,68";AGENZIA DELLE ENTRATE; ;LIQUIDAZIONE IVA DEL MESE DI GIUGNO 2018.;18-07-2018;3760;0;529;1;Spese correnti;10;Altre spese correnti;3;Versamenti IVA a debito;1;Versamenti IVA a debito per le gestioni commerciali;1;Versamenti IVA a debito per le gestioni commerciali;18-07-2018;
1747;1;0;"1.908,43";"1.908,43";AMMINISTRAZIONE PROVINCIALE DI VICENZA; ;ADESIONE ALLA STAZIONE UNICA APPALTANTE - ANNO 2018. IMPEGNO DI SPESA E CONTESTUALE LIQUIDAZIONE A FAVORE DELLA PROVINCIA DI VICENZA.;18-07-2018;422;0;137;1;Spese correnti;3;Acquisto di beni e servizi;2;Acquisto di servizi;5;Utenze e canoni;999;Utenze e canoni per altri servizi n.a.c.;18-07-2018;
1758;1;0;"6,90";"6,90";PERSONALE DIPENDENTE; ;STIPENDI MESE DI: LUGLIO 18;20-07-2018;104;0;39;1;Spese correnti;3;Acquisto di beni e servizi;2;Acquisto di servizi;2;"Organizzazione eventi, pubblicita` e servizi per trasferta";1;Rimborso per viaggio e trasloco;20-07-2018;
1767;1;0;"3,80";"3,80";PERSONALE DIPENDENTE; ;STIPENDI MESE DI: LUGLIO 18;20-07-2018;113;0;40;1;Spese correnti;3;Acquisto di beni e servizi;2;Acquisto di servizi;2;"Organizzazione eventi, pubblicita` e servizi per trasferta";1;Rimborso per viaggio e trasloco;20-07-2018;
1845;1;0;"2,40";"2,40";PERSONALE DIPENDENTE; ;STIPENDI MESE DI: LUGLIO 18;20-07-2018;1773;0;45;1;Spese correnti;3;Acquisto di beni e servizi;2;Acquisto di servizi;2;"Organizzazione eventi, pubblicita` e servizi per trasferta";1;Rimborso per viaggio e trasloco;20-07-2018;
1863;1;0;"5.333,70";"5.333,70";AMMINISTRATORI COMUNALI E CONSIGLIERI; ;STIPENDI MESE DI: LUGLIO 18;20-07-2018;20;0;8;1;Spese correnti;3;Acquisto di beni e servizi;2;Acquisto di servizi;1;Organi e incarichi istituzionali dell'amministrazione;1;Organi istituzionali dell'amministrazione - Indennità;20-07-2018;
1866;1;0;"80,76";"80,76";GLOBAL POWER SPA;622385037F;(SOS. 1294) - ACCONTO Fatt.n. V0/80903  del 02/07/2018 CONSUMI E.E. MESE GIUGNO 2018 - ECOCENTRO;24-07-2018;2685;0;60;1;Spese correnti;3;Acquisto di beni e servizi;2;Acquisto di servizi;5;Utenze e canoni;4;Energia elettrica;24-07-2018;
1867;1;0;"156,53";"814,19";GLOBAL POWER SPA;622385037F;(SOS. 1297/P) - ACCONTO Fatt.n. V0/80906  del 02/07/2018 CONSUMI E.E. MESE GIUGNO 2018 - SCUOLE;24-07-2018;259;0;51;1;Spese correnti;3;Acquisto di beni e servizi;2;Acquisto di servizi;5;Utenze e canoni;4;Energia elettrica;24-07-2018;
1867;2;0;"657,66";"814,19";GLOBAL POWER SPA;622385037F;(SOS. 1295/P) - ACCONTO Fatt.n. V0/80907  del 02/07/2018 CONSUMI E.E. MESE GIUGNO 2018 - VARIE;24-07-2018;259;0;51;1;Spese correnti;3;Acquisto di beni e servizi;2;Acquisto di servizi;5;Utenze e canoni;4;Energia elettrica;24-07-2018;
1868;1;0;"82,40";"865,64";GLOBAL POWER SPA;622385037F;(SOS. 1296) -ACCONTO Fatt.n. V0/80904  del 02/07/2018 CONSUMI E.E. MESE GIUGNO 2018 - PALAZZINA TRISSINO;24-07-2018;938;0;52;1;Spese correnti;3;Acquisto di beni e servizi;2;Acquisto di servizi;5;Utenze e canoni;4;Energia elettrica;24-07-2018;
1868;2;0;"783,24";"865,64";GLOBAL POWER SPA;622385037F;(SOS. 1295/P) - ACCONTO Fatt.n. V0/80907  del 02/07/2018 CONSUMI E.E. MESE GIUGNO 2018 - VARIE;24-07-2018;938;0;52;1;Spese correnti;3;Acquisto di beni e servizi;2;Acquisto di servizi;5;Utenze e canoni;4;Energia elettrica;24-07-2018;
1869;1;0;"169,24";"376,75";GLOBAL POWER SPA;622385037F;(SOS. 1295/P) - ACCONTO Fatt.n. V0/80907  del 02/07/2018 CONSUMI E.E. MESE GIUGNO 2018 - VARIE;24-07-2018;1432;0;53;1;Spese correnti;3;Acquisto di beni e servizi;2;Acquisto di servizi;5;Utenze e canoni;4;Energia elettrica;24-07-2018;
1869;2;0;"207,51";"376,75";GLOBAL POWER SPA;622385037F;(SOS. 1297/P) - ACCONTO Fatt.n. V0/80906  del 02/07/2018 CONSUMI E.E. MESE GIUGNO 2018 - SCUOLE;24-07-2018;1432;0;53;1;Spese correnti;3;Acquisto di beni e servizi;2;Acquisto di servizi;5;Utenze e canoni;4;Energia elettrica;24-07-2018;
1870;1;0;"505,40";"505,40";GLOBAL POWER SPA;622385037F;(SOS. 1297/P) - ACCONTO Fatt.n. V0/80906  del 02/07/2018 CONSUMI E.E. MESE GIUGNO 2018 - SCUOLE;24-07-2018;1573;0;54;1;Spese correnti;3;Acquisto di beni e servizi;2;Acquisto di servizi;5;Utenze e canoni;4;Energia elettrica;24-07-2018;
1871;1;0;"306,98";"754,76";GLOBAL POWER SPA;622385037F;(SOS. 1295/P) - ACCONTO Fatt.n. V0/80907  del 02/07/2018 CONSUMI E.E. MESE GIUGNO 2018 - VARIE;24-07-2018;1651;1;55;1;Spese correnti;3;Acquisto di beni e servizi;2;Acquisto di servizi;5;Utenze e canoni;4;Energia elettrica;24-07-2018;
1871;2;0;"447,78";"754,76";GLOBAL POWER SPA;622385037F;(SOS. 1297/P) - ACCONTO Fatt.n. V0/80906  del 02/07/2018 CONSUMI E.E. MESE GIUGNO 2018 - SCUOLE;24-07-2018;1651;1;55;1;Spese correnti;3;Acquisto di beni e servizi;2;Acquisto di servizi;5;Utenze e canoni;4;Energia elettrica;24-07-2018;
1872;1;0;"683,20";"683,20";GLOBAL POWER SPA;622385037F;(SOS. 1295/P) - ACCONTO Fatt.n. V0/80907  del 02/07/2018 CONSUMI E.E. MESE GIUGNO 2018 - VARIE;24-07-2018;1810;0;56;1;Spese correnti;3;Acquisto di beni e servizi;2;Acquisto di servizi;5;Utenze e canoni;4;Energia elettrica;24-07-2018;
1873;1;0;"124,23";"124,23";GLOBAL POWER SPA;622385037F;(SOS. 1298) - ACCONTO Fatt.n. V0/80908  del 02/07/2018 CONSUMI E.E. MESE GIUGNO 2018 - CIMITERI;24-07-2018;2240;0;57;1;Spese correnti;3;Acquisto di beni e servizi;2;Acquisto di servizi;5;Utenze e canoni;4;Energia elettrica;24-07-2018;
1874;1;0;"82,12";"82,12";GLOBAL POWER SPA;622385037F;(SOS. 1295/P) - ACCONTO Fatt.n. V0/80907  del 02/07/2018 CONSUMI E.E. MESE GIUGNO 2018 - VARIE;24-07-2018;3147;0;58;1;Spese correnti;3;Acquisto di beni e servizi;2;Acquisto di servizi;5;Utenze e canoni;4;Energia elettrica;24-07-2018;
1875;1;0;"76,88";"3.228,41";GLOBAL POWER SPA;622385037F;(SOS. 1295/P) - ACCONTO Fatt.n. V0/80907  del 02/07/2018 CONSUMI E.E. MESE GIUGNO 2018 - VARIE;24-07-2018;3303;0;59;1;Spese correnti;3;Acquisto di beni e servizi;2;Acquisto di servizi;5;Utenze e canoni;4;Energia elettrica;24-07-2018;
1875;2;0;"3.151,53";"3.228,41";GLOBAL POWER SPA;622385037F;(SOS. 1299) - ACCONTO Fatt.n. V0/80905  del 02/07/2018 CONSUMI E.E. MESE GIUGNO 2018 - ILL.NE PUBBLICA;24-07-2018;3303;0;59;1;Spese correnti;3;Acquisto di beni e servizi;2;Acquisto di servizi;5;Utenze e canoni;4;Energia elettrica;24-07-2018;
1876;1;0;"17,77";"17,77";GLOBAL POWER SPA;622385037F;SALDO Fatt.n. V0/80903  del 02/07/2018 CONSUMI E.E. MESE GIUGNO 2018 - ECOCENTRO;24-07-2018;2685;0;60;1;Spese correnti;3;Acquisto di beni e servizi;2;Acquisto di servizi;5;Utenze e canoni;4;Energia elettrica;24-07-2018;
1877;1;0;"34,44";"179,12";GLOBAL POWER SPA;622385037F;ACCONTO Fatt.n. V0/80906  del 02/07/2018 CONSUMI E.E. MESE GIUGNO 2018 - SCUOLE;24-07-2018;259;0;51;1;Spese correnti;3;Acquisto di beni e servizi;2;Acquisto di servizi;5;Utenze e canoni;4;Energia elettrica;24-07-2018;
1877;2;0;"144,68";"179,12";GLOBAL POWER SPA;622385037F;ACCONTO Fatt.n. V0/80907  del 02/07/2018 CONSUMI E.E. MESE GIUGNO 2018 - VARIE;24-07-2018;259;0;51;1;Spese correnti;3;Acquisto di beni e servizi;2;Acquisto di servizi;5;Utenze e canoni;4;Energia elettrica;24-07-2018;
1878;1;0;"8,24";"180,56";GLOBAL POWER SPA;622385037F;SALDO Fatt.n. V0/80904  del 02/07/2018 CONSUMI E.E. MESE GIUGNO 2018 - PALAZZINA TRISSINO;24-07-2018;938;0;52;1;Spese correnti;3;Acquisto di beni e servizi;2;Acquisto di servizi;5;Utenze e canoni;4;Energia elettrica;24-07-2018;
1878;2;0;"172,32";"180,56";GLOBAL POWER SPA;622385037F;ACCONTO Fatt.n. V0/80907  del 02/07/2018 CONSUMI E.E. MESE GIUGNO 2018 - VARIE;24-07-2018;938;0;52;1;Spese correnti;3;Acquisto di beni e servizi;2;Acquisto di servizi;5;Utenze e canoni;4;Energia elettrica;24-07-2018;
1879;1;0;"16,92";"37,67";GLOBAL POWER SPA;622385037F;ACCONTO Fatt.n. V0/80907  del 02/07/2018 CONSUMI E.E. MESE GIUGNO 2018 - VARIE;24-07-2018;1432;0;53;1;Spese correnti;3;Acquisto di beni e servizi;2;Acquisto di servizi;5;Utenze e canoni;4;Energia elettrica;24-07-2018;
1879;2;0;"20,75";"37,67";GLOBAL POWER SPA;622385037F;ACCONTO Fatt.n. V0/80906  del 02/07/2018 CONSUMI E.E. MESE GIUGNO 2018 - SCUOLE;24-07-2018;1432;0;53;1;Spese correnti;3;Acquisto di beni e servizi;2;Acquisto di servizi;5;Utenze e canoni;4;Energia elettrica;24-07-2018;
1880;1;0;"50,54";"50,54";GLOBAL POWER SPA;622385037F;ACCONTO Fatt.n. V0/80906  del 02/07/2018 CONSUMI E.E. MESE GIUGNO 2018 - SCUOLE;24-07-2018;1573;0;54;1;Spese correnti;3;Acquisto di beni e servizi;2;Acquisto di servizi;5;Utenze e canoni;4;Energia elettrica;24-07-2018;
1881;1;0;"44,78";"112,32";GLOBAL POWER SPA;622385037F;SALDO Fatt.n. V0/80906  del 02/07/2018 CONSUMI E.E. MESE GIUGNO 2018 - SCUOLE;24-07-2018;1651;1;55;1;Spese correnti;3;Acquisto di beni e servizi;2;Acquisto di servizi;5;Utenze e canoni;4;Energia elettrica;24-07-2018;
1881;2;0;"67,54";"112,32";GLOBAL POWER SPA;622385037F;ACCONTO Fatt.n. V0/80907  del 02/07/2018 CONSUMI E.E. MESE GIUGNO 2018 - VARIE;24-07-2018;1651;1;55;1;Spese correnti;3;Acquisto di beni e servizi;2;Acquisto di servizi;5;Utenze e canoni;4;Energia elettrica;24-07-2018;
1882;1;0;"150,30";"150,30";GLOBAL POWER SPA;622385037F;ACCONTO Fatt.n. V0/80907  del 02/07/2018 CONSUMI E.E. MESE GIUGNO 2018 - VARIE;24-07-2018;1810;0;56;1;Spese correnti;3;Acquisto di beni e servizi;2;Acquisto di servizi;5;Utenze e canoni;4;Energia elettrica;24-07-2018;
1883;1;0;"27,33";"27,33";GLOBAL POWER SPA;622385037F;SALDO Fatt.n. V0/80908  del 02/07/2018 CONSUMI E.E. MESE GIUGNO 2018 - CIMITERI;24-07-2018;2240;0;57;1;Spese correnti;3;Acquisto di beni e servizi;2;Acquisto di servizi;5;Utenze e canoni;4;Energia elettrica;24-07-2018;
1884;1;0;"18,07";"18,07";GLOBAL POWER SPA;622385037F;ACCONTO Fatt.n. V0/80907  del 02/07/2018 CONSUMI E.E. MESE GIUGNO 2018 - VARIE;24-07-2018;3147;0;58;1;Spese correnti;3;Acquisto di beni e servizi;2;Acquisto di servizi;5;Utenze e canoni;4;Energia elettrica;24-07-2018;
1885;1;0;"16,91";"710,25";GLOBAL POWER SPA;622385037F;SALDO Fatt.n. V0/80907  del 02/07/2018 CONSUMI E.E. MESE GIUGNO 2018 - VARIE;24-07-2018;3303;0;59;1;Spese correnti;3;Acquisto di beni e servizi;2;Acquisto di servizi;5;Utenze e canoni;4;Energia elettrica;24-07-2018;
1885;2;0;"693,34";"710,25";GLOBAL POWER SPA;622385037F;SALDO Fatt.n. V0/80905  del 02/07/2018 CONSUMI E.E. MESE GIUGNO 2018 - ILL.NE PUBBLICA;24-07-2018;3303;0;59;1;Spese correnti;3;Acquisto di beni e servizi;2;Acquisto di servizi;5;Utenze e canoni;4;Energia elettrica;24-07-2018;
1886;1;0;"31.853,42";"31.853,42";SO.RA.RIS. SPA; ;SALDO Fatt.n. 000103/PA  del 29/06/2018 SERVIZIO NETTEZZA URBANA MESE GIUGNO 2018;25-07-2018;2691;0;117;1;Spese correnti;3;Acquisto di beni e servizi;2;Acquisto di servizi;15;Contratti di servizio pubblico;4;Contratti di servizio per la raccolta rifiuti;25-07-2018;
1887;1;0;"23,52";"23,52";COMUNE DI VICENZA; ;LIQUIDAZIONE SPESE DI NOTIFICA AL COMUNE DI VICENZA;25-07-2018;1120;1;234;1;Spese correnti;3;Acquisto di beni e servizi;2;Acquisto di servizi;99;Altri servizi;999;Altri servizi diversi n.a.c.;25-07-2018;
1888;1;0;"39.650,00";"39.650,00";DALLA RIVA SRL SOC. UNIP.;ZB0240ED49;SALDO Fatt.n. 103/2018  del 04/07/2018 MANUTENZIONE STRAORDINARIA PAVIMENTO IL LEGNO PALAZZETTO DELLO SPORT DI VIA CAPITELLO;25-07-2018;4511;0;517;2;Spese in conto capitale;2;Investimenti fissi lordi e acquisto di terreni;1;Beni materiali;9;Beni immobili;16;Impianti sportivi;25-07-2018;
1889;1;0;"55,00";"55,00";NOMODIDATTICA SRL; ;SALDO Fatt.n. 148/2018  del 04/07/2018 PARTECIPAZIONE CORSO SEGRETARIA COMUNALE;25-07-2018;150;0;460;1;Spese correnti;3;Acquisto di beni e servizi;2;Acquisto di servizi;4;Acquisto di servizi per formazione e addestramento del personale dell'ente;999;Acquisto di servizi per altre spese per formazione e addestramento n.a.c.;25-07-2018;
1890;1;0;"7.683,02";"7.683,02";GLOBAL POWER SERVICE SPA;6239603B46;SALDO Fatt.n. 2018-V5-139  del 06/07/2018 CANONE RISPARMIO ENERGETICO CONV. IP - MESE LUGLIO 2018;25-07-2018;3320;0;127;1;Spese correnti;3;Acquisto di beni e servizi;2;Acquisto di servizi;9;Manutenzione ordinaria e riparazioni;4;Manutenzione ordinaria e riparazioni di impianti e macchinari;25-07-2018;
1891;1;0;"921,10";"921,10";GLOBAL POWER SERVICE SPA;6239603B46;SALDO Fatt.n. 2018-V5-138  del 06/07/2018 CANONE MENSILE MANUTENZIONE ORDINARIA CONV. IP;25-07-2018;3302;0;128;1;Spese correnti;3;Acquisto di beni e servizi;2;Acquisto di servizi;9;Manutenzione ordinaria e riparazioni;4;Manutenzione ordinaria e riparazioni di impianti e macchinari;25-07-2018;
1892;1;0;"129,61";"129,61";NEULIFT Service Triveneto srl;ZB51FB9F17;SALDO Fatt.n. 100103  del 10/07/2018 MANUTENZIONE ASCENSORI PALAZZO MOCENIGO;25-07-2018;928;0;550;1;Spese correnti;3;Acquisto di beni e servizi;2;Acquisto di servizi;9;Manutenzione ordinaria e riparazioni;8;Manutenzione ordinaria e riparazioni di beni immobili;25-07-2018;
1893;1;0;"146,40";"146,40";EXTRA COOKING SYSTEM S.R.L.;Z9A23FB08C;SALDO Fatt.n. 951  del 30/06/2018 RIPARAZIONE CARRELLO;25-07-2018;1432;3;515;1;Spese correnti;3;Acquisto di beni e servizi;2;Acquisto di servizi;9;Manutenzione ordinaria e riparazioni;4;Manutenzione ordinaria e riparazioni di impianti e macchinari;25-07-2018;
1894;1;0;"1.403,24";"1.403,24";AREA QUATTRO S.N.C. DI CIELO F. E FURLAN PL;ZF823DB096;SALDO Fatt.n. 1/9  del 26/06/2018 RIPARAZIONE CANCELLO PALAZZO MOCENIGO LUPIA;25-07-2018;928;0;489;1;Spese correnti;3;Acquisto di beni e servizi;2;Acquisto di servizi;9;Manutenzione ordinaria e riparazioni;8;Manutenzione ordinaria e riparazioni di beni immobili;25-07-2018;
1895;1;0;"5.966,21";"5.966,21";S.I.A. Societa' Intercomunale Ambiente SRL; ;SALDO Fatt.n. 122/PA18  del 30/06/2018 CONFERIMENTO RSU MESE GIUGNO 2018;25-07-2018;2695;0;163;1;Spese correnti;3;Acquisto di beni e servizi;2;Acquisto di servizi;15;Contratti di servizio pubblico;5;Contratti di servizio per il conferimento in discarica dei rifiuti;25-07-2018;
1896;1;0;"1.922,57";"1.922,57";F.LLI URBANI SRL;ZB521BB575;SALDO Fatt.n. 25/PA  del 30/06/2018 TRASPORTO SMALTIMENTO EX DISCARICA DI VIA GALVANI;25-07-2018;2798;0;336;1;Spese correnti;3;Acquisto di beni e servizi;2;Acquisto di servizi;99;Altri servizi;999;Altri servizi diversi n.a.c.;25-07-2018;
1897;1;0;"2.705,55";"2.705,55";AP RETI GAS SPA;0000000000;SALDO Fatt.n. 16000540  del 03/07/2018 Contributo per Nuovo IDU Interrato - Det. n. 360 del 27.06.2018;25-07-2018;4067;0;518;2;Spese in conto capitale;2;Investimenti fissi lordi e acquisto di terreni;1;Beni materiali;9;Beni immobili;14;Opere per la sistemazione del suolo;25-07-2018;
1898;1;0;"29.091,21";"29.091,21";CONSORZIO DI POLIZIA LOCALE NORDEST VICENTINO; ;LIQUIDAZIONE QUOTA FINANZIARIA CONSORZIO DI POLIZIA LOCALE NORDEST VICENTINO. SECONDO TRIMESTRE 2018;25-07-2018;1306;0;72;1;Spese correnti;4;Trasferimenti correnti;1;Trasferimenti correnti a Amministrazioni Pubbliche;2;Trasferimenti correnti a Amministrazioni Locali;18;Trasferimenti correnti a Consorzi di enti locali;25-07-2018;
1899;1;0;"232,76";"232,76";CASSA DI RISPARMIO DEL VENETO SPA; ;PERMESSI CARICHE PUBBLICHE - STIVAN GIULIANO 12/2017 - COMUNE DI SANDRIGO;25-07-2018;21;0;132;1;Spese correnti;3;Acquisto di beni e servizi;2;Acquisto di servizi;1;Organi e incarichi istituzionali dell'amministrazione;2;Organi istituzionali dell'amministrazione - Rimborsi;25-07-2018;
1900;1;0;"2.037,00";"2.037,00";CASSA DI RISPARMIO DEL VENETO SPA; ;PERMESSI CARICHE PUBBLICHE - STIVAN GIULIANO 02/2018 - COMUNE DI SANDRIGO;25-07-2018;21;0;62;1;Spese correnti;3;Acquisto di beni e servizi;2;Acquisto di servizi;1;Organi e incarichi istituzionali dell'amministrazione;2;Organi istituzionali dell'amministrazione - Rimborsi;25-07-2018;
1901;1;0;"3.413,13";"3.413,13";SO.RA.RIS. SPA; ;ACCONTO Fatt.n. 000098/PA  del 21/06/2018 GESTIONE STAZIONE TRAVASO MESE GIUGNO 2018;25-07-2018;2691;0;117;1;Spese correnti;3;Acquisto di beni e servizi;2;Acquisto di servizi;15;Contratti di servizio pubblico;4;Contratti di servizio per la raccolta rifiuti;25-07-2018;
1902;1;0;"8.964,32";"8.964,32";SO.RA.RIS. SPA; ;SALDO Fatt.n. 000098/PA  del 21/06/2018 GESTIONE STAZIONE TRAVASO MESE GIUGNO 2018;25-07-2018;2695;0;118;1;Spese correnti;3;Acquisto di beni e servizi;2;Acquisto di servizi;15;Contratti di servizio pubblico;5;Contratti di servizio per il conferimento in discarica dei rifiuti;25-07-2018;
1903;1;0;"1.335,90";"1.335,90";BIOCONTROL SRL;Z79219890C;SALDO Fatt.n. 2/37  del 30/06/2018 ADULTICIDA ZANZARE;25-07-2018;2000;0;61;1;Spese correnti;3;Acquisto di beni e servizi;2;Acquisto di servizi;99;Altri servizi;999;Altri servizi diversi n.a.c.;25-07-2018;
1904;1;0;"56,00";"56,00";AZIENDA ULSS N. 8 BERICA;Z9E21AB929;SALDO Fatt.n. KZ  201800000094  del 11/07/2018 SERVIZI VETERINARI PRIMO TRIMESTRE 2018;25-07-2018;1990;0;78;1;Spese correnti;3;Acquisto di beni e servizi;2;Acquisto di servizi;99;Altri servizi;999;Altri servizi diversi n.a.c.;25-07-2018;
1905;1;0;"63,01";"63,01";CIVIS SPA;Z5D21A9503;SALDO Fatt.n. V9/0001860  del 02/07/2018 SERVIZIO VIGILANZA P..ZZA MATTEOTTI 10;25-07-2018;370;0;73;1;Spese correnti;3;Acquisto di beni e servizi;2;Acquisto di servizi;13;Servizi ausiliari per il funzionamento dell'ente;1;"Servizi di sorveglianza, custodia e accoglienza";25-07-2018;
1906;1;0;"37,81";"37,81";CIVIS SPA;Z5D21A9503;SALDO Fatt.n. V9/0001861  del 02/07/2018 SERVIZIO ISPETTIVO VIA VOLTA;25-07-2018;370;0;73;1;Spese correnti;3;Acquisto di beni e servizi;2;Acquisto di servizi;13;Servizi ausiliari per il funzionamento dell'ente;1;"Servizi di sorveglianza, custodia e accoglienza";25-07-2018;
1907;1;0;"15,00";"15,00";BANCO POSTA - POSTE ITALIANE SPA;ZF421B5C8C;IMPEGNO DI SPESA PER LA GESTIONE DEI CONTI CORRENTI POSTALI PER L'ANNO 2018.;26-07-2018;1115;0;71;1;Spese correnti;3;Acquisto di beni e servizi;2;Acquisto di servizi;3;Aggi di riscossione;999;Altri aggi di riscossione n.a.c.;26-07-2018;
1908;1;0;"2.111,47";"2.111,47";PASUBIO  TECNOLOGIA SRL;Z9A2397844;SALDO Fatt.n. E-312  del 24/05/2018 MANUTENZIONE IMPIANTO VIDEOSORVEGLIANZA;30-07-2018;761;0;433;1;Spese correnti;3;Acquisto di beni e servizi;2;Acquisto di servizi;99;Altri servizi;999;Altri servizi diversi n.a.c.;30-07-2018;
1910;1;0;"3.199,67";"3.199,67";SO.RA.RIS. SPA; ;ACCONTO Fatt.n. 000115/PA  del 18/07/2018 GESTIONE STAZIONE TRAVASO MESE GIUGNO 2018;30-07-2018;2691;0;117;1;Spese correnti;3;Acquisto di beni e servizi;2;Acquisto di servizi;15;Contratti di servizio pubblico;4;Contratti di servizio per la raccolta rifiuti;30-07-2018;
1911;1;0;"3.609,29";"3.609,29";SO.RA.RIS. SPA; ;ACCONTO Fatt.n. 000115/PA  del 18/07/2018 GESTIONE STAZIONE TRAVASO MESE GIUGNO 2018;30-07-2018;2695;0;118;1;Spese correnti;3;Acquisto di beni e servizi;2;Acquisto di servizi;15;Contratti di servizio pubblico;5;Contratti di servizio per il conferimento in discarica dei rifiuti;30-07-2018;
1912;1;0;"4.523,14";"4.523,14";SO.RA.RIS. SPA; ;SALDO Fatt.n. 000115/PA  del 18/07/2018 GESTIONE STAZIONE TRAVASO MESE GIUGNO 2018;30-07-2018;2695;0;543;1;Spese correnti;3;Acquisto di beni e servizi;2;Acquisto di servizi;15;Contratti di servizio pubblico;5;Contratti di servizio per il conferimento in discarica dei rifiuti;30-07-2018;
1913;1;0;"134,20";"134,20";COVER UP SRL;ZEF1962A6B;SALDO Fatt.n. 651B  del 30/06/2018 STAMPANTE MULTIFUNZIONE EPSON;31-07-2018;340;0;255;1;Spese correnti;3;Acquisto di beni e servizi;2;Acquisto di servizi;19;Servizi informatici e di telecomunicazioni;5;Servizi per i sistemi e relativa manutenzione;31-07-2018;
1914;1;0;"105,45";"5.101,45";REGIONE VENETO - GENIO CIVILE; ;IUV 0600 0000 5942 559 - PAGAMENTO CANONI DEMANIALI REGIONE VENETO  - ANNO 2018.;31-07-2018;3460;0;554;1;Spese correnti;3;Acquisto di beni e servizi;2;Acquisto di servizi;7;Utilizzo di beni di terzi;999;Altre spese sostenute per utilizzo di beni di terzi n.a.c.;31-07-2018;
1914;2;0;"105,45";"5.101,45";REGIONE VENETO - GENIO CIVILE; ;IUV 0600 00005943 064 - PAGAMENTO CANONI DEMANIALI REGIONE VENETO  - ANNO 2018.;31-07-2018;3460;0;554;1;Spese correnti;3;Acquisto di beni e servizi;2;Acquisto di servizi;7;Utilizzo di beni di terzi;999;Altre spese sostenute per utilizzo di beni di terzi n.a.c.;31-07-2018;
1914;3;0;"421,79";"5.101,45";REGIONE VENETO - GENIO CIVILE; ;IUV 0600 0000 5942 458 - PAGAMENTO CANONI DEMANIALI REGIONE VENETO  - ANNO 2018.;31-07-2018;3460;0;554;1;Spese correnti;3;Acquisto di beni e servizi;2;Acquisto di servizi;7;Utilizzo di beni di terzi;999;Altre spese sostenute per utilizzo di beni di terzi n.a.c.;31-07-2018;
1914;4;0;"421,79";"5.101,45";REGIONE VENETO - GENIO CIVILE; ;IUV 0600 0000 5942 862 - PAGAMENTO CANONI DEMANIALI REGIONE VENETO  - ANNO 2018.;31-07-2018;3460;0;554;1;Spese correnti;3;Acquisto di beni e servizi;2;Acquisto di servizi;7;Utilizzo di beni di terzi;999;Altre spese sostenute per utilizzo di beni di terzi n.a.c.;31-07-2018;
1914;5;0;"616,78";"5.101,45";REGIONE VENETO - GENIO CIVILE; ;IUV 0600 0000 5942 963 - PAGAMENTO CANONI DEMANIALI REGIONE VENETO  - ANNO 2018.;31-07-2018;3460;0;554;1;Spese correnti;3;Acquisto di beni e servizi;2;Acquisto di servizi;7;Utilizzo di beni di terzi;999;Altre spese sostenute per utilizzo di beni di terzi n.a.c.;31-07-2018;
1914;6;0;"620,28";"5.101,45";REGIONE VENETO - GENIO CIVILE; ;IUV 0600 0000 5942 660 - PAGAMENTO CANONI DEMANIALI REGIONE VENETO  - ANNO 2018.;31-07-2018;3460;0;554;1;Spese correnti;3;Acquisto di beni e servizi;2;Acquisto di servizi;7;Utilizzo di beni di terzi;999;Altre spese sostenute per utilizzo di beni di terzi n.a.c.;31-07-2018;
1914;7;0;"2.809,91";"5.101,45";REGIONE VENETO - GENIO CIVILE; ;IUV 0600 0000 5942 761 - PAGAMENTO CANONI DEMANIALI REGIONE VENETO  - ANNO 2018.;31-07-2018;3460;0;554;1;Spese correnti;3;Acquisto di beni e servizi;2;Acquisto di servizi;7;Utilizzo di beni di terzi;999;Altre spese sostenute per utilizzo di beni di terzi n.a.c.;31-07-2018;
1915;1;0;"-4.650,00";"7.381,41";SAPA SRL;6401791D0B;SALDO Fatt.n. 136/2018  del 30/06/2018 ACCREDITO ABBONAMENTI;31-07-2018;1740;0;858;1;Spese correnti;3;Acquisto di beni e servizi;2;Acquisto di servizi;15;Contratti di servizio pubblico;2;Contratti di servizio di trasporto scolastico;31-07-2018;
1915;2;0;"2.578,16";"7.381,41";SAPA SRL;6401791D0B;SALDO Fatt.n. 126/2018  del 09/06/2018 SERVIZIO TRASPORTO ALUNNI SCUOLA PRIMARIA E SECONDARIA;31-07-2018;1740;0;858;1;Spese correnti;3;Acquisto di beni e servizi;2;Acquisto di servizi;15;Contratti di servizio pubblico;2;Contratti di servizio di trasporto scolastico;31-07-2018;
1915;3;0;"9.453,25";"7.381,41";SAPA SRL;6401791D0B;SALDO Fatt.n. 115/2018  del 31/05/2018 SERVIZIO TRASPORTO ALUNNI SCUOLA PRIMARIA E SECONDARIA;31-07-2018;1740;0;858;1;Spese correnti;3;Acquisto di beni e servizi;2;Acquisto di servizi;15;Contratti di servizio pubblico;2;Contratti di servizio di trasporto scolastico;31-07-2018;
1916;1;0;"51.914,00";"51.914,00";AZIENDA ULSS N. 8 BERICA; ;SALDO Fatt.n. K   201800000502  del 10/07/2018 ACCONTO CONTRIBUTO SOCIALE 2018 - PRIMO TRIM. ACCONTO CONTRIBUTO SOCIALE 2018 - PRIMO TRIM.;31-07-2018;3250;0;546;1;Spese correnti;4;Trasferimenti correnti;1;Trasferimenti correnti a Amministrazioni Pubbliche;2;Trasferimenti correnti a Amministrazioni Locali;21;Trasferimenti correnti a Aziende sanitarie locali  a titolo di finanziamento di livelli di assistenza superiori ai livelli essenziali di assistenza (LEA);31-07-2018;
1917;1;0;"765,60";"765,60";IPAB di VICENZA; ;SALDO Fatt.n. 100/E  del 30/06/2018 RETTE OSPITI MESE GIUGNO 2018;31-07-2018;3201;0;152;1;Spese correnti;3;Acquisto di beni e servizi;2;Acquisto di servizi;15;Contratti di servizio pubblico;8;Contratti di servizio di assistenza sociale residenziale e semiresidenziale;31-07-2018;
1918;1;0;"404,40";"404,40";CASA DI RIPOSO DI DUEVILLE; ;SALDO Fatt.n. 58/VH  del 30/06/2018 RETTE GIUGNO 2018;31-07-2018;3201;0;154;1;Spese correnti;3;Acquisto di beni e servizi;2;Acquisto di servizi;15;Contratti di servizio pubblico;8;Contratti di servizio di assistenza sociale residenziale e semiresidenziale;31-07-2018;
1919;1;0;"556,61";"556,61";OMESSO NOMINATIVO NEL RISPETTO DELLA NORMATIVA SULLA PROTEZIONE DATI PERSONALI; ;EROGAZIONE CONTRIBUTI ECONOMICI AD INTEGRAZIONE DEL MINIMO VITALE. IMPEGNO DI SPESA E CONTESTUALE LIQUIDAZIONE.;31-07-2018;3222;0;556;1;Spese correnti;4;Trasferimenti correnti;2;Trasferimenti correnti a Famiglie;2;Interventi assistenziali;999;Altri assegni e sussidi assistenziali;31-07-2018;
1920;1;0;"500,00";"3.513,00";OMESSO NOMINATIVO NEL RISPETTO DELLA NORMATIVA SULLA PROTEZIONE DATI PERSONALI; ;EROGAZIONE CONTRIBUTI ECONOMICI AD INTEGRAZIONE DEL MINIMO VITALE. IMPEGNO DI SPESA E CONTESTUALE LIQUIDAZIONE.;31-07-2018;3220;0;555;1;Spese correnti;4;Trasferimenti correnti;2;Trasferimenti correnti a Famiglie;2;Interventi assistenziali;999;Altri assegni e sussidi assistenziali;31-07-2018;
1920;2;0;"500,00";"3.513,00";OMESSO NOMINATIVO NEL RISPETTO DELLA NORMATIVA SULLA PROTEZIONE DATI PERSONALI; ;EROGAZIONE CONTRIBUTI ECONOMICI AD INTEGRAZIONE DEL MINIMO VITALE. IMPEGNO DI SPESA E CONTESTUALE LIQUIDAZIONE.;31-07-2018;3220;0;555;1;Spese correnti;4;Trasferimenti correnti;2;Trasferimenti correnti a Famiglie;2;Interventi assistenziali;999;Altri assegni e sussidi assistenziali;31-07-2018;
1920;3;0;"200,00";"3.513,00";OMESSO NOMINATIVO NEL RISPETTO DELLA NORMATIVA SULLA PROTEZIONE DATI PERSONALI; ;EROGAZIONE CONTRIBUTI ECONOMICI AD INTEGRAZIONE DEL MINIMO VITALE. IMPEGNO DI SPESA E CONTESTUALE LIQUIDAZIONE.;31-07-2018;3220;0;555;1;Spese correnti;4;Trasferimenti correnti;2;Trasferimenti correnti a Famiglie;2;Interventi assistenziali;999;Altri assegni e sussidi assistenziali;31-07-2018;
1920;4;0;"200,00";"3.513,00";OMESSO NOMINATIVO NEL RISPETTO DELLA NORMATIVA SULLA PROTEZIONE DATI PERSONALI; ;EROGAZIONE CONTRIBUTI ECONOMICI AD INTEGRAZIONE DEL MINIMO VITALE. IMPEGNO DI SPESA E CONTESTUALE LIQUIDAZIONE.;31-07-2018;3220;0;555;1;Spese correnti;4;Trasferimenti correnti;2;Trasferimenti correnti a Famiglie;2;Interventi assistenziali;999;Altri assegni e sussidi assistenziali;31-07-2018;
1920;5;0;"518,00";"3.513,00";OMESSO NOMINATIVO NEL RISPETTO DELLA NORMATIVA SULLA PROTEZIONE DATI PERSONALI; ;EROGAZIONE CONTRIBUTI ECONOMICI AD INTEGRAZIONE DEL MINIMO VITALE. IMPEGNO DI SPESA E CONTESTUALE LIQUIDAZIONE.;31-07-2018;3220;0;555;1;Spese correnti;4;Trasferimenti correnti;2;Trasferimenti correnti a Famiglie;2;Interventi assistenziali;999;Altri assegni e sussidi assistenziali;31-07-2018;
1920;6;0;"480,00";"3.513,00";OMESSO NOMINATIVO NEL RISPETTO DELLA NORMATIVA SULLA PROTEZIONE DATI PERSONALI; ;EROGAZIONE CONTRIBUTI ECONOMICI AD INTEGRAZIONE DEL MINIMO VITALE. IMPEGNO DI SPESA E CONTESTUALE LIQUIDAZIONE.;31-07-2018;3220;0;555;1;Spese correnti;4;Trasferimenti correnti;2;Trasferimenti correnti a Famiglie;2;Interventi assistenziali;999;Altri assegni e sussidi assistenziali;31-07-2018;
1920;7;0;"600,00";"3.513,00";OMESSO NOMINATIVO NEL RISPETTO DELLA NORMATIVA SULLA PROTEZIONE DATI PERSONALI; ;EROGAZIONE CONTRIBUTI ECONOMICI AD INTEGRAZIONE DEL MINIMO VITALE. IMPEGNO DI SPESA E CONTESTUALE LIQUIDAZIONE.;31-07-2018;3220;0;555;1;Spese correnti;4;Trasferimenti correnti;2;Trasferimenti correnti a Famiglie;2;Interventi assistenziali;999;Altri assegni e sussidi assistenziali;31-07-2018;
1920;8;0;"515,00";"3.513,00";OMESSO NOMINATIVO NEL RISPETTO DELLA NORMATIVA SULLA PROTEZIONE DATI PERSONALI; ;EROGAZIONE CONTRIBUTI ECONOMICI AD INTEGRAZIONE DEL MINIMO VITALE. IMPEGNO DI SPESA E CONTESTUALE LIQUIDAZIONE.;31-07-2018;3220;0;555;1;Spese correnti;4;Trasferimenti correnti;2;Trasferimenti correnti a Famiglie;2;Interventi assistenziali;999;Altri assegni e sussidi assistenziali;31-07-2018;
1921;1;0;"507,42";"507,42";OMESSO NOMINATIVO NEL RISPETTO DELLA NORMATIVA SULLA PROTEZIONE DATI PERSONALI; ;EROGAZIONE CONTRIBUTI ECONOMICI AD INTEGRAZIONE DEL MINIMO VITALE. IMPEGNO DI SPESA E CONTESTUALE LIQUIDAZIONE.;31-07-2018;3220;0;555;1;Spese correnti;4;Trasferimenti correnti;2;Trasferimenti correnti a Famiglie;2;Interventi assistenziali;999;Altri assegni e sussidi assistenziali;31-07-2018;
1922;1;0;"33,18";"33,18";OMESSO NOMINATIVO NEL RISPETTO DELLA NORMATIVA SULLA PROTEZIONE DATI PERSONALI; ;EROGAZIONE CONTRIBUTI ECONOMICI AD INTEGRAZIONE DEL MINIMO VITALE. IMPEGNO DI SPESA E CONTESTUALE LIQUIDAZIONE.;31-07-2018;3211;0;557;1;Spese correnti;4;Trasferimenti correnti;2;Trasferimenti correnti a Famiglie;5;Altri trasferimenti a famiglie;999;Altri trasferimenti a famiglie n.a.c.;31-07-2018;
1923;1;0;"-1.999,99";"1.999,99";ASSOCIAZIONE DILETTANTISTICA CALCIO LUPIA;XA51613DF7;SALDO Fatt.n. 3/PA  del 13/07/2018 Storno totale fattura n. 2/PA del 14/06/2018;31-07-2018;2839;0;194;1;Spese correnti;3;Acquisto di beni e servizi;2;Acquisto di servizi;99;Altri servizi;999;Altri servizi diversi n.a.c.;31-07-2018;
1923;2;0;"1.999,99";"1.999,99";ASSOCIAZIONE DILETTANTISTICA CALCIO LUPIA;XA51613DF7;SALDO Fatt.n. 2/PA  del 14/06/2018 CONTRIBUTO SECONDO SEMESTRE 2018 COME DA CONVENZIONE IN ESSERE PER GESTIONE IMPIANTI SPORTIVI COMUNALI A LUPIA DI SANDRIGO;31-07-2018;2839;0;194;1;Spese correnti;3;Acquisto di beni e servizi;2;Acquisto di servizi;99;Altri servizi;999;Altri servizi diversi n.a.c.;31-07-2018;
1923;3;0;"1.999,99";"1.999,99";ASSOCIAZIONE DILETTANTISTICA CALCIO LUPIA;XA51613DF7;SALDO Fatt.n. 4/PA  del 13/07/2018 CONTRIBUTO SECONDO SEMESTRE 2018 CONVENZIONE GESTIONE IMPIANTI SPORTIVI COMUNALI A LUPIA DI SANDRIGO;31-07-2018;2839;0;194;1;Spese correnti;3;Acquisto di beni e servizi;2;Acquisto di servizi;99;Altri servizi;999;Altri servizi diversi n.a.c.;31-07-2018;
1983;1;0;"5.333,70";"5.333,70";AMMINISTRATORI COMUNALI E CONSIGLIERI; ;STIPENDI MESE DI: AGOSTO 18;31-07-2018;20;0;8;1;Spese correnti;3;Acquisto di beni e servizi;2;Acquisto di servizi;1;Organi e incarichi istituzionali dell'amministrazione;1;Organi istituzionali dell'amministrazione - Indennità;31-07-2018;
1986;1;0;"1.011,34";"1.011,34";MARGHERITA SOC. COOP. SOCIALE ONLUS;Z2421EC016;ACCONTO Fatt.n. 140/E  del 30/06/2018 SOSTEGNO SOCIO EDUCATIVO MESE GIUGNO 2018;03-08-2018;2741;0;172;1;Spese correnti;3;Acquisto di beni e servizi;2;Acquisto di servizi;99;Altri servizi;999;Altri servizi diversi n.a.c.;03-08-2018;
1987;1;0;"141,82";"141,82";MARGHERITA SOC. COOP. SOCIALE ONLUS;Z2421EC016;SALDO Fatt.n. 140/E  del 30/06/2018 SOSTEGNO SOCIO EDUCATIVO MESE GIUGNO 2018;03-08-2018;2741;0;249;1;Spese correnti;3;Acquisto di beni e servizi;2;Acquisto di servizi;99;Altri servizi;999;Altri servizi diversi n.a.c.;03-08-2018;
1988;1;0;"2.340,00";"2.340,00";SERENISSIMA RISTORAZIONE S.P.A.;6996960A0B;SALDO Fatt.n. 03884/4  del 30/06/2018 SERVIZIO MENSA MATERNA CAPOLUOGO MESE GIUGNO 2018;03-08-2018;1425;0;603;1;Spese correnti;3;Acquisto di beni e servizi;2;Acquisto di servizi;14;Servizi di ristorazione;999;Altri servizi di ristorazione;03-08-2018;
1989;1;0;"378,00";"378,00";MARGHERITA SOC. COOP. SOCIALE ONLUS;5342930550;SALDO Fatt.n. 139/E  del 30/06/2018 PROGETTO OASI MESE GIUGNO 2018;03-08-2018;3140;0;611;1;Spese correnti;3;Acquisto di beni e servizi;2;Acquisto di servizi;99;Altri servizi;999;Altri servizi diversi n.a.c.;03-08-2018;
1990;1;0;"3.671,33";"3.671,33";MARGHERITA SOC. COOP. SOCIALE ONLUS;5342930550;SALDO Fatt.n. 138/E  del 30/06/2018 SERVIZIO ASSISTENZA DOMICILIARE MESE GIUGNO 2018;03-08-2018;3140;0;611;1;Spese correnti;3;Acquisto di beni e servizi;2;Acquisto di servizi;99;Altri servizi;999;Altri servizi diversi n.a.c.;03-08-2018;
1991;1;0;"28,65";"28,65";ASCOTRADE SPA;1514046647;SALDO Fatt.n. 958595  del 23/07/2018 FORNITURA GAS;03-08-2018;934;0;175;1;Spese correnti;3;Acquisto di beni e servizi;2;Acquisto di servizi;5;Utenze e canoni;6;Gas;03-08-2018;
1992;1;0;"19,67";"19,67";ASCOTRADE SPA;1514046647;SALDO Fatt.n. 968246  del 23/07/2018 FORNITURA GAS;03-08-2018;934;0;175;1;Spese correnti;3;Acquisto di beni e servizi;2;Acquisto di servizi;5;Utenze e canoni;6;Gas;03-08-2018;
1993;1;0;"18,91";"18,91";ASCOTRADE SPA;1514046647;ACCONTO Fatt.n. 997372  del 23/07/2018 FORNITURA GAS;03-08-2018;934;0;175;1;Spese correnti;3;Acquisto di beni e servizi;2;Acquisto di servizi;5;Utenze e canoni;6;Gas;03-08-2018;
1994;1;0;"2,06";"2,06";ASCOTRADE SPA;1514046647;SALDO Fatt.n. 997372  del 23/07/2018 FORNITURA GAS;03-08-2018;934;0;457;1;Spese correnti;3;Acquisto di beni e servizi;2;Acquisto di servizi;5;Utenze e canoni;6;Gas;03-08-2018;
1995;1;0;"3.960,60";"3.960,60";PARROCCHIA DI ANCIGNANO "S. PANCRAZIO"; ;"EROGAZIONE ACCONTO (80%) FONDO OPERE DI URBANIZZAZIONE  - LR 20/08/1987, N.44 - PARROCCHIA DI SAN PANCRAZIO DI ANCIGNANO - FONDO ANNO 2017";03-08-2018;4039;0;484;2;Spese in conto capitale;4;Altri trasferimenti in conto capitale;24;Altri trasferimenti in conto capitale n.a.c. a Istituzioni Sociali Private;1;Altri trasferimenti in conto capitale n.a.c. a Istituzioni Sociali Private;1;Altri trasferimenti in conto capitale n.a.c. a Istituzioni Sociali Private;03-08-2018;
1996;1;0;"11.000,00";"11.000,00";ASSOCIAZIONE MOCENIGO LIFE; ;LIQUIDAZIONE CONTRIBUTO ALL'ASSOCIAZIONE MOCENIGO LIFE.;03-08-2018;1583;0;1008;1;Spese correnti;4;Trasferimenti correnti;4;Trasferimenti correnti a Istituzioni Sociali Private;1;Trasferimenti correnti a Istituzioni Sociali Private;1;Trasferimenti correnti a Istituzioni Sociali Private;03-08-2018;
1999;1;0;"750,00";"750,00";ASSOCIAZIONE PRO LOCO SANDRIGO; ;EROGAZIONI CONTRIBUTI AD ASSOCIAZIONI E SCUOLE DELL'INFANZIA. IMPEGNO DI SPESA E CONTESTUALE LIQUIDAZIONE.;03-08-2018;3580;0;561;1;Spese correnti;4;Trasferimenti correnti;4;Trasferimenti correnti a Istituzioni Sociali Private;1;Trasferimenti correnti a Istituzioni Sociali Private;1;Trasferimenti correnti a Istituzioni Sociali Private;03-08-2018;
2000;1;0;"300,00";"300,00";ASILO INFANTILE "PRINCIPE UMBERTO"; ;EROGAZIONI CONTRIBUTI AD ASSOCIAZIONI E SCUOLE DELL'INFANZIA. IMPEGNO DI SPESA E CONTESTUALE LIQUIDAZIONE.;03-08-2018;1401;0;562;1;Spese correnti;4;Trasferimenti correnti;4;Trasferimenti correnti a Istituzioni Sociali Private;1;Trasferimenti correnti a Istituzioni Sociali Private;1;Trasferimenti correnti a Istituzioni Sociali Private;03-08-2018;
2001;1;0;"-9.333,00";"9.333,00";GARDEN FIORI E FOGLIE SOLUTION di De Pretto S.;Z85235F857;SALDO Fatt.n. 000012-2018-PA  del 01/06/2018 A TOTALE STORNO FATT. NR. 9 E NR. 10 DEL 17/05/2018;03-08-2018;4237;0;385;2;Spese in conto capitale;2;Investimenti fissi lordi e acquisto di terreni;1;Beni materiali;99;Altri beni materiali;999;Altri beni materiali diversi;03-08-2018;
2001;2;0;"4.636,00";"9.333,00";GARDEN FIORI E FOGLIE SOLUTION di De Pretto S.;Z85235F857;SALDO Fatt.n. 000009-2018-PA  del 17/05/2018 POTATURA ALBERI DI VIA GALVANI;03-08-2018;4237;0;385;2;Spese in conto capitale;2;Investimenti fissi lordi e acquisto di terreni;1;Beni materiali;99;Altri beni materiali;999;Altri beni materiali diversi;03-08-2018;
2001;3;0;"4.697,00";"9.333,00";GARDEN FIORI E FOGLIE SOLUTION di De Pretto S.;Z85235F857;SALDO Fatt.n. 000010-2018-PA  del 17/05/2018 POTATURA ALBERI DI VIA GALVANI;03-08-2018;4237;0;385;2;Spese in conto capitale;2;Investimenti fissi lordi e acquisto di terreni;1;Beni materiali;99;Altri beni materiali;999;Altri beni materiali diversi;03-08-2018;
2001;4;0;"9.333,00";"9.333,00";GARDEN FIORI E FOGLIE SOLUTION di De Pretto S.;Z85235F857;SALDO Fatt.n. 000013-2018-PA  del 01/06/2018 INTERVENTO POTATURA ALBERI;03-08-2018;4237;0;385;2;Spese in conto capitale;2;Investimenti fissi lordi e acquisto di terreni;1;Beni materiali;99;Altri beni materiali;999;Altri beni materiali diversi;03-08-2018;
2002;1;0;"111,79";"111,79";I.C.A. IMPOSTE COMUNALI AFFINI SRL;ZF2106F780;ACCONTO Fatt.n. FY0001968  del 06/07/2018 RISCOSSIONE COATTIVA;06-08-2018;1115;0;315;1;Spese correnti;3;Acquisto di beni e servizi;2;Acquisto di servizi;3;Aggi di riscossione;999;Altri aggi di riscossione n.a.c.;06-08-2018;
2003;1;0;"91,08";"91,08";I.C.A. IMPOSTE COMUNALI AFFINI SRL;ZF2106F780;SALDO Fatt.n. FY0001968  del 06/07/2018 RISCOSSIONE COATTIVA;06-08-2018;1115;0;315;1;Spese correnti;3;Acquisto di beni e servizi;2;Acquisto di servizi;3;Aggi di riscossione;999;Altri aggi di riscossione n.a.c.;06-08-2018;
2004;1;0;"247,84";"247,84";I.C.A. IMPOSTE COMUNALI AFFINI SRL;Z281E597AB;ACCONTO Fatt.n. FY0002011  del 06/07/2018 RISCOSSIONE COATTIVA;06-08-2018;1115;0;315;1;Spese correnti;3;Acquisto di beni e servizi;2;Acquisto di servizi;3;Aggi di riscossione;999;Altri aggi di riscossione n.a.c.;06-08-2018;
2005;1;0;"82,01";"82,01";I.C.A. IMPOSTE COMUNALI AFFINI SRL;Z281E597AB;ACCONTO Fatt.n. FY0002011  del 06/07/2018 RISCOSSIONE COATTIVA;06-08-2018;1115;0;315;1;Spese correnti;3;Acquisto di beni e servizi;2;Acquisto di servizi;3;Aggi di riscossione;999;Altri aggi di riscossione n.a.c.;06-08-2018;
2006;1;0;"230,38";"230,38";I.C.A. IMPOSTE COMUNALI AFFINI SRL;Z281E597AB;SALDO Fatt.n. FY0002011  del 06/07/2018 RISCOSSIONE COATTIVA;06-08-2018;1115;0;315;1;Spese correnti;3;Acquisto di beni e servizi;2;Acquisto di servizi;3;Aggi di riscossione;999;Altri aggi di riscossione n.a.c.;06-08-2018;
2007;1;0;"864,00";"864,00";TESORERIA PROV.LE DELLO STATO-SERV.PAG.TO RESI DA VV.F.; ;SCIA ANTINCENDIO PALESTRA POLIFUNZIONALE DI VIA CAPITELLO. LIQUIDAZIONE DIRITTI DI SEGRETERIA;08-08-2018;740;0;553;1;Spese correnti;3;Acquisto di beni e servizi;2;Acquisto di servizi;10;Consulenze;1;"Incarichi libero professionali di studi, ricerca e consulenza";08-08-2018;
2008;1;0;"873,08";"873,08";MINISTERO DELL'INTERNO; ;CIE EMESSE DAL 1.07.2018 AL 15.07.2018 - LIQUIDAZIONE COMPETENZE DOVUTE AL MINISTERO;08-08-2018;901;0;147;1;Spese correnti;4;Trasferimenti correnti;1;Trasferimenti correnti a Amministrazioni Pubbliche;1;Trasferimenti correnti a Amministrazioni Centrali;1;Trasferimenti correnti a Ministeri;08-08-2018;
2009;1;0;"906,66";"906,66";MINISTERO DELL'INTERNO; ;CIE EMESSE DAL 16.07.2018 AL 31.07.2018 - LIQUIDAZIONE COMPETENZE DOVUTE AL MINISTERO;08-08-2018;901;0;147;1;Spese correnti;4;Trasferimenti correnti;1;Trasferimenti correnti a Amministrazioni Pubbliche;1;Trasferimenti correnti a Amministrazioni Centrali;1;Trasferimenti correnti a Ministeri;08-08-2018;
2010;1;0;"49,67";"49,67";BANCO POSTA - POSTE ITALIANE SPA;ZF421B5C8C;IMPEGNO DI SPESA PER LA GESTIONE DEI CONTI CORRENTI POSTALI PER L'ANNO 2018.;10-08-2018;1115;0;71;1;Spese correnti;3;Acquisto di beni e servizi;2;Acquisto di servizi;3;Aggi di riscossione;999;Altri aggi di riscossione n.a.c.;10-08-2018;
2011;1;0;"464,85";"464,85";FONDAZIONE IFEL; ;IMPEGNO DI SPESA PER CONTRIBUTO IFEL 2018;16-08-2018;1117;0;70;1;Spese correnti;4;Trasferimenti correnti;3;Trasferimenti correnti a Imprese;99;Trasferimenti correnti a altre imprese;999;Trasferimenti correnti a altre imprese;16-08-2018;
2012;1;0;"467,08";"467,08";I.P.A.B. SUOR DIODATA BERTOLO; ;SALDO Fatt.n. 109/E  del 24/07/2018 SERVIZI VARI OSPITI MESE GIUGNO 2018;20-08-2018;3201;0;151;1;Spese correnti;3;Acquisto di beni e servizi;2;Acquisto di servizi;15;Contratti di servizio pubblico;8;Contratti di servizio di assistenza sociale residenziale e semiresidenziale;20-08-2018;
2013;1;0;"648,00";"648,00";I.P.A.B. SUOR DIODATA BERTOLO; ;SALDO Fatt.n. 112/E  del 24/07/2018 RETTE OSPITI MESE LUGLIO 2018;20-08-2018;3201;0;151;1;Spese correnti;3;Acquisto di beni e servizi;2;Acquisto di servizi;15;Contratti di servizio pubblico;8;Contratti di servizio di assistenza sociale residenziale e semiresidenziale;20-08-2018;
2014;1;0;"534,00";"534,00";I.P.A.B. SUOR DIODATA BERTOLO; ;SALDO Fatt.n. 113/E  del 24/07/2018 RETTE OSPITI MESE LUGLIO 2018;20-08-2018;3201;0;151;1;Spese correnti;3;Acquisto di beni e servizi;2;Acquisto di servizi;15;Contratti di servizio pubblico;8;Contratti di servizio di assistenza sociale residenziale e semiresidenziale;20-08-2018;
2015;1;0;"6.144,16";"6.144,16";SO.RA.RIS. SPA;0000000000;ACCONTO Fatt.n. 000274/PA  del 30/12/2017 GESTIONE STAZIONE TRAVASO MESE DICEMBRE 2017;20-08-2018;2691;0;398;1;Spese correnti;3;Acquisto di beni e servizi;2;Acquisto di servizi;15;Contratti di servizio pubblico;4;Contratti di servizio per la raccolta rifiuti;20-08-2018;
2016;1;0;"714,55";"714,55";SO.RA.RIS. SPA; ;ACCONTO Fatt.n. 000274/PA  del 30/12/2017 GESTIONE STAZIONE TRAVASO MESE DICEMBRE 2017;20-08-2018;2691;0;542;1;Spese correnti;3;Acquisto di beni e servizi;2;Acquisto di servizi;15;Contratti di servizio pubblico;4;Contratti di servizio per la raccolta rifiuti;20-08-2018;
2017;1;0;"1.577,77";"1.577,77";SO.RA.RIS. SPA;0000000000;SALDO Fatt.n. 000274/PA  del 30/12/2017 GESTIONE STAZIONE TRAVASO MESE DICEMBRE 2017;20-08-2018;2695;0;399;1;Spese correnti;3;Acquisto di beni e servizi;2;Acquisto di servizi;15;Contratti di servizio pubblico;5;Contratti di servizio per il conferimento in discarica dei rifiuti;20-08-2018;
2018;1;0;"576,49";"576,49";GLOBAL POWER SERVICE SPA;Z922460511;SALDO Fatt.n. 2018-V5-149  del 24/07/2018 PRONTO INTERVENTO VIA PIAVE;20-08-2018;3320;0;549;1;Spese correnti;3;Acquisto di beni e servizi;2;Acquisto di servizi;9;Manutenzione ordinaria e riparazioni;4;Manutenzione ordinaria e riparazioni di impianti e macchinari;20-08-2018;
2019;1;0;"750,64";"750,64";LA SEMAFORICA SRL;Z34245A428;ACCONTO Fatt.n. 1800215/8  del 30/07/2018 INTERVENTO TECNICO IMPIANTO SEMAFORICO;20-08-2018;3342;0;547;1;Spese correnti;3;Acquisto di beni e servizi;2;Acquisto di servizi;99;Altri servizi;999;Altri servizi diversi n.a.c.;20-08-2018;
2020;1;0;"42,36";"42,36";LA SEMAFORICA SRL;Z34245A428;SALDO Fatt.n. 1800215/8  del 30/07/2018 INTERVENTO TECNICO IMPIANTO SEMAFORICO;20-08-2018;3380;0;548;1;Spese correnti;3;Acquisto di beni e servizi;1;Acquisto di beni;2;Altri beni di consumo;999;Altri beni e materiali di consumo n.a.c.;20-08-2018;
2021;1;0;"1.061,40";"1.061,40";PREFABBRICATI ANCORA SRL;Z30248283A;SALDO Fatt.n. 3  del 31/07/2018 FORNITURA ALLOGGIAMENTO PER GRUPPO DI MISURA GAS DA INSTALLARE IN VIA M.S. ARENA;20-08-2018;960;0;558;1;Spese correnti;3;Acquisto di beni e servizi;1;Acquisto di beni;2;Altri beni di consumo;999;Altri beni e materiali di consumo n.a.c.;20-08-2018;
2022;1;0;"720,17";"720,17";CENTRO BIBLIOTECHE LOVAT SRL;ZAC2287ADB;SALDO Fatt.n. 305-18PA  del 18/07/2018 FORNITURA LIBRI BIBLIOTECA;20-08-2018;1795;0;260;1;Spese correnti;3;Acquisto di beni e servizi;1;Acquisto di beni;1;"Giornali, riviste e pubblicazioni";2;Pubblicazioni;20-08-2018;
2023;1;0;"4.000,00";"4.000,00";FONDAZIONE UNIVERSITA' ADULTI/ANZIANI DI VICENZA;ZD0214877E;ACCONTO Fatt.n. 05E  del 09/07/2018 SALDO COMPETENZE UNIVERSITA' ADULTI/ANZIANI 2017/18;20-08-2018;3161;0;775;1;Spese correnti;3;Acquisto di beni e servizi;2;Acquisto di servizi;99;Altri servizi;999;Altri servizi diversi n.a.c.;20-08-2018;
2024;1;0;"6.000,00";"6.000,00";FONDAZIONE UNIVERSITA' ADULTI/ANZIANI DI VICENZA;ZD0214877E;SALDO Fatt.n. 05E  del 09/07/2018 SALDO COMPETENZE UNIVERSITA' ADULTI/ANZIANI 2017/18;20-08-2018;3161;0;775;1;Spese correnti;3;Acquisto di beni e servizi;2;Acquisto di servizi;99;Altri servizi;999;Altri servizi diversi n.a.c.;20-08-2018;
2025;1;0;"267,89";"267,89";IPAB COMM. A MICHELAZZO; ;SALDO Fatt.n. 59/B  del 31/07/2018 RETTE OSPITI MESE LUGLIO 2018;20-08-2018;3201;0;153;1;Spese correnti;3;Acquisto di beni e servizi;2;Acquisto di servizi;15;Contratti di servizio pubblico;8;Contratti di servizio di assistenza sociale residenziale e semiresidenziale;20-08-2018;
2026;1;0;"400,00";"800,00";OMESSO NOMINATIVO NEL RISPETTO DELLA NORMATIVA SULLA PROTEZIONE DATI PERSONALI; ;PROGETTI DI INTEGRAZIONE SOCIALE - RIA - CITTADINANZE REINCONTRATE 4^. IMPEGNO DI SPESA E CONTESTUALE LIQUIDAZIONE PRIMA MENSILITA';20-08-2018;3248;0;573;1;Spese correnti;4;Trasferimenti correnti;3;Trasferimenti correnti a Imprese;99;Trasferimenti correnti a altre imprese;999;Trasferimenti correnti a altre imprese;20-08-2018;
2026;2;0;"400,00";"800,00";OMESSO NOMINATIVO NEL RISPETTO DELLA NORMATIVA SULLA PROTEZIONE DATI PERSONALI; ;PROGETTI DI INTEGRAZIONE SOCIALE - RIA - CITTADINANZE REINCONTRATE 4^. IMPEGNO DI SPESA E CONTESTUALE LIQUIDAZIONE PRIMA MENSILITA';20-08-2018;3248;0;573;1;Spese correnti;4;Trasferimenti correnti;3;Trasferimenti correnti a Imprese;99;Trasferimenti correnti a altre imprese;999;Trasferimenti correnti a altre imprese;20-08-2018;
2027;1;0;"169,01";"169,01";KUWAIT PETROLEUM ITALIA SPA;ZE3176A2E8;ACCONTO Fatt.n. PJ00209011  del 31/07/2018 CONSUMO CARBURANTE MESE LUGLIO 2018;20-08-2018;3182;0;252;1;Spese correnti;3;Acquisto di beni e servizi;1;Acquisto di beni;2;Altri beni di consumo;2;"Carburanti, combustibili e lubrificanti";20-08-2018;
2028;1;0;"1.111,70";"1.111,70";KUWAIT PETROLEUM ITALIA SPA;ZE3176A2E8;SALDO Fatt.n. PJ00209011  del 31/07/2018 CONSUMO CARBURANTE MESE LUGLIO 2018;20-08-2018;780;0;251;1;Spese correnti;3;Acquisto di beni e servizi;1;Acquisto di beni;2;Altri beni di consumo;2;"Carburanti, combustibili e lubrificanti";20-08-2018;
2029;1;0;"350,00";"350,00";CENTRO STUDI AMMINISTRATIVI DELLA MARCA TREVIGIANA; ;SALDO Fatt.n. 164/2018  del 07/08/2018 PARTECIPAZIONE CORSO DI FORMAZIONE;20-08-2018;150;0;441;1;Spese correnti;3;Acquisto di beni e servizi;2;Acquisto di servizi;4;Acquisto di servizi per formazione e addestramento del personale dell'ente;999;Acquisto di servizi per altre spese per formazione e addestramento n.a.c.;20-08-2018;
2030;1;0;"331,84";"331,84";COOP.SOCIALE DI SOLIDARIETA' S.MARCO a r.l. O.N.L.U.S.;Z3D24440B6;SALDO Fatt.n. 130/01  del 31/07/2018 SERVIZIO MONTAGGIO SCAFFALI E SISTEMAZIONE ARICHIVIO PRESSO PALAZZO MARCONI;20-08-2018;928;0;544;1;Spese correnti;3;Acquisto di beni e servizi;2;Acquisto di servizi;9;Manutenzione ordinaria e riparazioni;8;Manutenzione ordinaria e riparazioni di beni immobili;20-08-2018;
2031;1;0;"1.220,00";"1.220,00";FERRAMENTA FANTIN RENATO;ZC321B8544;ACCONTO Fatt.n. 02/2018  del 30/06/2018 MATERIALE FERRAMENTA VARIO;20-08-2018;1640;0;296;1;Spese correnti;3;Acquisto di beni e servizi;1;Acquisto di beni;2;Altri beni di consumo;999;Altri beni e materiali di consumo n.a.c.;20-08-2018;
2032;1;0;"610,00";"610,00";FERRAMENTA FANTIN RENATO;ZC321B8544;ACCONTO Fatt.n. 02/2018  del 30/06/2018 MATERIALE FERRAMENTA VARIO;20-08-2018;260;0;295;1;Spese correnti;3;Acquisto di beni e servizi;1;Acquisto di beni;2;Altri beni di consumo;999;Altri beni e materiali di consumo n.a.c.;20-08-2018;
2033;1;0;"715,74";"715,74";FERRAMENTA FANTIN RENATO;ZC321B8544;SALDO Fatt.n. 02/2018  del 30/06/2018 MATERIALE FERRAMENTA VARIO;20-08-2018;960;0;107;1;Spese correnti;3;Acquisto di beni e servizi;1;Acquisto di beni;2;Altri beni di consumo;999;Altri beni e materiali di consumo n.a.c.;20-08-2018;
2034;1;0;"1.073,60";"1.073,60";MERENTI DUILIO;Z0F2382CA9;SALDO Fatt.n. 000002-2018-PA  del 08/08/2018 FORNITURA CLIMATIZZATORE PER CENTRO OASI;21-08-2018;4008;0;389;2;Spese in conto capitale;2;Investimenti fissi lordi e acquisto di terreni;1;Beni materiali;5;Attrezzature;999;Attrezzature n.a.c.;21-08-2018;
2035;1;0;"549,00";"549,00";MERENTI DUILIO;Z8A238674E;SALDO Fatt.n. 000003-2018-PA  del 08/08/2018 SMONTAGGIO E INSTALLAZIONE CLIMATIZZATORE CENTRO OASI;21-08-2018;928;0;425;1;Spese correnti;3;Acquisto di beni e servizi;2;Acquisto di servizi;9;Manutenzione ordinaria e riparazioni;8;Manutenzione ordinaria e riparazioni di beni immobili;21-08-2018;
2036;1;0;"226,31";"226,31";TRE R SRL;Z102335C7B;SALDO Fatt.n. 29/P  del 31/07/2018 RIPARAZIONE ELEVATORE;21-08-2018;2242;0;347;1;Spese correnti;3;Acquisto di beni e servizi;2;Acquisto di servizi;9;Manutenzione ordinaria e riparazioni;8;Manutenzione ordinaria e riparazioni di beni immobili;21-08-2018;
2037;1;0;"921,10";"921,10";GLOBAL POWER SERVICE SPA;6239603B46;SALDO Fatt.n. 2018-V5-160  del 01/08/2018 CANONE MENSILE MANUTENZIONE ORDINARIA;21-08-2018;3302;0;128;1;Spese correnti;3;Acquisto di beni e servizi;2;Acquisto di servizi;9;Manutenzione ordinaria e riparazioni;4;Manutenzione ordinaria e riparazioni di impianti e macchinari;21-08-2018;
2038;1;0;"7.683,02";"7.683,02";GLOBAL POWER SERVICE SPA;6239603B46;SALDO Fatt.n. 2018-V5-161  del 01/08/2018 CANONE RISPARMIO ENERGETICO CONV.NE IP  -  AGOSTO 2018;21-08-2018;3320;0;127;1;Spese correnti;3;Acquisto di beni e servizi;2;Acquisto di servizi;9;Manutenzione ordinaria e riparazioni;4;Manutenzione ordinaria e riparazioni di impianti e macchinari;21-08-2018;
2039;1;0;"1.023,99";"1.023,99";MATERIALE EDILE DONA' SRL;Z5A21B8566;SALDO Fatt.n. 0000010  del 31/07/2018 FORNITURA MATERIALE VARIO;21-08-2018;3420;0;113;1;Spese correnti;3;Acquisto di beni e servizi;1;Acquisto di beni;2;Altri beni di consumo;999;Altri beni e materiali di consumo n.a.c.;21-08-2018;
2040;1;0;"67,10";"67,10";TRE R SRL;Z2F242024E;SALDO Fatt.n. 31/P  del 31/07/2018 USCITA IN NOLEGGIO;21-08-2018;763;0;524;1;Spese correnti;3;Acquisto di beni e servizi;1;Acquisto di beni;2;Altri beni di consumo;999;Altri beni e materiali di consumo n.a.c.;21-08-2018;
2041;1;0;"7.233,99";"7.233,99";AZIENDA ULSS N. 8 BERICA; ;SALDO Fatt.n. K   201800000640  del 10/08/2018 SERVIZIO PROTEZIONE TUTELA MINORI MESE MARZO 2018;21-08-2018;3251;0;417;1;Spese correnti;4;Trasferimenti correnti;1;Trasferimenti correnti a Amministrazioni Pubbliche;2;Trasferimenti correnti a Amministrazioni Locali;21;Trasferimenti correnti a Aziende sanitarie locali  a titolo di finanziamento di livelli di assistenza superiori ai livelli essenziali di assistenza (LEA);21-08-2018;
2042;1;0;"398,48";"398,48";MARGHERITA SOC. COOP. SOCIALE ONLUS;Z2421EC016;SALDO Fatt.n. 180/E  del 31/07/2018 SERVIZIO DI SOSTEGNO SOCIO EDUCATIVO MESE LUGLIO 2018;21-08-2018;2741;0;249;1;Spese correnti;3;Acquisto di beni e servizi;2;Acquisto di servizi;99;Altri servizi;999;Altri servizi diversi n.a.c.;21-08-2018;
2043;1;0;"3.869,78";"3.869,78";MARGHERITA SOC. COOP. SOCIALE ONLUS;5342930550;SALDO Fatt.n. 165/E  del 31/07/2018 SERVIZIO DI ASSISTENZA DOMICILIARE MESE LUGLIO 2018;21-08-2018;3140;0;611;1;Spese correnti;3;Acquisto di beni e servizi;2;Acquisto di servizi;99;Altri servizi;999;Altri servizi diversi n.a.c.;21-08-2018;
2044;1;0;"378,00";"378,00";MARGHERITA SOC. COOP. SOCIALE ONLUS;5342930550;SALDO Fatt.n. 166/E  del 31/07/2018 PROGETTO OASI MESE LUGLIO 2018;21-08-2018;3140;0;611;1;Spese correnti;3;Acquisto di beni e servizi;2;Acquisto di servizi;99;Altri servizi;999;Altri servizi diversi n.a.c.;21-08-2018;
2045;1;0;"454,38";"454,38";CASA DI RIPOSO DI DUEVILLE; ;SALDO Fatt.n. 71/VH  del 31/07/2018 RETTE MESE LUGLIO 2018;21-08-2018;3201;0;154;1;Spese correnti;3;Acquisto di beni e servizi;2;Acquisto di servizi;15;Contratti di servizio pubblico;8;Contratti di servizio di assistenza sociale residenziale e semiresidenziale;21-08-2018;
2046;1;0;"821,60";"821,60";IPAB di VICENZA; ;SALDO Fatt.n. 119/E  del 31/07/2018 RETTE OSPITI MESE LUGLIO 2018;21-08-2018;3201;0;152;1;Spese correnti;3;Acquisto di beni e servizi;2;Acquisto di servizi;15;Contratti di servizio pubblico;8;Contratti di servizio di assistenza sociale residenziale e semiresidenziale;21-08-2018;
2047;1;0;"952,86";"952,86";COMUNE DI VICENZA; ;CENTRO PER L'AFFIDO E LA SOLIDARIETA' FAMILIARE - SALDO FINANZIAMENTO 2017.;21-08-2018;2746;0;497;1;Spese correnti;4;Trasferimenti correnti;1;Trasferimenti correnti a Amministrazioni Pubbliche;2;Trasferimenti correnti a Amministrazioni Locali;3;Trasferimenti correnti a Comuni;21-08-2018;
2055;1;0;"3.447,54";"3.447,54";PARROCCHIA SANDRIGO "S. MARIA E S.S. FILIPPO E GIACOMO";0000000000;Erogazione dell'acconto e del saldo (100%) del fondo per le opere di urbanizzazione  -  LR 20 agosto 1987 n. 44 - PARROCCHIA DI S. MARIA E SS. FILIPPO E GIACOMO;21-08-2018;4039;0;512;2;Spese in conto capitale;4;Altri trasferimenti in conto capitale;24;Altri trasferimenti in conto capitale n.a.c. a Istituzioni Sociali Private;1;Altri trasferimenti in conto capitale n.a.c. a Istituzioni Sociali Private;1;Altri trasferimenti in conto capitale n.a.c. a Istituzioni Sociali Private;21-08-2018;
2056;1;0;"8.076,49";"8.076,49";PARROCCHIA SANDRIGO "S. MARIA E S.S. FILIPPO E GIACOMO";0000000000;Erogazione dell'acconto e del saldo (100%) del fondo per le opere di urbanizzazione  -  LR 20 agosto 1987 n. 44 - PARROCCHIA DI S. MARIA E SS. FILIPPO E GIACOMO;21-08-2018;4039;0;454;2;Spese in conto capitale;4;Altri trasferimenti in conto capitale;24;Altri trasferimenti in conto capitale n.a.c. a Istituzioni Sociali Private;1;Altri trasferimenti in conto capitale n.a.c. a Istituzioni Sociali Private;1;Altri trasferimenti in conto capitale n.a.c. a Istituzioni Sociali Private;21-08-2018;
2057;1;0;"2.049,23";"2.049,23";PARROCCHIA DI S. STEFANO PROMARTIRE;0000000000;Erogazione dell'acconto e del saldo (100%) del fondo per le opere di urbanizzazione  -  LR 20 agosto 1987 n. 44 - PARROCCHIA DI S. STEFANO PROTOMARTIRE;21-08-2018;4039;0;455;2;Spese in conto capitale;4;Altri trasferimenti in conto capitale;24;Altri trasferimenti in conto capitale n.a.c. a Istituzioni Sociali Private;1;Altri trasferimenti in conto capitale n.a.c. a Istituzioni Sociali Private;1;Altri trasferimenti in conto capitale n.a.c. a Istituzioni Sociali Private;21-08-2018;
2061;1;0;"6.784,80";"6.784,80";AGENZIA DELLE ENTRATE; ;VERSAMENTO IVA COMMERCIALE LUGLIO 2018;21-08-2018;3760;0;0;1;Spese correnti;10;Altre spese correnti;3;Versamenti IVA a debito;1;Versamenti IVA a debito per le gestioni commerciali;1;Versamenti IVA a debito per le gestioni commerciali;21-08-2018;
2065;1;0;"60,00";"60,00";GLOBAL POWER SPA;622385037F;(SOS. 1409) - ACCONTO Fatt.n. V0/94136  del 01/08/2018 Fattura Energia Elettrica - ECOCENTRO - LUGLIO 2018;22-08-2018;2685;0;60;1;Spese correnti;3;Acquisto di beni e servizi;2;Acquisto di servizi;5;Utenze e canoni;4;Energia elettrica;22-08-2018;
2066;1;0;"116,81";"616,54";GLOBAL POWER SPA;622385037F;(SOS. 1413/P) - ACCONTO Fatt.n. V0/94140  del 01/08/2018 Fattura Energia Elettrica - SCUOLE - LUGLIO 2018;22-08-2018;259;0;51;1;Spese correnti;3;Acquisto di beni e servizi;2;Acquisto di servizi;5;Utenze e canoni;4;Energia elettrica;22-08-2018;
2066;2;0;"499,73";"616,54";GLOBAL POWER SPA;622385037F;(SOS. 1412/P) - ACCONTO Fatt.n. V0/94141  del 01/08/2018 Fattura Energia Elettrica - VARIE - LUGLIO 2018;22-08-2018;259;0;51;1;Spese correnti;3;Acquisto di beni e servizi;2;Acquisto di servizi;5;Utenze e canoni;4;Energia elettrica;22-08-2018;
2067;1;0;"65,71";"1.004,57";GLOBAL POWER SPA;622385037F;(SOS. 1410) - ACCONTO Fatt.n. V0/94137  del 01/08/2018 Fattura Energia Elettrica - PALAZZINA TRISSINO - LUGLIO 2018;22-08-2018;938;0;52;1;Spese correnti;3;Acquisto di beni e servizi;2;Acquisto di servizi;5;Utenze e canoni;4;Energia elettrica;22-08-2018;
2067;2;0;"938,86";"1.004,57";GLOBAL POWER SPA;622385037F;(SOS. 1412/P) - ACCONTO Fatt.n. V0/94141  del 01/08/2018 Fattura Energia Elettrica - VARIE - LUGLIO 2018;22-08-2018;938;0;52;1;Spese correnti;3;Acquisto di beni e servizi;2;Acquisto di servizi;5;Utenze e canoni;4;Energia elettrica;22-08-2018;
2068;1;0;"112,45";"279,12";GLOBAL POWER SPA;622385037F;(SOS. 1413/P) - ACCONTO Fatt.n. V0/94140  del 01/08/2018 Fattura Energia Elettrica - SCUOLE - LUGLIO 2018;22-08-2018;1432;0;53;1;Spese correnti;3;Acquisto di beni e servizi;2;Acquisto di servizi;5;Utenze e canoni;4;Energia elettrica;22-08-2018;
2068;2;0;"166,67";"279,12";GLOBAL POWER SPA;622385037F;(SOS. 1412/P) - ACCONTO Fatt.n. V0/94141  del 01/08/2018 Fattura Energia Elettrica - VARIE - LUGLIO 2018;22-08-2018;1432;0;53;1;Spese correnti;3;Acquisto di beni e servizi;2;Acquisto di servizi;5;Utenze e canoni;4;Energia elettrica;22-08-2018;
2069;1;0;"331,40";"331,40";GLOBAL POWER SPA;622385037F;(SOS. 1413/P) - ACCONTO Fatt.n. V0/94140  del 01/08/2018 Fattura Energia Elettrica - SCUOLE - LUGLIO 2018;22-08-2018;1573;0;54;1;Spese correnti;3;Acquisto di beni e servizi;2;Acquisto di servizi;5;Utenze e canoni;4;Energia elettrica;22-08-2018;
2070;1;0;"180,18";"455,02";GLOBAL POWER SPA;622385037F;(SOS. 1412/P) - ACCONTO Fatt.n. V0/94141  del 01/08/2018 Fattura Energia Elettrica - VARIE - LUGLIO 2018;22-08-2018;1651;1;55;1;Spese correnti;3;Acquisto di beni e servizi;2;Acquisto di servizi;5;Utenze e canoni;4;Energia elettrica;22-08-2018;
2070;2;0;"274,84";"455,02";GLOBAL POWER SPA;622385037F;(SOS. 1413/P) - ACCONTO Fatt.n. V0/94140  del 01/08/2018 Fattura Energia Elettrica - SCUOLE - LUGLIO 2018;22-08-2018;1651;1;55;1;Spese correnti;3;Acquisto di beni e servizi;2;Acquisto di servizi;5;Utenze e canoni;4;Energia elettrica;22-08-2018;
2071;1;0;"681,44";"681,44";GLOBAL POWER SPA;622385037F;(SOS. 1412/P) - ACCONTO Fatt.n. V0/94141  del 01/08/2018 Fattura Energia Elettrica - VARIE - LUGLIO 2018;22-08-2018;1810;0;56;1;Spese correnti;3;Acquisto di beni e servizi;2;Acquisto di servizi;5;Utenze e canoni;4;Energia elettrica;22-08-2018;
2072;1;0;"125,57";"125,57";GLOBAL POWER SPA;622385037F;(SOS. 1414) - ACCONTO Fatt.n. V0/94142  del 01/08/2018 Fattura Energia Elettrica - CIMITERI - LUGLIO 2018;22-08-2018;2240;0;57;1;Spese correnti;3;Acquisto di beni e servizi;2;Acquisto di servizi;5;Utenze e canoni;4;Energia elettrica;22-08-2018;
2073;1;0;"79,27";"79,27";GLOBAL POWER SPA;622385037F;(SOS. 1412/P) - ACCONTO Fatt.n. V0/94141  del 01/08/2018 Fattura Energia Elettrica - VARIE - LUGLIO 2018;22-08-2018;3147;0;58;1;Spese correnti;3;Acquisto di beni e servizi;2;Acquisto di servizi;5;Utenze e canoni;4;Energia elettrica;22-08-2018;
2074;1;0;"43,98";"3.368,23";GLOBAL POWER SPA;622385037F;(SOS. 1412/P) - ACCONTO Fatt.n. V0/94141  del 01/08/2018 Fattura Energia Elettrica - VARIE - LUGLIO 2018;22-08-2018;3303;0;59;1;Spese correnti;3;Acquisto di beni e servizi;2;Acquisto di servizi;5;Utenze e canoni;4;Energia elettrica;22-08-2018;
2074;2;0;"3.324,25";"3.368,23";GLOBAL POWER SPA;622385037F;(SOS. 1411) - ACCONTO Fatt.n. V0/94139  del 01/08/2018 Fattura Energia Elettrica - PUBBLICA ILLUMINAZIONE  - LUGLIO 2018;22-08-2018;3303;0;59;1;Spese correnti;3;Acquisto di beni e servizi;2;Acquisto di servizi;5;Utenze e canoni;4;Energia elettrica;22-08-2018;
2075;1;0;"13,20";"13,20";GLOBAL POWER SPA; ;SALDO Fatt.n. V0/94136  del 01/08/2018 Fattura Energia Elettrica - ECOCENTRO - LUGLIO 2018;22-08-2018;2685;0;60;1;Spese correnti;3;Acquisto di beni e servizi;2;Acquisto di servizi;5;Utenze e canoni;4;Energia elettrica;22-08-2018;
2076;1;0;"25,70";"135,64";GLOBAL POWER SPA; ;ACCONTO Fatt.n. V0/94140  del 01/08/2018 Fattura Energia Elettrica - SCUOLE - LUGLIO 2018;22-08-2018;259;0;51;1;Spese correnti;3;Acquisto di beni e servizi;2;Acquisto di servizi;5;Utenze e canoni;4;Energia elettrica;22-08-2018;
2076;2;0;"109,94";"135,64";GLOBAL POWER SPA;622385037F;ACCONTO Fatt.n. V0/94141  del 01/08/2018 Fattura Energia Elettrica - VARIE - LUGLIO 2018;22-08-2018;259;0;51;1;Spese correnti;3;Acquisto di beni e servizi;2;Acquisto di servizi;5;Utenze e canoni;4;Energia elettrica;22-08-2018;
2077;1;0;"6,57";"213,12";GLOBAL POWER SPA; ;SALDO Fatt.n. V0/94137  del 01/08/2018 Fattura Energia Elettrica - PALAZZINA TRISSINO - LUGLIO 2018;22-08-2018;938;0;52;1;Spese correnti;3;Acquisto di beni e servizi;2;Acquisto di servizi;5;Utenze e canoni;4;Energia elettrica;22-08-2018;
2077;2;0;"206,55";"213,12";GLOBAL POWER SPA;622385037F;ACCONTO Fatt.n. V0/94141  del 01/08/2018 Fattura Energia Elettrica - VARIE - LUGLIO 2018;22-08-2018;938;0;52;1;Spese correnti;3;Acquisto di beni e servizi;2;Acquisto di servizi;5;Utenze e canoni;4;Energia elettrica;22-08-2018;
2078;1;0;"11,25";"27,92";GLOBAL POWER SPA; ;ACCONTO Fatt.n. V0/94140  del 01/08/2018 Fattura Energia Elettrica - SCUOLE - LUGLIO 2018;22-08-2018;1432;0;53;1;Spese correnti;3;Acquisto di beni e servizi;2;Acquisto di servizi;5;Utenze e canoni;4;Energia elettrica;22-08-2018;
2078;2;0;"16,67";"27,92";GLOBAL POWER SPA;622385037F;ACCONTO Fatt.n. V0/94141  del 01/08/2018 Fattura Energia Elettrica - VARIE - LUGLIO 2018;22-08-2018;1432;0;53;1;Spese correnti;3;Acquisto di beni e servizi;2;Acquisto di servizi;5;Utenze e canoni;4;Energia elettrica;22-08-2018;
2079;1;0;"33,14";"33,14";GLOBAL POWER SPA; ;ACCONTO Fatt.n. V0/94140  del 01/08/2018 Fattura Energia Elettrica - SCUOLE - LUGLIO 2018;22-08-2018;1573;0;54;1;Spese correnti;3;Acquisto di beni e servizi;2;Acquisto di servizi;5;Utenze e canoni;4;Energia elettrica;22-08-2018;
2080;1;0;"27,48";"67,12";GLOBAL POWER SPA; ;SALDO Fatt.n. V0/94140  del 01/08/2018 Fattura Energia Elettrica - SCUOLE - LUGLIO 2018;22-08-2018;1651;1;55;1;Spese correnti;3;Acquisto di beni e servizi;2;Acquisto di servizi;5;Utenze e canoni;4;Energia elettrica;22-08-2018;
2080;2;0;"39,64";"67,12";GLOBAL POWER SPA;622385037F;ACCONTO Fatt.n. V0/94141  del 01/08/2018 Fattura Energia Elettrica - VARIE - LUGLIO 2018;22-08-2018;1651;1;55;1;Spese correnti;3;Acquisto di beni e servizi;2;Acquisto di servizi;5;Utenze e canoni;4;Energia elettrica;22-08-2018;
2081;1;0;"149,92";"149,92";GLOBAL POWER SPA;622385037F;ACCONTO Fatt.n. V0/94141  del 01/08/2018 Fattura Energia Elettrica - VARIE - LUGLIO 2018;22-08-2018;1810;0;56;1;Spese correnti;3;Acquisto di beni e servizi;2;Acquisto di servizi;5;Utenze e canoni;4;Energia elettrica;22-08-2018;
2082;1;0;"32,03";"32,03";GLOBAL POWER SPA; ;SALDO Fatt.n. V0/94142  del 01/08/2018 Fattura Energia Elettrica - CIMITERI - LUGLIO 2018;22-08-2018;2240;0;57;1;Spese correnti;3;Acquisto di beni e servizi;2;Acquisto di servizi;5;Utenze e canoni;4;Energia elettrica;22-08-2018;
2083;1;0;"17,44";"17,44";GLOBAL POWER SPA;622385037F;ACCONTO Fatt.n. V0/94141  del 01/08/2018 Fattura Energia Elettrica - VARIE - LUGLIO 2018;22-08-2018;3147;0;58;1;Spese correnti;3;Acquisto di beni e servizi;2;Acquisto di servizi;5;Utenze e canoni;4;Energia elettrica;22-08-2018;
2084;1;0;"9,67";"741,01";GLOBAL POWER SPA;622385037F;SALDO Fatt.n. V0/94141  del 01/08/2018 Fattura Energia Elettrica - VARIE - LUGLIO 2018;22-08-2018;3303;0;59;1;Spese correnti;3;Acquisto di beni e servizi;2;Acquisto di servizi;5;Utenze e canoni;4;Energia elettrica;22-08-2018;
2084;2;0;"731,34";"741,01";GLOBAL POWER SPA; ;SALDO Fatt.n. V0/94139  del 01/08/2018 Fattura Energia Elettrica - PUBBLICA ILLUMINAZIONE  - LUGLIO 2018;22-08-2018;3303;0;59;1;Spese correnti;3;Acquisto di beni e servizi;2;Acquisto di servizi;5;Utenze e canoni;4;Energia elettrica;22-08-2018;
2085;1;0;"-90.760,16";"81.832,93";SISTHEMA SRL;7432019817;SALDO Fatt.n. 26EP/2018  del 07/08/2018 A TOTALE STORNO FATTURA NR. 23EP DEL 26/07/2018;22-08-2018;4031;0;896;2;Spese in conto capitale;2;Investimenti fissi lordi e acquisto di terreni;1;Beni materiali;10;"Beni immobili di valore culturale, storico ed artistico";2;"Fabbricati ad uso commerciale di valore culturale, storico ed artistico";22-08-2018;
2085;2;0;"81.832,93";"81.832,93";SISTHEMA SRL;7432019817;SALDO Fatt.n. 27EP/2018  del 07/08/2018 ANTICIPAZIONE LAVORI PALAZZO MARCONI;22-08-2018;4031;0;896;2;Spese in conto capitale;2;Investimenti fissi lordi e acquisto di terreni;1;Beni materiali;10;"Beni immobili di valore culturale, storico ed artistico";2;"Fabbricati ad uso commerciale di valore culturale, storico ed artistico";22-08-2018;
2085;3;0;"90.760,16";"81.832,93";SISTHEMA SRL;7432019817;SALDO Fatt.n. 23EP/2018  del 26/07/2018 LAVORI RISTRUTTURAZIONE PALAZZO MARCONI;22-08-2018;4031;0;896;2;Spese in conto capitale;2;Investimenti fissi lordi e acquisto di terreni;1;Beni materiali;10;"Beni immobili di valore culturale, storico ed artistico";2;"Fabbricati ad uso commerciale di valore culturale, storico ed artistico";22-08-2018;
2086;1;0;"431,20";"431,20";SALVADORI AGRICOLTURA SRL;Z9F2424BA2;SALDO Fatt.n. 001925/18  del 30/06/2018 GLYFOS ULTRA;22-08-2018;3420;0;523;1;Spese correnti;3;Acquisto di beni e servizi;1;Acquisto di beni;2;Altri beni di consumo;999;Altri beni e materiali di consumo n.a.c.;22-08-2018;
2087;1;0;"200,00";"200,00";PARROCCHIA DI S. STEFANO PROMARTIRE;0000000000;Erogazione dell'acconto e del saldo (100%) del fondo per le opere di urbanizzazione  -  LR 20 agosto 1987 n. 44 - PARROCCHIA DI S. STEFANO PROTOMARTIRE;22-08-2018;4039;0;455;2;Spese in conto capitale;4;Altri trasferimenti in conto capitale;24;Altri trasferimenti in conto capitale n.a.c. a Istituzioni Sociali Private;1;Altri trasferimenti in conto capitale n.a.c. a Istituzioni Sociali Private;1;Altri trasferimenti in conto capitale n.a.c. a Istituzioni Sociali Private;22-08-2018;
2088;1;0;"755,55";"755,55";MINISTERO DELL'INTERNO; ;COMUNE DI SANDRIGO - CORRISPETTIVO PER RILASCIO DI N. 45 CIE EMESSE DAL 01.08.2018 AL 15.08.2018;22-08-2018;901;0;147;1;Spese correnti;4;Trasferimenti correnti;1;Trasferimenti correnti a Amministrazioni Pubbliche;1;Trasferimenti correnti a Amministrazioni Centrali;1;Trasferimenti correnti a Ministeri;22-08-2018;
2089;1;0;"17.119,69";"17.119,69";AZIENDA ULSS N. 8 BERICA; ;SALDO Fatt.n. K   201800000674  del 10/08/2018 CONVENZIONE PER LA GESTIONE DEL SERVIZIO PROTEZIONE E TUTELA MINORI INSERIMENTI RESIENZIALI E IN COMUNITA' EDUCATIVA DIURNA MINORI PERIODO MARZO-APRILE 2018;22-08-2018;2741;0;173;1;Spese correnti;3;Acquisto di beni e servizi;2;Acquisto di servizi;99;Altri servizi;999;Altri servizi diversi n.a.c.;22-08-2018;
2090;1;0;"400,00";"800,00";OMESSO NOMINATIVO NEL RISPETTO DELLA NORMATIVA SULLA PROTEZIONE DATI PERSONALI; ;PROGETTO DI INTEGRAZIONE SOCIALE - RIA - CITTADINANZE REINCONTRATE 4." - LIQUIDAZIONE 2^ MENSILITA'.;22-08-2018;3248;0;573;1;Spese correnti;4;Trasferimenti correnti;3;Trasferimenti correnti a Imprese;99;Trasferimenti correnti a altre imprese;999;Trasferimenti correnti a altre imprese;22-08-2018;
2090;2;0;"400,00";"800,00";OMESSO NOMINATIVO NEL RISPETTO DELLA NORMATIVA SULLA PROTEZIONE DATI PERSONALI; ;PROGETTO DI INTEGRAZIONE SOCIALE - RIA - CITTADINANZE REINCONTRATE 4." - LIQUIDAZIONE 2^ MENSILITA'.;22-08-2018;3248;0;573;1;Spese correnti;4;Trasferimenti correnti;3;Trasferimenti correnti a Imprese;99;Trasferimenti correnti a altre imprese;999;Trasferimenti correnti a altre imprese;22-08-2018;
2091;1;0;"350,00";"2.420,42";OMESSO NOMINATIVO NEL RISPETTO DELLA NORMATIVA SULLA PROTEZIONE DATI PERSONALI; ;EROGAZIONE CONTRIBUTI ECONOMICI AD INTEGRAZIONE DEL MINIMO VITALE. IMPEGNO DI SPESA E CONTESTUALE LIQUIDAZIONE.;27-08-2018;3220;0;582;1;Spese correnti;4;Trasferimenti correnti;2;Trasferimenti correnti a Famiglie;2;Interventi assistenziali;999;Altri assegni e sussidi assistenziali;27-08-2018;
2091;2;0;"700,00";"2.420,42";OMESSO NOMINATIVO NEL RISPETTO DELLA NORMATIVA SULLA PROTEZIONE DATI PERSONALI; ;EROGAZIONE CONTRIBUTI ECONOMICI AD INTEGRAZIONE DEL MINIMO VITALE. IMPEGNO DI SPESA E CONTESTUALE LIQUIDAZIONE.;27-08-2018;3220;0;582;1;Spese correnti;4;Trasferimenti correnti;2;Trasferimenti correnti a Famiglie;2;Interventi assistenziali;999;Altri assegni e sussidi assistenziali;27-08-2018;
2091;3;1663;"700,00";"2.420,42";OMESSO NOMINATIVO NEL RISPETTO DELLA NORMATIVA SULLA PROTEZIONE DATI PERSONALI; ;EROGAZIONE CONTRIBUTI ECONOMICI AD INTEGRAZIONE DEL MINIMO VITALE. IMPEGNO DI SPESA E CONTESTUALE LIQUIDAZIONE.;27-08-2018;3220;0;582;1;Spese correnti;4;Trasferimenti correnti;2;Trasferimenti correnti a Famiglie;2;Interventi assistenziali;999;Altri assegni e sussidi assistenziali;01-10-2018;
2091;4;0;"28,42";"2.420,42";OMESSO NOMINATIVO NEL RISPETTO DELLA NORMATIVA SULLA PROTEZIONE DATI PERSONALI; ;EROGAZIONE CONTRIBUTI ECONOMICI AD INTEGRAZIONE DEL MINIMO VITALE. IMPEGNO DI SPESA E CONTESTUALE LIQUIDAZIONE.;27-08-2018;3220;0;582;1;Spese correnti;4;Trasferimenti correnti;2;Trasferimenti correnti a Famiglie;2;Interventi assistenziali;999;Altri assegni e sussidi assistenziali;27-08-2018;
2091;5;0;"642,00";"2.420,42";OMESSO NOMINATIVO NEL RISPETTO DELLA NORMATIVA SULLA PROTEZIONE DATI PERSONALI; ;EROGAZIONE CONTRIBUTI ECONOMICI AD INTEGRAZIONE DEL MINIMO VITALE. IMPEGNO DI SPESA E CONTESTUALE LIQUIDAZIONE.;27-08-2018;3220;0;582;1;Spese correnti;4;Trasferimenti correnti;2;Trasferimenti correnti a Famiglie;2;Interventi assistenziali;999;Altri assegni e sussidi assistenziali;27-08-2018;
2092;1;0;"500,00";"1.695,15";OMESSO NOMINATIVO NEL RISPETTO DELLA NORMATIVA SULLA PROTEZIONE DATI PERSONALI; ;EROGAZIONE CONTRIBUTI ECONOMICI AD INTEGRAZIONE DEL MINIMO VITALE. IMPEGNO DI SPESA E CONTESTUALE LIQUIDAZIONE.;27-08-2018;3220;0;582;1;Spese correnti;4;Trasferimenti correnti;2;Trasferimenti correnti a Famiglie;2;Interventi assistenziali;999;Altri assegni e sussidi assistenziali;27-08-2018;
2092;2;0;"331,60";"1.695,15";OMESSO NOMINATIVO NEL RISPETTO DELLA NORMATIVA SULLA PROTEZIONE DATI PERSONALI; ;EROGAZIONE CONTRIBUTI ECONOMICI AD INTEGRAZIONE DEL MINIMO VITALE. IMPEGNO DI SPESA E CONTESTUALE LIQUIDAZIONE.;27-08-2018;3220;0;582;1;Spese correnti;4;Trasferimenti correnti;2;Trasferimenti correnti a Famiglie;2;Interventi assistenziali;999;Altri assegni e sussidi assistenziali;27-08-2018;
2092;3;0;"363,55";"1.695,15";OMESSO NOMINATIVO NEL RISPETTO DELLA NORMATIVA SULLA PROTEZIONE DATI PERSONALI; ;EROGAZIONE CONTRIBUTI ECONOMICI AD INTEGRAZIONE DEL MINIMO VITALE. IMPEGNO DI SPESA E CONTESTUALE LIQUIDAZIONE.;27-08-2018;3220;0;582;1;Spese correnti;4;Trasferimenti correnti;2;Trasferimenti correnti a Famiglie;2;Interventi assistenziali;999;Altri assegni e sussidi assistenziali;27-08-2018;
2092;4;0;"500,00";"1.695,15";OMESSO NOMINATIVO NEL RISPETTO DELLA NORMATIVA SULLA PROTEZIONE DATI PERSONALI; ;EROGAZIONE CONTRIBUTI ECONOMICI AD INTEGRAZIONE DEL MINIMO VITALE. IMPEGNO DI SPESA E CONTESTUALE LIQUIDAZIONE.;27-08-2018;3220;0;582;1;Spese correnti;4;Trasferimenti correnti;2;Trasferimenti correnti a Famiglie;2;Interventi assistenziali;999;Altri assegni e sussidi assistenziali;27-08-2018;
2093;1;0;"120,00";"3.000,00";OMESSO NOMINATIVO NEL RISPETTO DELLA NORMATIVA SULLA PROTEZIONE DATI PERSONALI; ;"IMPEGNATIVA DI CURA DOMICILIARE. ACCERTAMENTO ENTRATA, IMPEGNO DI SPESA E CONTESTUALE LIQUIDAZIONE CONTRIBUTO ICDb 1^ semestre 2018 e ICDm 2^ trimestre 2018.";27-08-2018;3234;0;581;1;Spese correnti;4;Trasferimenti correnti;2;Trasferimenti correnti a Famiglie;2;Interventi assistenziali;999;Altri assegni e sussidi assistenziali;27-08-2018;
2093;2;0;"720,00";"3.000,00";OMESSO NOMINATIVO NEL RISPETTO DELLA NORMATIVA SULLA PROTEZIONE DATI PERSONALI; ;"IMPEGNATIVA DI CURA DOMICILIARE. ACCERTAMENTO ENTRATA, IMPEGNO DI SPESA E CONTESTUALE LIQUIDAZIONE CONTRIBUTO ICDb 1^ semestre 2018 e ICDm 2^ trimestre 2018.";27-08-2018;3234;0;581;1;Spese correnti;4;Trasferimenti correnti;2;Trasferimenti correnti a Famiglie;2;Interventi assistenziali;999;Altri assegni e sussidi assistenziali;27-08-2018;
2093;3;0;"720,00";"3.000,00";OMESSO NOMINATIVO NEL RISPETTO DELLA NORMATIVA SULLA PROTEZIONE DATI PERSONALI; ;"IMPEGNATIVA DI CURA DOMICILIARE. ACCERTAMENTO ENTRATA, IMPEGNO DI SPESA E CONTESTUALE LIQUIDAZIONE CONTRIBUTO ICDb 1^ semestre 2018 e ICDm 2^ trimestre 2018.";27-08-2018;3234;0;581;1;Spese correnti;4;Trasferimenti correnti;2;Trasferimenti correnti a Famiglie;2;Interventi assistenziali;999;Altri assegni e sussidi assistenziali;27-08-2018;
2093;4;0;"720,00";"3.000,00";OMESSO NOMINATIVO NEL RISPETTO DELLA NORMATIVA SULLA PROTEZIONE DATI PERSONALI; ;"IMPEGNATIVA DI CURA DOMICILIARE. ACCERTAMENTO ENTRATA, IMPEGNO DI SPESA E CONTESTUALE LIQUIDAZIONE CONTRIBUTO ICDb 1^ semestre 2018 e ICDm 2^ trimestre 2018.";27-08-2018;3234;0;581;1;Spese correnti;4;Trasferimenti correnti;2;Trasferimenti correnti a Famiglie;2;Interventi assistenziali;999;Altri assegni e sussidi assistenziali;27-08-2018;
2093;5;0;"720,00";"3.000,00";OMESSO NOMINATIVO NEL RISPETTO DELLA NORMATIVA SULLA PROTEZIONE DATI PERSONALI; ;"IMPEGNATIVA DI CURA DOMICILIARE. ACCERTAMENTO ENTRATA, IMPEGNO DI SPESA E CONTESTUALE LIQUIDAZIONE CONTRIBUTO ICDb 1^ semestre 2018 e ICDm 2^ trimestre 2018.";27-08-2018;3234;0;581;1;Spese correnti;4;Trasferimenti correnti;2;Trasferimenti correnti a Famiglie;2;Interventi assistenziali;999;Altri assegni e sussidi assistenziali;27-08-2018;
2094;1;0;"240,00";"2.160,00";OMESSO NOMINATIVO NEL RISPETTO DELLA NORMATIVA SULLA PROTEZIONE DATI PERSONALI; ;"IMPEGNATIVA DI CURA DOMICILIARE. ACCERTAMENTO ENTRATA, IMPEGNO DI SPESA E CONTESTUALE LIQUIDAZIONE CONTRIBUTO ICDb 1^ semestre 2018 e ICDm 2^ trimestre 2018.";27-08-2018;3234;0;581;1;Spese correnti;4;Trasferimenti correnti;2;Trasferimenti correnti a Famiglie;2;Interventi assistenziali;999;Altri assegni e sussidi assistenziali;27-08-2018;
2094;2;0;"720,00";"2.160,00";OMESSO NOMINATIVO NEL RISPETTO DELLA NORMATIVA SULLA PROTEZIONE DATI PERSONALI; ;"IMPEGNATIVA DI CURA DOMICILIARE. ACCERTAMENTO ENTRATA, IMPEGNO DI SPESA E CONTESTUALE LIQUIDAZIONE CONTRIBUTO ICDb 1^ semestre 2018 e ICDm 2^ trimestre 2018.";27-08-2018;3234;0;581;1;Spese correnti;4;Trasferimenti correnti;2;Trasferimenti correnti a Famiglie;2;Interventi assistenziali;999;Altri assegni e sussidi assistenziali;27-08-2018;
2094;3;0;"120,00";"2.160,00";OMESSO NOMINATIVO NEL RISPETTO DELLA NORMATIVA SULLA PROTEZIONE DATI PERSONALI; ;"IMPEGNATIVA DI CURA DOMICILIARE. ACCERTAMENTO ENTRATA, IMPEGNO DI SPESA E CONTESTUALE LIQUIDAZIONE CONTRIBUTO ICDb 1^ semestre 2018 e ICDm 2^ trimestre 2018.";27-08-2018;3234;0;581;1;Spese correnti;4;Trasferimenti correnti;2;Trasferimenti correnti a Famiglie;2;Interventi assistenziali;999;Altri assegni e sussidi assistenziali;27-08-2018;
2094;4;0;"360,00";"2.160,00";OMESSO NOMINATIVO NEL RISPETTO DELLA NORMATIVA SULLA PROTEZIONE DATI PERSONALI; ;"IMPEGNATIVA DI CURA DOMICILIARE. ACCERTAMENTO ENTRATA, IMPEGNO DI SPESA E CONTESTUALE LIQUIDAZIONE CONTRIBUTO ICDb 1^ semestre 2018 e ICDm 2^ trimestre 2018.";27-08-2018;3234;0;581;1;Spese correnti;4;Trasferimenti correnti;2;Trasferimenti correnti a Famiglie;2;Interventi assistenziali;999;Altri assegni e sussidi assistenziali;27-08-2018;
2094;5;0;"720,00";"2.160,00";OMESSO NOMINATIVO NEL RISPETTO DELLA NORMATIVA SULLA PROTEZIONE DATI PERSONALI; ;"IMPEGNATIVA DI CURA DOMICILIARE. ACCERTAMENTO ENTRATA, IMPEGNO DI SPESA E CONTESTUALE LIQUIDAZIONE CONTRIBUTO ICDb 1^ semestre 2018 e ICDm 2^ trimestre 2018.";27-08-2018;3234;0;581;1;Spese correnti;4;Trasferimenti correnti;2;Trasferimenti correnti a Famiglie;2;Interventi assistenziali;999;Altri assegni e sussidi assistenziali;27-08-2018;
2095;1;0;"400,00";"3.760,00";OMESSO NOMINATIVO NEL RISPETTO DELLA NORMATIVA SULLA PROTEZIONE DATI PERSONALI; ;"IMPEGNATIVA DI CURA DOMICILIARE. ACCERTAMENTO ENTRATA, IMPEGNO DI SPESA E CONTESTUALE LIQUIDAZIONE CONTRIBUTO ICDb 1^ semestre 2018 e ICDm 2^ trimestre 2018.";27-08-2018;3234;0;581;1;Spese correnti;4;Trasferimenti correnti;2;Trasferimenti correnti a Famiglie;2;Interventi assistenziali;999;Altri assegni e sussidi assistenziali;27-08-2018;
2095;2;0;"720,00";"3.760,00";OMESSO NOMINATIVO NEL RISPETTO DELLA NORMATIVA SULLA PROTEZIONE DATI PERSONALI; ;"IMPEGNATIVA DI CURA DOMICILIARE. ACCERTAMENTO ENTRATA, IMPEGNO DI SPESA E CONTESTUALE LIQUIDAZIONE CONTRIBUTO ICDb 1^ semestre 2018 e ICDm 2^ trimestre 2018.";27-08-2018;3234;0;581;1;Spese correnti;4;Trasferimenti correnti;2;Trasferimenti correnti a Famiglie;2;Interventi assistenziali;999;Altri assegni e sussidi assistenziali;27-08-2018;
2095;3;0;"1.200,00";"3.760,00";OMESSO NOMINATIVO NEL RISPETTO DELLA NORMATIVA SULLA PROTEZIONE DATI PERSONALI; ;"IMPEGNATIVA DI CURA DOMICILIARE. ACCERTAMENTO ENTRATA, IMPEGNO DI SPESA E CONTESTUALE LIQUIDAZIONE CONTRIBUTO ICDb 1^ semestre 2018 e ICDm 2^ trimestre 2018.";27-08-2018;3234;0;581;1;Spese correnti;4;Trasferimenti correnti;2;Trasferimenti correnti a Famiglie;2;Interventi assistenziali;999;Altri assegni e sussidi assistenziali;27-08-2018;
2095;4;0;"1.200,00";"3.760,00";OMESSO NOMINATIVO NEL RISPETTO DELLA NORMATIVA SULLA PROTEZIONE DATI PERSONALI; ;"IMPEGNATIVA DI CURA DOMICILIARE. ACCERTAMENTO ENTRATA, IMPEGNO DI SPESA E CONTESTUALE LIQUIDAZIONE CONTRIBUTO ICDb 1^ semestre 2018 e ICDm 2^ trimestre 2018.";27-08-2018;3234;0;581;1;Spese correnti;4;Trasferimenti correnti;2;Trasferimenti correnti a Famiglie;2;Interventi assistenziali;999;Altri assegni e sussidi assistenziali;27-08-2018;
2095;5;0;"240,00";"3.760,00";OMESSO NOMINATIVO NEL RISPETTO DELLA NORMATIVA SULLA PROTEZIONE DATI PERSONALI; ;"IMPEGNATIVA DI CURA DOMICILIARE. ACCERTAMENTO ENTRATA, IMPEGNO DI SPESA E CONTESTUALE LIQUIDAZIONE CONTRIBUTO ICDb 1^ semestre 2018 e ICDm 2^ trimestre 2018.";27-08-2018;3234;0;581;1;Spese correnti;4;Trasferimenti correnti;2;Trasferimenti correnti a Famiglie;2;Interventi assistenziali;999;Altri assegni e sussidi assistenziali;27-08-2018;
2096;1;0;"400,00";"2.320,00";OMESSO NOMINATIVO NEL RISPETTO DELLA NORMATIVA SULLA PROTEZIONE DATI PERSONALI; ;"IMPEGNATIVA DI CURA DOMICILIARE. ACCERTAMENTO ENTRATA, IMPEGNO DI SPESA E CONTESTUALE LIQUIDAZIONE CONTRIBUTO ICDb 1^ semestre 2018 e ICDm 2^ trimestre 2018.";27-08-2018;3234;0;581;1;Spese correnti;4;Trasferimenti correnti;2;Trasferimenti correnti a Famiglie;2;Interventi assistenziali;999;Altri assegni e sussidi assistenziali;27-08-2018;
2096;2;0;"1.200,00";"2.320,00";OMESSO NOMINATIVO NEL RISPETTO DELLA NORMATIVA SULLA PROTEZIONE DATI PERSONALI; ;"IMPEGNATIVA DI CURA DOMICILIARE. ACCERTAMENTO ENTRATA, IMPEGNO DI SPESA E CONTESTUALE LIQUIDAZIONE CONTRIBUTO ICDb 1^ semestre 2018 e ICDm 2^ trimestre 2018.";27-08-2018;3234;0;581;1;Spese correnti;4;Trasferimenti correnti;2;Trasferimenti correnti a Famiglie;2;Interventi assistenziali;999;Altri assegni e sussidi assistenziali;27-08-2018;
2096;3;0;"720,00";"2.320,00";OMESSO NOMINATIVO NEL RISPETTO DELLA NORMATIVA SULLA PROTEZIONE DATI PERSONALI; ;"IMPEGNATIVA DI CURA DOMICILIARE. ACCERTAMENTO ENTRATA, IMPEGNO DI SPESA E CONTESTUALE LIQUIDAZIONE CONTRIBUTO ICDb 1^ semestre 2018 e ICDm 2^ trimestre 2018.";27-08-2018;3234;0;581;1;Spese correnti;4;Trasferimenti correnti;2;Trasferimenti correnti a Famiglie;2;Interventi assistenziali;999;Altri assegni e sussidi assistenziali;27-08-2018;
2097;1;0;"174,00";"324,00";OMESSO NOMINATIVO NEL RISPETTO DELLA NORMATIVA SULLA PROTEZIONE DATI PERSONALI; ;EROGAZIONE CONTRIBUTI ECONOMICI AD INTEGRAZIONE DEL MINIMO VITALE. IMPEGNO DI SPESA E CONTESTUALE LIQUIDAZIONE.;27-08-2018;3220;0;582;1;Spese correnti;4;Trasferimenti correnti;2;Trasferimenti correnti a Famiglie;2;Interventi assistenziali;999;Altri assegni e sussidi assistenziali;27-08-2018;
2097;2;0;"150,00";"324,00";OMESSO NOMINATIVO NEL RISPETTO DELLA NORMATIVA SULLA PROTEZIONE DATI PERSONALI; ;EROGAZIONE CONTRIBUTI ECONOMICI AD INTEGRAZIONE DEL MINIMO VITALE. IMPEGNO DI SPESA E CONTESTUALE LIQUIDAZIONE.;27-08-2018;3220;0;582;1;Spese correnti;4;Trasferimenti correnti;2;Trasferimenti correnti a Famiglie;2;Interventi assistenziali;999;Altri assegni e sussidi assistenziali;27-08-2018;
2098;1;0;"1.194,50";"1.194,50";CONDOMINIO RESIDENCE LA PIAZZA; ;IMPEGNO SPESE CONDOMINIALI "RESIDENCE LA PIAZZA".  PERIODO 01/05/2018 - 30/04/2019 E LIQUIDAZIONE RATA N. 1 E RATA N. 2.;27-08-2018;932;0;580;1;Spese correnti;3;Acquisto di beni e servizi;2;Acquisto di servizi;99;Altri servizi;999;Altri servizi diversi n.a.c.;27-08-2018;
2099;1;0;"2.500,00";"2.500,00";ISTITUTO COMPRENSIVO STATALE "G.ZANELLA" SANDRIGO; ;CONTRIBUTO ALL'ISTITUTO COMPRENSIVO ZANELLA DI SANDRIGO - SALDO CONTRIBUTO 2017.;27-08-2018;1620;1;519;1;Spese correnti;4;Trasferimenti correnti;1;Trasferimenti correnti a Amministrazioni Pubbliche;1;Trasferimenti correnti a Amministrazioni Centrali;2;Trasferimenti correnti a Ministero dell'Istruzione - Istituzioni scolastiche;27-08-2018;
2100;1;0;"321,31";"321,31";ISTITUTO COMPRENSIVO STATALE "G.ZANELLA" SANDRIGO; ;CONTRIBUTO ALL'ISTITUTO COMPRENSIVO ZANELLA DI SANDRIGO - SALDO CONTRIBUTO 2017.;27-08-2018;1620;0;766;1;Spese correnti;4;Trasferimenti correnti;1;Trasferimenti correnti a Amministrazioni Pubbliche;1;Trasferimenti correnti a Amministrazioni Centrali;2;Trasferimenti correnti a Ministero dell'Istruzione - Istituzioni scolastiche;27-08-2018;
2101;1;0;"2.000,00";"2.000,00";ISTITUTO COMPRENSIVO STATALE "G.ZANELLA" SANDRIGO; ;CONTRIBUTO ALL'ISTITUTO COMPRENSIVO ZANELLA DI SANDRIGO - SALDO CONTRIBUTO 2017.;27-08-2018;1584;0;520;1;Spese correnti;4;Trasferimenti correnti;1;Trasferimenti correnti a Amministrazioni Pubbliche;1;Trasferimenti correnti a Amministrazioni Centrali;2;Trasferimenti correnti a Ministero dell'Istruzione - Istituzioni scolastiche;27-08-2018;
2103;1;0;"178,36";"178,36";GIORNI NUOVI SOCIETA' COOP. SOCIALE DI SOLIDARIETA';ZA71DBB6F4;SALDO Fatt.n. 2/101  del 31/07/2018 SERVIZIO DI PULIZIA;27-08-2018;259;5;269;1;Spese correnti;3;Acquisto di beni e servizi;2;Acquisto di servizi;13;Servizi ausiliari per il funzionamento dell'ente;2;Servizi di pulizia e lavanderia;27-08-2018;
2104;1;0;"124,44";"124,44";GIORNI NUOVI SOCIETA' COOP. SOCIALE DI SOLIDARIETA';ZE4225CDE5;SALDO Fatt.n. 2/102  del 31/07/2018 SERVIZIO PULIZIE STRAORDINARIE SALETTA RIUNIONI;27-08-2018;932;0;437;1;Spese correnti;3;Acquisto di beni e servizi;2;Acquisto di servizi;99;Altri servizi;999;Altri servizi diversi n.a.c.;27-08-2018;
2105;1;0;"2.148,41";"2.148,41";GIORNI NUOVI SOCIETA' COOP. SOCIALE DI SOLIDARIETA';67802821B6;ACCONTO Fatt.n. 2/100  del 31/07/2018 SERVIZIO DI PULIZIA SEDE MUNICIPALE E VARIE;27-08-2018;259;5;547;1;Spese correnti;3;Acquisto di beni e servizi;2;Acquisto di servizi;13;Servizi ausiliari per il funzionamento dell'ente;2;Servizi di pulizia e lavanderia;27-08-2018;
2106;1;0;"1.224,07";"1.224,07";GIORNI NUOVI SOCIETA' COOP. SOCIALE DI SOLIDARIETA';67802821B6;ACCONTO Fatt.n. 2/100  del 31/07/2018 SERVIZIO DI PULIZIA SEDE MUNICIPALE E VARIE;27-08-2018;1810;3;548;1;Spese correnti;3;Acquisto di beni e servizi;2;Acquisto di servizi;13;Servizi ausiliari per il funzionamento dell'ente;2;Servizi di pulizia e lavanderia;27-08-2018;
2107;1;0;"207,95";"207,95";GIORNI NUOVI SOCIETA' COOP. SOCIALE DI SOLIDARIETA';67802821B6;ACCONTO Fatt.n. 2/100  del 31/07/2018 SERVIZIO DI PULIZIA SEDE MUNICIPALE E VARIE;27-08-2018;1285;0;549;1;Spese correnti;3;Acquisto di beni e servizi;2;Acquisto di servizi;13;Servizi ausiliari per il funzionamento dell'ente;2;Servizi di pulizia e lavanderia;27-08-2018;
2108;1;0;"414,69";"414,69";GIORNI NUOVI SOCIETA' COOP. SOCIALE DI SOLIDARIETA';67802821B6;SALDO Fatt.n. 2/100  del 31/07/2018 SERVIZIO DI PULIZIA SEDE MUNICIPALE E VARIE;27-08-2018;3147;1;551;1;Spese correnti;3;Acquisto di beni e servizi;2;Acquisto di servizi;13;Servizi ausiliari per il funzionamento dell'ente;2;Servizi di pulizia e lavanderia;27-08-2018;
2109;1;0;"63,01";"63,01";CIVIS SPA;Z5D21A9503;SALDO Fatt.n. V9/0002274  del 02/08/2018 SERVIZIO VIGILANZA PIAZZA METTEOTTI;27-08-2018;370;0;73;1;Spese correnti;3;Acquisto di beni e servizi;2;Acquisto di servizi;13;Servizi ausiliari per il funzionamento dell'ente;1;"Servizi di sorveglianza, custodia e accoglienza";27-08-2018;
2110;1;0;"37,81";"37,81";CIVIS SPA;Z5D21A9503;SALDO Fatt.n. V9/0002275  del 02/08/2018 SERVIZIO ISPETTIVO VIA VOLTA;27-08-2018;370;0;73;1;Spese correnti;3;Acquisto di beni e servizi;2;Acquisto di servizi;13;Servizi ausiliari per il funzionamento dell'ente;1;"Servizi di sorveglianza, custodia e accoglienza";27-08-2018;
2111;1;0;"3.160,30";"3.160,30";COOP.SOCIALE DI SOLIDARIETA' S.MARCO a r.l. O.N.L.U.S.;ZE021A05E0;SALDO Fatt.n. 118/01  del 31/07/2018 SERVIZIO CONDUZIONE ECOCENTRO DI VIA GALVANI - MESE LUGLIO 2018;27-08-2018;2689;0;164;1;Spese correnti;3;Acquisto di beni e servizi;2;Acquisto di servizi;13;Servizi ausiliari per il funzionamento dell'ente;999;Altri servizi ausiliari n.a.c.;27-08-2018;
2112;1;0;"7.236,96";"7.236,96";S.I.A. Societa' Intercomunale Ambiente SRL; ;SALDO Fatt.n. 143/PA18  del 31/07/2018 CONFERIMENTO RSU SECCO - LUGLIO 2018;27-08-2018;2695;0;163;1;Spese correnti;3;Acquisto di beni e servizi;2;Acquisto di servizi;15;Contratti di servizio pubblico;5;Contratti di servizio per il conferimento in discarica dei rifiuti;27-08-2018;
2113;1;0;"402,60";"402,60";UNICHIMICA S.R.L.;Z062380EC8;SALDO Fatt.n. FATTPA 18_18  del 01/07/2018 ACIDO ACETICO;27-08-2018;3420;0;429;1;Spese correnti;3;Acquisto di beni e servizi;1;Acquisto di beni;2;Altri beni di consumo;999;Altri beni e materiali di consumo n.a.c.;27-08-2018;
2114;1;0;"1.335,90";"1.335,90";BIOCONTROL SRL;Z79219890C;SALDO Fatt.n. 2/49  del 31/07/2018 ADULTICIDA E ANTILARVALE ZANZARE;29-08-2018;2000;0;61;1;Spese correnti;3;Acquisto di beni e servizi;2;Acquisto di servizi;99;Altri servizi;999;Altri servizi diversi n.a.c.;29-08-2018;
2115;1;0;"31.853,42";"31.853,42";SO.RA.RIS. SPA; ;SALDO Fatt.n. 000128/PA  del 31/07/2018 SERVIZIO NETTEZZA URBANA MESE LUGLIO 2018;29-08-2018;2691;0;542;1;Spese correnti;3;Acquisto di beni e servizi;2;Acquisto di servizi;15;Contratti di servizio pubblico;4;Contratti di servizio per la raccolta rifiuti;29-08-2018;
2116;1;0;"1.705,52";"1.705,52";SO.RA.RIS. SPA;Z0A2322218;ACCONTO Fatt.n. 000125/PA  del 25/07/2018 SMALTIMENTO RIFIUTI - VARIE;29-08-2018;4045;0;309;2;Spese in conto capitale;2;Investimenti fissi lordi e acquisto di terreni;1;Beni materiali;9;Beni immobili;2;Fabbricati ad uso commerciale;29-08-2018;
2117;1;0;"14.116,11";"14.116,11";SO.RA.RIS. SPA;Z0A2322218;SALDO Fatt.n. 000125/PA  del 25/07/2018 SMALTIMENTO RIFIUTI - VARIE;29-08-2018;4237;0;423;2;Spese in conto capitale;2;Investimenti fissi lordi e acquisto di terreni;1;Beni materiali;99;Altri beni materiali;999;Altri beni materiali diversi;29-08-2018;
2118;1;0;"1.606,32";"1.606,32";CASSA DI RISPARMIO DEL VENETO SPA; ;PERMESSI CARICHE PUBBLICHE - STIVAN GIULIANO 04/2018 -COMUNE DI SANDRIGO;29-08-2018;21;0;62;1;Spese correnti;3;Acquisto di beni e servizi;2;Acquisto di servizi;1;Organi e incarichi istituzionali dell'amministrazione;2;Organi istituzionali dell'amministrazione - Rimborsi;29-08-2018;
2119;1;0;"2.199,49";"2.199,49";AGENZIA DELLE ENTRATE - RISCOSSIONE;63128898CC;PIGNORAMENTO CREDITI V/TERZI CODICE IDENTIFICATIVO FASCICOLO 124/2018/1251;31-08-2018;2838;0;259;1;Spese correnti;3;Acquisto di beni e servizi;2;Acquisto di servizi;99;Altri servizi;999;Altri servizi diversi n.a.c.;31-08-2018;
2120;1;0;"3.900,51";"3.900,51";ARCOBALENO - UNIONE ASSOC. SPORTIVE;63128898CC;ACCONTO Fatt.n. 000001-2018-FE  del 28/06/2018 CONVENZIONE 2 BIMESTRE 2018 GESTIONE PALAZZETTO;31-08-2018;2838;0;259;1;Spese correnti;3;Acquisto di beni e servizi;2;Acquisto di servizi;99;Altri servizi;999;Altri servizi diversi n.a.c.;31-08-2018;
2121;1;0;"6.100,00";"6.100,00";ARCOBALENO - UNIONE ASSOC. SPORTIVE;63128898CC;SALDO Fatt.n. 000002-2018-FE  del 02/07/2018 CONVENZIONE 3 BIMESTRE  2018 GESTIONE PALAZZETTO DELLO SPORT;31-08-2018;2838;0;259;1;Spese correnti;3;Acquisto di beni e servizi;2;Acquisto di servizi;99;Altri servizi;999;Altri servizi diversi n.a.c.;31-08-2018;
2122;1;0;"3.000,00";"3.000,00";COMPERIO SRL;Z5D1F44B44;SALDO Fatt.n. 108/AE  del 21/08/2018 GESTIONE RETE BIBLIOTECARIA LOCALE;31-08-2018;1799;0;498;1;Spese correnti;3;Acquisto di beni e servizi;2;Acquisto di servizi;13;Servizi ausiliari per il funzionamento dell'ente;999;Altri servizi ausiliari n.a.c.;31-08-2018;
2123;1;0;"1.084,58";"1.084,58";COMUNE DI VICENZA; ;CONTRIBUTO AL CENTRO PER L'AFFIDO E LA SOLIDARIETA' FAMILIARE ANNO 2018. - IMPEGNO DI SPESA E CONTESTUALE LIQUIDAZIONE ACCONTO.;31-08-2018;2746;0;584;1;Spese correnti;4;Trasferimenti correnti;1;Trasferimenti correnti a Amministrazioni Pubbliche;2;Trasferimenti correnti a Amministrazioni Locali;3;Trasferimenti correnti a Comuni;31-08-2018;
2125;1;0;"44,87";"44,87";BANCO POSTA - POSTE ITALIANE SPA;ZF421B5C8C;IMPEGNO DI SPESA PER LA GESTIONE DEI CONTI CORRENTI POSTALI PER L'ANNO 2018.;05-09-2018;1115;0;71;1;Spese correnti;3;Acquisto di beni e servizi;2;Acquisto di servizi;3;Aggi di riscossione;999;Altri aggi di riscossione n.a.c.;05-09-2018;
2126;1;0;"151,18";"151,18";TIM SPA; ;SALDO Fatt.n. 6820180805001151  del 16/08/2018 RIFATTURAZIONE FATTURA ORIGINARIA 2 BIM 2015 8E00153124 LINEA 0444658343;11-09-2018;1651;0;241;1;Spese correnti;3;Acquisto di beni e servizi;2;Acquisto di servizi;5;Utenze e canoni;1;Telefonia fissa;11-09-2018;
2127;1;0;"258,14";"258,14";TIM SPA; ;SALDO Fatt.n. 6820180805000826  del 10/08/2018 RIFATTURAZIONE FATTURA ORIGINARIA 8E00157482 2 BIM 2015 LINEA 0444659089;11-09-2018;1651;0;241;1;Spese correnti;3;Acquisto di beni e servizi;2;Acquisto di servizi;5;Utenze e canoni;1;Telefonia fissa;11-09-2018;
2128;1;0;"88,95";"88,95";TIM SPA; ;SALDO Fatt.n. 6820180805000815  del 10/08/2018 RIFATTURAZIONE FATTURA ORIGINARIA 8E00159512 2 BIM 2015 LINEA 0444657385;11-09-2018;1651;0;241;1;Spese correnti;3;Acquisto di beni e servizi;2;Acquisto di servizi;5;Utenze e canoni;1;Telefonia fissa;11-09-2018;
2129;1;0;"173,37";"173,37";TIM SPA; ;SALDO Fatt.n. 6820180805000816  del 10/08/2018 RIFATTURAZIONE FATTURA ORIGINARIA 8E00158102 2 BIM 2015 LINEA 0444461603;11-09-2018;259;3;283;1;Spese correnti;3;Acquisto di beni e servizi;2;Acquisto di servizi;5;Utenze e canoni;1;Telefonia fissa;11-09-2018;
2130;1;0;"54,90";"54,90";TIM SPA; ;SALDO Fatt.n. 6820180805000824  del 10/08/2018 RIFATTURAZIONE FATTURA ORIGINARIA 2 BIM 2015 8E00154098 LINEA 0444750420;11-09-2018;259;3;283;1;Spese correnti;3;Acquisto di beni e servizi;2;Acquisto di servizi;5;Utenze e canoni;1;Telefonia fissa;11-09-2018;
2131;1;0;"217,16";"217,16";TIM SPA; ;SALDO Fatt.n. 6820180805000823  del 10/08/2018 RIFATTURAZIONE FATTURA ORIGINARIA 8E00155922 2 BIM 2015 LINEA 044413040824;11-09-2018;259;3;283;1;Spese correnti;3;Acquisto di beni e servizi;2;Acquisto di servizi;5;Utenze e canoni;1;Telefonia fissa;11-09-2018;
2132;1;0;"179,01";"179,01";TIM SPA; ;SALDO Fatt.n. 6820180805001159  del 16/08/2018 RIFATTURAZIONE FATTURA ORIGINARIA 2 BIM 2015 8E00151851 LINEA 0444461601;11-09-2018;1651;0;284;1;Spese correnti;3;Acquisto di beni e servizi;2;Acquisto di servizi;5;Utenze e canoni;1;Telefonia fissa;11-09-2018;
2133;1;0;"12,18";"12,18";TIM SPA; ;SALDO Fatt.n. 6820180805001152  del 16/08/2018 RIFATTURAZIONE FATTURA ORIGINARIA 2 BIM 2015 8A00140519 LINEA 016113576725;11-09-2018;1651;0;284;1;Spese correnti;3;Acquisto di beni e servizi;2;Acquisto di servizi;5;Utenze e canoni;1;Telefonia fissa;11-09-2018;
2134;1;0;"61,97";"61,97";TIM SPA; ;SALDO Fatt.n. 8E00714934  del 06/08/2018 5BIM 2018;11-09-2018;259;3;50;1;Spese correnti;3;Acquisto di beni e servizi;2;Acquisto di servizi;5;Utenze e canoni;1;Telefonia fissa;11-09-2018;
2135;1;0;"335,48";"335,48";TIM SPA; ;SALDO Fatt.n. 8E00715265  del 06/08/2018 5BIM 2018;11-09-2018;259;3;50;1;Spese correnti;3;Acquisto di beni e servizi;2;Acquisto di servizi;5;Utenze e canoni;1;Telefonia fissa;11-09-2018;
2136;1;0;"54,22";"54,22";TIM SPA; ;SALDO Fatt.n. 8E00720338  del 06/08/2018 5BIM 2018;11-09-2018;259;3;50;1;Spese correnti;3;Acquisto di beni e servizi;2;Acquisto di servizi;5;Utenze e canoni;1;Telefonia fissa;11-09-2018;
2137;1;0;"12,30";"12,30";TIM SPA; ;SALDO Fatt.n. 8A00607454  del 06/08/2018 5BIM 2018;11-09-2018;259;3;50;1;Spese correnti;3;Acquisto di beni e servizi;2;Acquisto di servizi;5;Utenze e canoni;1;Telefonia fissa;11-09-2018;
2138;1;0;"158,60";"158,60";TIM SPA; ;SALDO Fatt.n. 8E00718251  del 06/08/2018 5BIM 2018;11-09-2018;259;3;50;1;Spese correnti;3;Acquisto di beni e servizi;2;Acquisto di servizi;5;Utenze e canoni;1;Telefonia fissa;11-09-2018;
2139;1;0;"219,31";"219,31";TIM SPA; ;SALDO Fatt.n. 8E00717217  del 06/08/2018 5BIM 2018;11-09-2018;259;3;50;1;Spese correnti;3;Acquisto di beni e servizi;2;Acquisto di servizi;5;Utenze e canoni;1;Telefonia fissa;11-09-2018;
2140;1;0;"26,21";"26,21";TIM SPA; ;SALDO Fatt.n. 8E00717070  del 06/08/2018 5BIM 2018;11-09-2018;259;3;50;1;Spese correnti;3;Acquisto di beni e servizi;2;Acquisto di servizi;5;Utenze e canoni;1;Telefonia fissa;11-09-2018;
2141;1;0;"160,24";"160,24";TIM SPA; ;SALDO Fatt.n. 8E00715271  del 06/08/2018 5BIM 2018;11-09-2018;1651;0;308;1;Spese correnti;3;Acquisto di beni e servizi;2;Acquisto di servizi;5;Utenze e canoni;1;Telefonia fissa;11-09-2018;
2142;1;0;"58,48";"58,48";TIM SPA; ;SALDO Fatt.n. 8E00720226  del 06/08/2018 5BIM 2018;11-09-2018;1651;0;308;1;Spese correnti;3;Acquisto di beni e servizi;2;Acquisto di servizi;5;Utenze e canoni;1;Telefonia fissa;11-09-2018;
2143;1;0;"111,95";"111,95";TIM SPA; ;SALDO Fatt.n. 8E00717004  del 06/08/2018 5BIM 2018;11-09-2018;1651;0;308;1;Spese correnti;3;Acquisto di beni e servizi;2;Acquisto di servizi;5;Utenze e canoni;1;Telefonia fissa;11-09-2018;
2144;1;0;"109,53";"109,53";TIM SPA; ;SALDO Fatt.n. 8E00716819  del 06/08/2018 5BIM 2018;11-09-2018;1651;0;308;1;Spese correnti;3;Acquisto di beni e servizi;2;Acquisto di servizi;5;Utenze e canoni;1;Telefonia fissa;11-09-2018;
2145;1;0;"536,80";"536,80";MAGGIOLI SPA;Z801ACE20E;SALDO Fatt.n. 0002134359  del 28/08/2018 SERVIZIO ENTI.IT TRIENNALE ULTIMA RATA 2018;13-09-2018;329;2;473;1;Spese correnti;3;Acquisto di beni e servizi;2;Acquisto di servizi;5;Utenze e canoni;3;Accesso a banche dati e a pubblicazioni on line;13-09-2018;
2146;1;0;"610,00";"610,00";ACCATRE S.R.L.;ZF723B479A;SALDO Fatt.n. 1/181002  del 11/07/2018 PROGETTO RIVALUTAZIONE STATO PATRIMONIO ANNO 2018;13-09-2018;343;0;450;1;Spese correnti;3;Acquisto di beni e servizi;2;Acquisto di servizi;19;Servizi informatici e di telecomunicazioni;9;Servizi per le postazioni di lavoro e relativa manutenzione;13-09-2018;
2149;1;0;"13.300,00";"13.300,00";ISTITUTO COMPRENSIVO STATALE "G.ZANELLA" SANDRIGO; ;"TRASFERIMENTO PER SPESE DI FUNZIONAMENTO, PROGETTO ED. ALL'AFFETTIVITA', PROGETTO ARCHIMEDE E ATTIVITA' AG. EDUCATIVE";13-09-2018;1620;0;588;1;Spese correnti;4;Trasferimenti correnti;1;Trasferimenti correnti a Amministrazioni Pubbliche;1;Trasferimenti correnti a Amministrazioni Centrali;2;Trasferimenti correnti a Ministero dell'Istruzione - Istituzioni scolastiche;13-09-2018;
2150;1;0;"12.499,56";"12.499,56";ISTITUTO COMPRENSIVO STATALE "G.ZANELLA" SANDRIGO; ;TRASFERIMENTI PER PROGETTO SCUOLA AMBIENTALE;13-09-2018;1620;1;589;1;Spese correnti;4;Trasferimenti correnti;1;Trasferimenti correnti a Amministrazioni Pubbliche;1;Trasferimenti correnti a Amministrazioni Centrali;2;Trasferimenti correnti a Ministero dell'Istruzione - Istituzioni scolastiche;13-09-2018;
2151;1;0;"5.952,07";"5.952,07";ISTITUTO COMPRENSIVO STATALE "G.ZANELLA" SANDRIGO; ;TRASFERIMENTI PER PROGETTO COREUTICO-MUSICALE;13-09-2018;1584;0;590;1;Spese correnti;4;Trasferimenti correnti;1;Trasferimenti correnti a Amministrazioni Pubbliche;1;Trasferimenti correnti a Amministrazioni Centrali;2;Trasferimenti correnti a Ministero dell'Istruzione - Istituzioni scolastiche;13-09-2018;
2152;1;0;"1.084,58";"1.084,58";GARDEN FIORI E FOGLIE SOLUTION di De Pretto S.;Z8C249A7E0;SALDO Fatt.n. 000015-2018-PA  del 03/09/2018 SFALCIO ERBA AREA VERDE PISTA CICLABILE VIA PIEVE;13-09-2018;3343;0;574;1;Spese correnti;3;Acquisto di beni e servizi;2;Acquisto di servizi;99;Altri servizi;999;Altri servizi diversi n.a.c.;13-09-2018;
2153;1;0;"3.291,20";"3.291,20";ROSTICCERIA GASTRONOMIA CUNICO INES DI POLTRONIERI S.;Z2321D9C9E;SALDO Fatt.n. FATTPA 13_18  del 31/07/2018 FORNITURA PASTI MESE LUGLIO 2018;13-09-2018;3139;0;159;1;Spese correnti;3;Acquisto di beni e servizi;1;Acquisto di beni;2;Altri beni di consumo;11;Generi alimentari;13-09-2018;
2154;1;0;"1.792,00";"1.792,00";I.P.A.B. SUOR DIODATA BERTOLO; ;SALDO Fatt.n. 123/E  del 22/08/2018 RETTE OSPITI MESE AGOSTO 2018;13-09-2018;3201;0;151;1;Spese correnti;3;Acquisto di beni e servizi;2;Acquisto di servizi;15;Contratti di servizio pubblico;8;Contratti di servizio di assistenza sociale residenziale e semiresidenziale;13-09-2018;
2155;1;0;"305,00";"305,00";COMMERCIALE IDRAULICA SRL;ZEB2484319;SALDO Fatt.n. 2/45  del 04/09/2018 BOX DOCCIA;13-09-2018;928;0;569;1;Spese correnti;3;Acquisto di beni e servizi;2;Acquisto di servizi;9;Manutenzione ordinaria e riparazioni;8;Manutenzione ordinaria e riparazioni di beni immobili;13-09-2018;
2156;1;0;"788,02";"788,02";CERIN INGROSSO SPA;ZFA2425B56;SALDO Fatt.n. 29 PA  del 31/08/2018 MATERIALE VARIO FERRAMENTA;13-09-2018;260;0;520;1;Spese correnti;3;Acquisto di beni e servizi;1;Acquisto di beni;2;Altri beni di consumo;999;Altri beni e materiali di consumo n.a.c.;13-09-2018;
2157;1;0;"1.607,00";"1.607,00";COMUNE DI BOLZANO VICENTINO; ;EROGAZIONE CONTRIBUTO AL COMUNE DI BOLZANO VICENTINO PER IL PROGETTO "IN GAJA" - IMPEGNO DI SPESA E CONTESTUALE LIQUIDAZIONE;13-09-2018;3162;0;310;1;Spese correnti;4;Trasferimenti correnti;1;Trasferimenti correnti a Amministrazioni Pubbliche;2;Trasferimenti correnti a Amministrazioni Locali;3;Trasferimenti correnti a Comuni;13-09-2018;
2158;1;1724;"400,00";"800,00";OMESSO NOMINATIVO NEL RISPETTO DELLA NORMATIVA SULLA PROTEZIONE DATI PERSONALI; ;PROGETTO DI INTEGRAZIONE SOCIALE - RIA - CITTADINANZE REINCONTRATE 4. - LIQUIDAZIONE 3^ MENSILITA'.;13-09-2018;3248;0;573;1;Spese correnti;4;Trasferimenti correnti;3;Trasferimenti correnti a Imprese;99;Trasferimenti correnti a altre imprese;999;Trasferimenti correnti a altre imprese;12-10-2018;
2158;2;1725;"400,00";"800,00";OMESSO NOMINATIVO NEL RISPETTO DELLA NORMATIVA SULLA PROTEZIONE DATI PERSONALI; ;PROGETTO DI INTEGRAZIONE SOCIALE - RIA - CITTADINANZE REINCONTRATE 4. - LIQUIDAZIONE 3^ MENSILITA'.;13-09-2018;3248;0;573;1;Spese correnti;4;Trasferimenti correnti;3;Trasferimenti correnti a Imprese;99;Trasferimenti correnti a altre imprese;999;Trasferimenti correnti a altre imprese;12-10-2018;
2159;1;0;"350,00";"350,00";POLISPORTIVA OLIMPIA ASS.SP.DILETT.; ;ATTO DI LIQUIDAZIONE SALDO CONTRIBUTI ASSOCIAZIONI VARIE.;13-09-2018;450;0;569;1;Spese correnti;4;Trasferimenti correnti;4;Trasferimenti correnti a Istituzioni Sociali Private;1;Trasferimenti correnti a Istituzioni Sociali Private;1;Trasferimenti correnti a Istituzioni Sociali Private;13-09-2018;
2160;1;0;"350,00";"350,00";HIGH PROMOTION ASSOCIAZIONE; ;ATTO DI LIQUIDAZIONE SALDO CONTRIBUTI ASSOCIAZIONI VARIE.;13-09-2018;451;0;615;1;Spese correnti;4;Trasferimenti correnti;4;Trasferimenti correnti a Istituzioni Sociali Private;1;Trasferimenti correnti a Istituzioni Sociali Private;1;Trasferimenti correnti a Istituzioni Sociali Private;13-09-2018;
2161;1;0;"500,00";"500,00";HIGH PROMOTION ASSOCIAZIONE; ;ATTO DI LIQUIDAZIONE SALDO CONTRIBUTI ASSOCIAZIONI VARIE.;13-09-2018;451;0;448;1;Spese correnti;4;Trasferimenti correnti;4;Trasferimenti correnti a Istituzioni Sociali Private;1;Trasferimenti correnti a Istituzioni Sociali Private;1;Trasferimenti correnti a Istituzioni Sociali Private;13-09-2018;
2162;1;0;"500,00";"500,00";HIGH PROMOTION ASSOCIAZIONE; ;ATTO DI LIQUIDAZIONE SALDO CONTRIBUTI ASSOCIAZIONI VARIE.;13-09-2018;451;0;422;1;Spese correnti;4;Trasferimenti correnti;4;Trasferimenti correnti a Istituzioni Sociali Private;1;Trasferimenti correnti a Istituzioni Sociali Private;1;Trasferimenti correnti a Istituzioni Sociali Private;13-09-2018;
2163;1;0;"700,00";"700,00";ASSOCIAZIONE FIERA DEL VERDE; ;ATTO DI LIQUIDAZIONE SALDO CONTRIBUTI ASSOCIAZIONI VARIE.;13-09-2018;451;0;326;1;Spese correnti;4;Trasferimenti correnti;4;Trasferimenti correnti a Istituzioni Sociali Private;1;Trasferimenti correnti a Istituzioni Sociali Private;1;Trasferimenti correnti a Istituzioni Sociali Private;13-09-2018;
2164;1;0;"805,92";"805,92";MINISTERO DELL'INTERNO; ;CIE EMESSE DAL 16 AL 31 AGOSTO 2018. LIQUIDAZIONE COMPETENZE DI SPETTANZA DEL MINISTERO;13-09-2018;901;0;147;1;Spese correnti;4;Trasferimenti correnti;1;Trasferimenti correnti a Amministrazioni Pubbliche;1;Trasferimenti correnti a Amministrazioni Centrali;1;Trasferimenti correnti a Ministeri;13-09-2018;
2165;1;0;"1.019,41";"1.019,41";KUWAIT PETROLEUM ITALIA SPA;ZE3176A2E8;ACCONTO Fatt.n. PJ00289129  del 31/08/2018 CONSUMO CARBURANTE MESE AGOSTO 2018;13-09-2018;780;0;251;1;Spese correnti;3;Acquisto di beni e servizi;1;Acquisto di beni;2;Altri beni di consumo;2;"Carburanti, combustibili e lubrificanti";13-09-2018;
2166;1;0;"160,32";"160,32";KUWAIT PETROLEUM ITALIA SPA;ZE3176A2E8;SALDO Fatt.n. PJ00289129  del 31/08/2018 CONSUMO CARBURANTE MESE AGOSTO 2018;13-09-2018;3182;0;252;1;Spese correnti;3;Acquisto di beni e servizi;1;Acquisto di beni;2;Altri beni di consumo;2;"Carburanti, combustibili e lubrificanti";13-09-2018;
2167;1;0;"373,32";"373,32";SOLUZIONE SRL;Z0E1F2614F;SALDO Fatt.n. 0002102620  del 31/08/2018 ABBONAMENTO ARMONIZZAZIONE CONTABILE - PRATICA ON LINE;13-09-2018;329;2;470;1;Spese correnti;3;Acquisto di beni e servizi;2;Acquisto di servizi;5;Utenze e canoni;3;Accesso a banche dati e a pubblicazioni on line;13-09-2018;
2168;1;0;"1.000,00";"1.000,00";ACCATRE S.R.L.;ZF223B6A88;SALDO Fatt.n. 1/181192  del 07/09/2018 CONVENZIONE PER IL SERVIZIO DI BILANCIO CONSOLIDATO ANNO 2018;13-09-2018;329;1;507;1;Spese correnti;3;Acquisto di beni e servizi;2;Acquisto di servizi;19;Servizi informatici e di telecomunicazioni;2;Assistenza all'utente e formazione;13-09-2018;
2169;1;0;"71.714,96";"71.714,96";TREVISAN S.R.L.;725131459C;ACCONTO Fatt.n. 15/03  del 04/07/2018 APPALTO MANUTENZIONE LAVORI ASFALTATURE STRADE COMUNALI;14-09-2018;4584;0;737;2;Spese in conto capitale;2;Investimenti fissi lordi e acquisto di terreni;1;Beni materiali;9;Beni immobili;12;Infrastrutture stradali;14-09-2018;
2170;1;0;"17.345,04";"17.345,04";TREVISAN S.R.L.;725131459C;SALDO Fatt.n. 15/03  del 04/07/2018 APPALTO MANUTENZIONE LAVORI ASFALTATURE STRADE COMUNALI;14-09-2018;4584;0;511;2;Spese in conto capitale;2;Investimenti fissi lordi e acquisto di terreni;1;Beni materiali;9;Beni immobili;12;Infrastrutture stradali;14-09-2018;
2171;1;0;"2.440,00";"2.440,00";ACCATRE S.R.L.;ZCC20D07A3;SALDO Fatt.n. 1/180842  del 13/06/2018 CONVENZIONE SERVIZI ANNO 2018;14-09-2018;343;0;722;1;Spese correnti;3;Acquisto di beni e servizi;2;Acquisto di servizi;19;Servizi informatici e di telecomunicazioni;9;Servizi per le postazioni di lavoro e relativa manutenzione;14-09-2018;
2172;1;0;"12.666,04";"12.666,04";ACCATRE S.R.L.;ZD71CC898C;SALDO Fatt.n. 1/181126  del 10/08/2018 CONVENZIONE SERVIZI ANNO 2018;14-09-2018;343;0;94;1;Spese correnti;3;Acquisto di beni e servizi;2;Acquisto di servizi;19;Servizi informatici e di telecomunicazioni;9;Servizi per le postazioni di lavoro e relativa manutenzione;14-09-2018;
2173;1;0;"1.609,61";"1.609,61";TIM SPA;29726146AB;SALDO Fatt.n. 7X03071011  del 14/08/2018 5' BIMESTRE 2018;14-09-2018;259;3;49;1;Spese correnti;3;Acquisto di beni e servizi;2;Acquisto di servizi;5;Utenze e canoni;2;Telefonia mobile;14-09-2018;
2174;1;0;"4.280,68";"4.280,68";IL CASTORO SNC DI BEDIN GINO E MATTEO;Z9D22D0C6F;SALDO Fatt.n. 16E  del 30/07/2018 SFALCIO ERBA CIGLI E SCARPATE STRADALI;17-09-2018;3343;0;320;1;Spese correnti;3;Acquisto di beni e servizi;2;Acquisto di servizi;99;Altri servizi;999;Altri servizi diversi n.a.c.;17-09-2018;
2175;1;0;"1.037,00";"1.037,00";IL CASTORO SNC DI BEDIN GINO E MATTEO;Z42235E83E;ACCONTO Fatt.n. 17E  del 30/07/2018 SFALCIO SUPERFICI EX DISCARICA DI VIA GALVANI;17-09-2018;2798;0;458;1;Spese correnti;3;Acquisto di beni e servizi;2;Acquisto di servizi;99;Altri servizi;999;Altri servizi diversi n.a.c.;17-09-2018;
2176;1;0;"2.867,00";"2.867,00";IL CASTORO SNC DI BEDIN GINO E MATTEO;Z42235E83E;SALDO Fatt.n. 17E  del 30/07/2018 SFALCIO SUPERFICI EX DISCARICA DI VIA GALVANI;17-09-2018;2798;0;458;1;Spese correnti;3;Acquisto di beni e servizi;2;Acquisto di servizi;99;Altri servizi;999;Altri servizi diversi n.a.c.;17-09-2018;
2177;1;0;"214,10";"214,10";COMMERCIALE '98 SRL;ZF721B7BC0;SALDO Fatt.n. 11/E  del 31/08/2018 FORNITURA MATERIALE IDRAULICO VARIO;17-09-2018;1640;0;344;1;Spese correnti;3;Acquisto di beni e servizi;1;Acquisto di beni;2;Altri beni di consumo;999;Altri beni e materiali di consumo n.a.c.;17-09-2018;
2178;1;0;"1.267,19";"1.267,19";CAVALIERE SRL;ZB522F020A;"ACCONTO Fatt.n. 343 / 210105  del 31/08/2018 Veicolo - Targa: CL566TV , Telaio: ZCFC3580105246914 , KM: 191715 , Descr Veicolo: IVECO - Daily 35.10 2.8 TD PC Cabinato Basic";17-09-2018;781;0;583;1;Spese correnti;3;Acquisto di beni e servizi;2;Acquisto di servizi;9;Manutenzione ordinaria e riparazioni;1;"Manutenzione ordinaria e riparazioni di mezzi di trasporto ad uso civile, di sicurezza e ordine pubblico";17-09-2018;
2179;1;0;"842,81";"842,81";CAVALIERE SRL;ZB522F020A;"SALDO Fatt.n. 343 / 210105  del 31/08/2018 Veicolo - Targa: CL566TV , Telaio: ZCFC3580105246914 , KM: 191715 , Descr Veicolo: IVECO - Daily 35.10 2.8 TD PC Cabinato Basic";17-09-2018;781;0;287;1;Spese correnti;3;Acquisto di beni e servizi;2;Acquisto di servizi;9;Manutenzione ordinaria e riparazioni;1;"Manutenzione ordinaria e riparazioni di mezzi di trasporto ad uso civile, di sicurezza e ordine pubblico";17-09-2018;
2180;1;0;"364,00";"364,00";MATERIALE EDILE DONA' SRL;Z5A21B8566;ACCONTO Fatt.n. 0000012  del 31/08/2018 MATERIALE EDILE VARIO;17-09-2018;3420;0;113;1;Spese correnti;3;Acquisto di beni e servizi;1;Acquisto di beni;2;Altri beni di consumo;999;Altri beni e materiali di consumo n.a.c.;17-09-2018;
2181;1;0;"207,45";"207,45";MATERIALE EDILE DONA' SRL;Z5A21B8566;SALDO Fatt.n. 0000012  del 31/08/2018 MATERIALE EDILE VARIO;17-09-2018;960;0;564;1;Spese correnti;3;Acquisto di beni e servizi;1;Acquisto di beni;2;Altri beni di consumo;999;Altri beni e materiali di consumo n.a.c.;17-09-2018;
2182;1;0;"2.372,90";"2.372,90";LOCATELLI EUROCONTAINERS SPA; ;SALDO Fatt.n. 1462/18  del 29/08/2018 INTERVENTO SISTEMAZIONE CONTAINER - ECOCENTRO;17-09-2018;2689;0;572;1;Spese correnti;3;Acquisto di beni e servizi;2;Acquisto di servizi;13;Servizi ausiliari per il funzionamento dell'ente;999;Altri servizi ausiliari n.a.c.;17-09-2018;
2183;1;1723;"400,00";"800,00";OMESSO NOMINATIVO NEL RISPETTO DELLA NORMATIVA SULLA PROTEZIONE DATI PERSONALI; ;PROGETTO DI INTEGRAZIONE SOCIALE - RIA - CITTADINANZE REICONTRATE 4. - LIQUIDAZIONE 4^ MENSILITA'.;17-09-2018;3248;0;573;1;Spese correnti;4;Trasferimenti correnti;3;Trasferimenti correnti a Imprese;99;Trasferimenti correnti a altre imprese;999;Trasferimenti correnti a altre imprese;12-10-2018;
2183;2;1726;"400,00";"800,00";OMESSO NOMINATIVO NEL RISPETTO DELLA NORMATIVA SULLA PROTEZIONE DATI PERSONALI; ;PROGETTO DI INTEGRAZIONE SOCIALE - RIA - CITTADINANZE REICONTRATE 4. - LIQUIDAZIONE 4^ MENSILITA'.;17-09-2018;3248;0;573;1;Spese correnti;4;Trasferimenti correnti;3;Trasferimenti correnti a Imprese;99;Trasferimenti correnti a altre imprese;999;Trasferimenti correnti a altre imprese;12-10-2018;
2184;1;0;"3.160,30";"3.160,30";COOP.SOCIALE DI SOLIDARIETA' S.MARCO a r.l. O.N.L.U.S.;ZE021A05E0;SALDO Fatt.n. 157/01  del 31/08/2018 SERVIZIO CONDUZIONE ECOCENTRO MESE AGOSTO 2018;17-09-2018;2689;0;164;1;Spese correnti;3;Acquisto di beni e servizi;2;Acquisto di servizi;13;Servizi ausiliari per il funzionamento dell'ente;999;Altri servizi ausiliari n.a.c.;17-09-2018;
2195;1;0;"8,50";"8,50";PERSONALE DIPENDENTE; ;STIPENDI MESE DI: SETTEMBRE 18;18-09-2018;104;0;39;1;Spese correnti;3;Acquisto di beni e servizi;2;Acquisto di servizi;2;"Organizzazione eventi, pubblicita` e servizi per trasferta";1;Rimborso per viaggio e trasloco;18-09-2018;
2204;1;0;"5,50";"5,50";PERSONALE DIPENDENTE; ;STIPENDI MESE DI: SETTEMBRE 18;18-09-2018;113;0;40;1;Spese correnti;3;Acquisto di beni e servizi;2;Acquisto di servizi;2;"Organizzazione eventi, pubblicita` e servizi per trasferta";1;Rimborso per viaggio e trasloco;18-09-2018;
2280;1;0;"5.333,70";"5.333,70";AMMINISTRATORI COMUNALI E CONSIGLIERI; ;STIPENDI MESE DI: SETTEMBRE 18;18-09-2018;20;0;8;1;Spese correnti;3;Acquisto di beni e servizi;2;Acquisto di servizi;1;Organi e incarichi istituzionali dell'amministrazione;1;Organi istituzionali dell'amministrazione - Indennità;18-09-2018;
2285;1;0;"0,52";"0,52";AGENZIA DELLE ENTRATE; ;VERSAMENTO SOMME DA RAVVEDIMENTO OPEROSO STUDIO BOSCHETTI;18-09-2018;3002;0;0;1;Spese correnti;10;Altre spese correnti;5;"Spese dovute a sanzioni, risarcimenti e indennizzi";1;Spese dovute a sanzioni;1;Spese dovute a sanzioni;18-09-2018;
2287;1;0;"31.853,42";"31.853,42";SO.RA.RIS. SPA; ;SALDO Fatt.n. 000145/PA  del 31/08/2018 SERVIZIO NETTEZZA URBANA CANONE MESE AGOSTO 2018;18-09-2018;2691;0;542;1;Spese correnti;3;Acquisto di beni e servizi;2;Acquisto di servizi;15;Contratti di servizio pubblico;4;Contratti di servizio per la raccolta rifiuti;18-09-2018;
2288;1;0;"7.683,02";"7.683,02";GLOBAL POWER SERVICE SPA;6239603B46;SALDO Fatt.n. 2018-V5-180  del 01/09/2018 CANONE RISPARMIO ENERGETICO CONV.NE IP MESE SETTEMBRE 2018;18-09-2018;3320;0;127;1;Spese correnti;3;Acquisto di beni e servizi;2;Acquisto di servizi;9;Manutenzione ordinaria e riparazioni;4;Manutenzione ordinaria e riparazioni di impianti e macchinari;18-09-2018;
2289;1;0;"921,10";"921,10";GLOBAL POWER SERVICE SPA;6239603B46;SALDO Fatt.n. 2018-V5-181  del 01/09/2018 CANONE MANUTENZIONE ORDINARIA IMPIANTO IP MESE SETTEMBRE 2018;19-09-2018;3302;0;128;1;Spese correnti;3;Acquisto di beni e servizi;2;Acquisto di servizi;9;Manutenzione ordinaria e riparazioni;4;Manutenzione ordinaria e riparazioni di impianti e macchinari;19-09-2018;
2290;1;0;"9.147,46";"9.147,46";ASSOCIAZIONE SERVIZI PER L'INFANZIA TOMMASO ANDRIGHETTO; ;CONTRATTO DI LOCAZIONE DELL'IMMOBILE DI VIA GIARELLE N. 8 ADIBITO A SEDE DELLA SCUOLA MATERNA STATALE. LIQUIDAZIONE ANNO 2018.;19-09-2018;1430;0;689;1;Spese correnti;3;Acquisto di beni e servizi;2;Acquisto di servizi;7;Utilizzo di beni di terzi;1;Locazione di beni immobili;19-09-2018;
2291;1;0;"671,60";"671,60";MINISTERO DELL'INTERNO; ;CIE - EMESSE DAL 01.09.2018 AL 15.09.2018 - LIQUIDAZIONE DIRITTI DI SPETTANZA DEL MINISTERO;19-09-2018;901;0;147;1;Spese correnti;4;Trasferimenti correnti;1;Trasferimenti correnti a Amministrazioni Pubbliche;1;Trasferimenti correnti a Amministrazioni Centrali;1;Trasferimenti correnti a Ministeri;19-09-2018;
2292;1;0;"24.400,00";"24.400,00";GIS GESTIONE IMPIANTI SPORTIVI & TEMPO LIBERO SSD ARL;638002532F;SALDO Fatt.n. 18  del 01/09/2018 CONTRIBUTO CONTO GESTIONE PISCINA DI SANDRIGO PERIODO GENNAIO-DICEMBRE 2018;19-09-2018;2841;0;593;1;Spese correnti;4;Trasferimenti correnti;3;Trasferimenti correnti a Imprese;99;Trasferimenti correnti a altre imprese;999;Trasferimenti correnti a altre imprese;19-09-2018;
2295;1;0;"33,40";"33,40";POSTE ITALIANE SPA;ZF421B5C8C;IMPEGNO DI SPESA PER LA GESTIONE DEI CONTI CORRENTI POSTALI PER L'ANNO 2018.;21-09-2018;1115;0;71;1;Spese correnti;3;Acquisto di beni e servizi;2;Acquisto di servizi;3;Aggi di riscossione;999;Altri aggi di riscossione n.a.c.;21-09-2018;
2296;1;1664;"27,20";"27,20";AGENZIA DELLE ENTRATE - RISCOSSIONE; ;SPESE RISCOSSIONE CONCESSIONARIO RUOLI ADDIZIONALE COM.LE IRPEF EMESSI DA AGENZIA ENTRATE;24-09-2018;1115;0;422;1;Spese correnti;3;Acquisto di beni e servizi;2;Acquisto di servizi;3;Aggi di riscossione;999;Altri aggi di riscossione n.a.c.;01-10-2018;
2298;1;0;"77,57";"77,57";GLOBAL POWER SPA;622385037F;(SOS. 1614) - ACCONTO Fatt.n. V0/107349  del 04/09/2018 CONSUMI ENERGIA ELETTRICA MESE AGOSTO 2018 - ECOCENTRO;26-09-2018;2685;0;60;1;Spese correnti;3;Acquisto di beni e servizi;2;Acquisto di servizi;5;Utenze e canoni;4;Energia elettrica;26-09-2018;
2299;1;0;"168,83";"1.007,81";GLOBAL POWER SPA;622385037F;(SOS. 1612/P) - ACCONTO Fatt.n. V0/107353  del 04/09/2018 CONSUMI ENERGIA ELETTRICA MESE AGOSTO 2018 - SCUOLE;26-09-2018;259;0;51;1;Spese correnti;3;Acquisto di beni e servizi;2;Acquisto di servizi;5;Utenze e canoni;4;Energia elettrica;26-09-2018;
2299;2;0;"838,98";"1.007,81";GLOBAL POWER SPA;622385037F;(SOS. 1618/P) - ACCONTO Fatt.n. V0/107354  del 04/09/2018 CONSUMI ENERGIA ELETTRICA MESE AGOSTO 2018 - VARIE;26-09-2018;259;0;51;1;Spese correnti;3;Acquisto di beni e servizi;2;Acquisto di servizi;5;Utenze e canoni;4;Energia elettrica;26-09-2018;
2300;1;0;"-26,91";"580,18";GLOBAL POWER SPA;622385037F;(SOS. 1617) - SALDO Fatt.n. V0/94138  del 01/08/2018 Fattura Energia Elettrica - CENTRO DIREZIONALE MARCONI - LUGLIO 2018;27-09-2018;938;0;52;1;Spese correnti;3;Acquisto di beni e servizi;2;Acquisto di servizi;5;Utenze e canoni;4;Energia elettrica;27-09-2018;
2300;2;0;"52,21";"580,18";GLOBAL POWER SPA;622385037F;(SOS. 1617) - ACCONTO Fatt.n. V0/107351  del 04/09/2018 CONSUMI ENERGIA ELETTRICA MESE AGOSTO 2018 - CENTRO DIREZIONALE MARCONI;27-09-2018;938;0;52;1;Spese correnti;3;Acquisto di beni e servizi;2;Acquisto di servizi;5;Utenze e canoni;4;Energia elettrica;27-09-2018;
2300;3;0;"81,12";"580,18";GLOBAL POWER SPA;622385037F;(sos. 1615) - ACCONTO Fatt.n. V0/107350  del 04/09/2018 CONSUMI ENERGIA ELETTRICA MESE AGOSTO 2018 - PALAZZINA TRISSINO;27-09-2018;938;0;52;1;Spese correnti;3;Acquisto di beni e servizi;2;Acquisto di servizi;5;Utenze e canoni;4;Energia elettrica;27-09-2018;
2300;4;0;"473,76";"580,18";GLOBAL POWER SPA;622385037F;(SOS. 1618) - ACCONTO Fatt.n. V0/107354  del 04/09/2018 CONSUMI ENERGIA ELETTRICA MESE AGOSTO 2018 - VARIE;27-09-2018;938;0;52;1;Spese correnti;3;Acquisto di beni e servizi;2;Acquisto di servizi;5;Utenze e canoni;4;Energia elettrica;27-09-2018;
2301;1;0;"127,18";"258,50";GLOBAL POWER SPA;622385037F;(SOS. 1618/P) - ACCONTO Fatt.n. V0/107354  del 04/09/2018 CONSUMI ENERGIA ELETTRICA MESE AGOSTO 2018 - VARIE;27-09-2018;1432;0;53;1;Spese correnti;3;Acquisto di beni e servizi;2;Acquisto di servizi;5;Utenze e canoni;4;Energia elettrica;27-09-2018;
2301;2;0;"131,32";"258,50";GLOBAL POWER SPA;622385037F;(SOS. 1612/P) - ACCONTO Fatt.n. V0/107353  del 04/09/2018 CONSUMI ENERGIA ELETTRICA MESE AGOSTO 2018 - SCUOLE;27-09-2018;1432;0;53;1;Spese correnti;3;Acquisto di beni e servizi;2;Acquisto di servizi;5;Utenze e canoni;4;Energia elettrica;27-09-2018;
2302;1;0;"244,78";"244,78";GLOBAL POWER SPA;622385037F;(SOS. 1612/P) - ACCONTO Fatt.n. V0/107353  del 04/09/2018 CONSUMI ENERGIA ELETTRICA MESE AGOSTO 2018 - SCUOLE;27-09-2018;1573;0;54;1;Spese correnti;3;Acquisto di beni e servizi;2;Acquisto di servizi;5;Utenze e canoni;4;Energia elettrica;27-09-2018;
2303;1;0;"113,17";"259,97";GLOBAL POWER SPA;622385037F;(SOS. 1618/P) - ACCONTO Fatt.n. V0/107354  del 04/09/2018 CONSUMI ENERGIA ELETTRICA MESE AGOSTO 2018 - VARIE;27-09-2018;1651;1;55;1;Spese correnti;3;Acquisto di beni e servizi;2;Acquisto di servizi;5;Utenze e canoni;4;Energia elettrica;27-09-2018;
2303;2;0;"146,80";"259,97";GLOBAL POWER SPA;622385037F;(SOS. 1612/P) - ACCONTO Fatt.n. V0/107353  del 04/09/2018 CONSUMI ENERGIA ELETTRICA MESE AGOSTO 2018 - SCUOLE;27-09-2018;1651;1;55;1;Spese correnti;3;Acquisto di beni e servizi;2;Acquisto di servizi;5;Utenze e canoni;4;Energia elettrica;27-09-2018;
2304;1;0;"686,64";"686,64";GLOBAL POWER SPA;622385037F;(SOS. 1618/P) - ACCONTO Fatt.n. V0/107354  del 04/09/2018 CONSUMI ENERGIA ELETTRICA MESE AGOSTO 2018 - VARIE;27-09-2018;1810;0;56;1;Spese correnti;3;Acquisto di beni e servizi;2;Acquisto di servizi;5;Utenze e canoni;4;Energia elettrica;27-09-2018;
2305;1;0;"148,20";"148,20";GLOBAL POWER SPA;622385037F;(SOS. 1616/P) - ACCONTO Fatt.n. V0/107355  del 04/09/2018 CONSUMI ENERGIA ELETTRICA MESE AGOSTO 2018 - CIMITERI;27-09-2018;2240;0;57;1;Spese correnti;3;Acquisto di beni e servizi;2;Acquisto di servizi;5;Utenze e canoni;4;Energia elettrica;27-09-2018;
2306;1;0;"97,50";"97,50";GLOBAL POWER SPA;622385037F;(SOS. 1618/P) - ACCONTO Fatt.n. V0/107354  del 04/09/2018 CONSUMI ENERGIA ELETTRICA MESE AGOSTO 2018 - VARIE;27-09-2018;3147;0;58;1;Spese correnti;3;Acquisto di beni e servizi;2;Acquisto di servizi;5;Utenze e canoni;4;Energia elettrica;27-09-2018;
2307;1;0;"103,65";"4.176,83";GLOBAL POWER SPA;622385037F;(SOS. 1618/P) - ACCONTO Fatt.n. V0/107354  del 04/09/2018 CONSUMI ENERGIA ELETTRICA MESE AGOSTO 2018 - VARIE;27-09-2018;3303;0;59;1;Spese correnti;3;Acquisto di beni e servizi;2;Acquisto di servizi;5;Utenze e canoni;4;Energia elettrica;27-09-2018;
2307;2;0;"4.073,18";"4.176,83";GLOBAL POWER SPA;622385037F;(SOS. 1613) - ACCONTO Fatt.n. V0/107352  del 04/09/2018 CONSUMI ENERGIA ELETTRICA MESE AGOSTO 2018 - ILL.NE PUBBLICA;27-09-2018;3303;0;59;1;Spese correnti;3;Acquisto di beni e servizi;2;Acquisto di servizi;5;Utenze e canoni;4;Energia elettrica;27-09-2018;
2308;1;0;"17,07";"17,07";GLOBAL POWER SPA;622385037F;SALDO Fatt.n. V0/107349  del 04/09/2018 CONSUMI ENERGIA ELETTRICA MESE AGOSTO 2018 - ECOCENTRO;27-09-2018;2685;0;60;1;Spese correnti;3;Acquisto di beni e servizi;2;Acquisto di servizi;5;Utenze e canoni;4;Energia elettrica;27-09-2018;
2309;1;0;"37,14";"221,71";GLOBAL POWER SPA;622385037F;ACCONTO Fatt.n. V0/107353  del 04/09/2018 CONSUMI ENERGIA ELETTRICA MESE AGOSTO 2018 - SCUOLE;27-09-2018;259;0;51;1;Spese correnti;3;Acquisto di beni e servizi;2;Acquisto di servizi;5;Utenze e canoni;4;Energia elettrica;27-09-2018;
2309;2;0;"184,57";"221,71";GLOBAL POWER SPA;622385037F;ACCONTO Fatt.n. V0/107354  del 04/09/2018 CONSUMI ENERGIA ELETTRICA MESE AGOSTO 2018 - VARIE;27-09-2018;259;0;51;1;Spese correnti;3;Acquisto di beni e servizi;2;Acquisto di servizi;5;Utenze e canoni;4;Energia elettrica;27-09-2018;
2310;1;0;"-5,92";"117,91";GLOBAL POWER SPA;622385037F;SALDO Fatt.n. V0/94138  del 01/08/2018 Fattura Energia Elettrica - CENTRO DIREZIONALE MARCONI - LUGLIO 2018;27-09-2018;938;0;52;1;Spese correnti;3;Acquisto di beni e servizi;2;Acquisto di servizi;5;Utenze e canoni;4;Energia elettrica;27-09-2018;
2310;2;0;"8,11";"117,91";GLOBAL POWER SPA;622385037F;SALDO Fatt.n. V0/107350  del 04/09/2018 CONSUMI ENERGIA ELETTRICA MESE AGOSTO 2018 - PALAZZINA TRISSINO;27-09-2018;938;0;52;1;Spese correnti;3;Acquisto di beni e servizi;2;Acquisto di servizi;5;Utenze e canoni;4;Energia elettrica;27-09-2018;
2310;3;0;"11,49";"117,91";GLOBAL POWER SPA;622385037F;SALDO Fatt.n. V0/107351  del 04/09/2018 CONSUMI ENERGIA ELETTRICA MESE AGOSTO 2018 - CENTRO DIREZIONALE MARCONI;27-09-2018;938;0;52;1;Spese correnti;3;Acquisto di beni e servizi;2;Acquisto di servizi;5;Utenze e canoni;4;Energia elettrica;27-09-2018;
2310;4;0;"104,23";"117,91";GLOBAL POWER SPA;622385037F;ACCONTO Fatt.n. V0/107354  del 04/09/2018 CONSUMI ENERGIA ELETTRICA MESE AGOSTO 2018 - VARIE;27-09-2018;938;0;52;1;Spese correnti;3;Acquisto di beni e servizi;2;Acquisto di servizi;5;Utenze e canoni;4;Energia elettrica;27-09-2018;
2311;1;0;"12,72";"25,85";GLOBAL POWER SPA;622385037F;ACCONTO Fatt.n. V0/107354  del 04/09/2018 CONSUMI ENERGIA ELETTRICA MESE AGOSTO 2018 - VARIE;27-09-2018;1432;0;53;1;Spese correnti;3;Acquisto di beni e servizi;2;Acquisto di servizi;5;Utenze e canoni;4;Energia elettrica;27-09-2018;
2311;2;0;"13,13";"25,85";GLOBAL POWER SPA;622385037F;ACCONTO Fatt.n. V0/107353  del 04/09/2018 CONSUMI ENERGIA ELETTRICA MESE AGOSTO 2018 - SCUOLE;27-09-2018;1432;0;53;1;Spese correnti;3;Acquisto di beni e servizi;2;Acquisto di servizi;5;Utenze e canoni;4;Energia elettrica;27-09-2018;
2312;1;0;"24,48";"24,48";GLOBAL POWER SPA;622385037F;ACCONTO Fatt.n. V0/107353  del 04/09/2018 CONSUMI ENERGIA ELETTRICA MESE AGOSTO 2018 - SCUOLE;27-09-2018;1573;0;54;1;Spese correnti;3;Acquisto di beni e servizi;2;Acquisto di servizi;5;Utenze e canoni;4;Energia elettrica;27-09-2018;
2313;1;0;"14,68";"39,58";GLOBAL POWER SPA;622385037F;SALDO Fatt.n. V0/107353  del 04/09/2018 CONSUMI ENERGIA ELETTRICA MESE AGOSTO 2018 - SCUOLE;27-09-2018;1651;1;55;1;Spese correnti;3;Acquisto di beni e servizi;2;Acquisto di servizi;5;Utenze e canoni;4;Energia elettrica;27-09-2018;
2313;2;0;"24,90";"39,58";GLOBAL POWER SPA;622385037F;ACCONTO Fatt.n. V0/107354  del 04/09/2018 CONSUMI ENERGIA ELETTRICA MESE AGOSTO 2018 - VARIE;27-09-2018;1651;1;55;1;Spese correnti;3;Acquisto di beni e servizi;2;Acquisto di servizi;5;Utenze e canoni;4;Energia elettrica;27-09-2018;
2314;1;0;"151,06";"151,06";GLOBAL POWER SPA;622385037F;ACCONTO Fatt.n. V0/107354  del 04/09/2018 CONSUMI ENERGIA ELETTRICA MESE AGOSTO 2018 - VARIE;27-09-2018;1810;0;56;1;Spese correnti;3;Acquisto di beni e servizi;2;Acquisto di servizi;5;Utenze e canoni;4;Energia elettrica;27-09-2018;
2315;1;0;"32,60";"32,60";GLOBAL POWER SPA;622385037F;SALDO Fatt.n. V0/107355  del 04/09/2018 CONSUMI ENERGIA ELETTRICA MESE AGOSTO 2018 - CIMITERI;27-09-2018;2240;0;57;1;Spese correnti;3;Acquisto di beni e servizi;2;Acquisto di servizi;5;Utenze e canoni;4;Energia elettrica;27-09-2018;
2316;1;0;"21,45";"21,45";GLOBAL POWER SPA;622385037F;ACCONTO Fatt.n. V0/107354  del 04/09/2018 CONSUMI ENERGIA ELETTRICA MESE AGOSTO 2018 - VARIE;27-09-2018;3147;0;58;1;Spese correnti;3;Acquisto di beni e servizi;2;Acquisto di servizi;5;Utenze e canoni;4;Energia elettrica;27-09-2018;
2317;1;0;"22,80";"918,90";GLOBAL POWER SPA;622385037F;SALDO Fatt.n. V0/107354  del 04/09/2018 CONSUMI ENERGIA ELETTRICA MESE AGOSTO 2018 - VARIE;27-09-2018;3303;0;59;1;Spese correnti;3;Acquisto di beni e servizi;2;Acquisto di servizi;5;Utenze e canoni;4;Energia elettrica;27-09-2018;
2317;2;0;"896,10";"918,90";GLOBAL POWER SPA;622385037F;SALDO Fatt.n. V0/107352  del 04/09/2018 CONSUMI ENERGIA ELETTRICA MESE AGOSTO 2018 - ILL.NE PUBBLICA;27-09-2018;3303;0;59;1;Spese correnti;3;Acquisto di beni e servizi;2;Acquisto di servizi;5;Utenze e canoni;4;Energia elettrica;27-09-2018;
2318;1;1638;"3.460,60";"3.460,60";ROSTICCERIA GASTRONOMIA CUNICO INES DI POLTRONIERI S.;Z2321D9C9E;SALDO Fatt.n. FATTPA 14_18  del 31/08/2018 PASTI CONSEGNATI NEL MESE DI AGOSTO 2018;27-09-2018;3139;0;159;1;Spese correnti;3;Acquisto di beni e servizi;1;Acquisto di beni;2;Altri beni di consumo;11;Generi alimentari;01-10-2018;
2319;1;1639;"821,60";"821,60";IPAB di VICENZA; ;SALDO Fatt.n. 135/E  del 31/08/2018 RETTE OSPITI MESE AGOSTO 2018;27-09-2018;3201;0;152;1;Spese correnti;3;Acquisto di beni e servizi;2;Acquisto di servizi;15;Contratti di servizio pubblico;8;Contratti di servizio di assistenza sociale residenziale e semiresidenziale;01-10-2018;
2320;1;1640;"454,38";"454,38";CASA DI RIPOSO DI DUEVILLE; ;SALDO Fatt.n. 79/VH  del 31/08/2018 RETTE OSPITI MESE AGOSTO 2018;27-09-2018;3201;0;154;1;Spese correnti;3;Acquisto di beni e servizi;2;Acquisto di servizi;15;Contratti di servizio pubblico;8;Contratti di servizio di assistenza sociale residenziale e semiresidenziale;01-10-2018;
2321;1;1641;"1.110,00";"1.110,00";I.P.A.B. SUOR DIODATA BERTOLO; ;SALDO Fatt.n. 133/E  del 11/09/2018 RETTE OSPITI MESE SETTEMBRE 2018;27-09-2018;3201;0;151;1;Spese correnti;3;Acquisto di beni e servizi;2;Acquisto di servizi;15;Contratti di servizio pubblico;8;Contratti di servizio di assistenza sociale residenziale e semiresidenziale;01-10-2018;
2322;1;1654;"328,37";"328,37";IPAB COMM. A MICHELAZZO; ;SALDO Fatt.n. 66/B  del 31/08/2018 RETTE OSPITI MESE AGOSTO 2018;27-09-2018;3201;0;153;1;Spese correnti;3;Acquisto di beni e servizi;2;Acquisto di servizi;15;Contratti di servizio pubblico;8;Contratti di servizio di assistenza sociale residenziale e semiresidenziale;01-10-2018;
2323;1;1642;"1.721,66";"1.721,66";ALFA LATTONERIA SNC;Z6A24A4855;SALDO Fatt.n. 167  del 31/08/2018 SOSTITUZIONE CONVERSE PRESSO SCUOLA MAGRIN;27-09-2018;1432;3;576;1;Spese correnti;3;Acquisto di beni e servizi;2;Acquisto di servizi;9;Manutenzione ordinaria e riparazioni;4;Manutenzione ordinaria e riparazioni di impianti e macchinari;01-10-2018;
2324;1;1655;"2.148,41";"2.148,41";GIORNI NUOVI SOCIETA' COOP. SOCIALE DI SOLIDARIETA';67802821B6;ACCONTO Fatt.n. 2/115  del 31/08/2018 SERVIZIO PULIZIE EDIFICIO COMUNALE E VARIE;27-09-2018;259;5;547;1;Spese correnti;3;Acquisto di beni e servizi;2;Acquisto di servizi;13;Servizi ausiliari per il funzionamento dell'ente;2;Servizi di pulizia e lavanderia;01-10-2018;
2325;1;1656;"1.224,07";"1.224,07";GIORNI NUOVI SOCIETA' COOP. SOCIALE DI SOLIDARIETA';67802821B6;ACCONTO Fatt.n. 2/115  del 31/08/2018 SERVIZIO PULIZIE EDIFICIO COMUNALE E VARIE;27-09-2018;1810;3;548;1;Spese correnti;3;Acquisto di beni e servizi;2;Acquisto di servizi;13;Servizi ausiliari per il funzionamento dell'ente;2;Servizi di pulizia e lavanderia;01-10-2018;
2326;1;1657;"207,95";"207,95";GIORNI NUOVI SOCIETA' COOP. SOCIALE DI SOLIDARIETA';67802821B6;ACCONTO Fatt.n. 2/115  del 31/08/2018 SERVIZIO PULIZIE EDIFICIO COMUNALE E VARIE;27-09-2018;1285;0;549;1;Spese correnti;3;Acquisto di beni e servizi;2;Acquisto di servizi;13;Servizi ausiliari per il funzionamento dell'ente;2;Servizi di pulizia e lavanderia;01-10-2018;
2327;1;1658;"414,69";"414,69";GIORNI NUOVI SOCIETA' COOP. SOCIALE DI SOLIDARIETA';67802821B6;SALDO Fatt.n. 2/115  del 31/08/2018 SERVIZIO PULIZIE EDIFICIO COMUNALE E VARIE;27-09-2018;3147;1;551;1;Spese correnti;3;Acquisto di beni e servizi;2;Acquisto di servizi;13;Servizi ausiliari per il funzionamento dell'ente;2;Servizi di pulizia e lavanderia;01-10-2018;
2328;1;1659;"178,36";"178,36";GIORNI NUOVI SOCIETA' COOP. SOCIALE DI SOLIDARIETA';ZA71DBB6F4;SALDO Fatt.n. 2/116  del 31/08/2018 SERVIZIO PULIZIE BAGNI CIMITERO - AGOSTO 2018;27-09-2018;259;5;269;1;Spese correnti;3;Acquisto di beni e servizi;2;Acquisto di servizi;13;Servizi ausiliari per il funzionamento dell'ente;2;Servizi di pulizia e lavanderia;01-10-2018;
2329;1;1660;"82,96";"82,96";GIORNI NUOVI SOCIETA' COOP. SOCIALE DI SOLIDARIETA';ZE22464D9D;SALDO Fatt.n. 2/103  del 31/07/2018 PULIZIA ORATORIO TRISSINO;27-09-2018;1565;0;550;1;Spese correnti;3;Acquisto di beni e servizi;2;Acquisto di servizi;13;Servizi ausiliari per il funzionamento dell'ente;2;Servizi di pulizia e lavanderia;01-10-2018;
2330;1;1661;"3.246,51";"3.246,51";SO.RA.RIS. SPA; ;ACCONTO Fatt.n. 000142/PA  del 20/08/2018 TRASPORTO E Gestione stazione di travaso - LUGLIO 2018;27-09-2018;2691;0;542;1;Spese correnti;3;Acquisto di beni e servizi;2;Acquisto di servizi;15;Contratti di servizio pubblico;4;Contratti di servizio per la raccolta rifiuti;01-10-2018;
2331;1;1662;"8.836,09";"8.836,09";SO.RA.RIS. SPA; ;SALDO Fatt.n. 000142/PA  del 20/08/2018 TRASPORTO E Gestione stazione di travaso - LUGLIO 2018;27-09-2018;2695;0;543;1;Spese correnti;3;Acquisto di beni e servizi;2;Acquisto di servizi;15;Contratti di servizio pubblico;5;Contratti di servizio per il conferimento in discarica dei rifiuti;01-10-2018;
2332;1;1643;"1.000,00";"1.000,00";GIARETTA MAURIZIO;Z26213CC7C;SALDO Fatt.n. FATTPA 1_18  del 14/09/2018 TINTEGGIATURA LOCALI BIBLIOTECA;27-09-2018;1810;4;778;1;Spese correnti;3;Acquisto di beni e servizi;2;Acquisto di servizi;9;Manutenzione ordinaria e riparazioni;4;Manutenzione ordinaria e riparazioni di impianti e macchinari;01-10-2018;
2333;1;1644;"641,84";"641,84";MOTOR SERVICE SRL;ZC324887BC;SALDO Fatt.n. 3/PA  del 20/08/2018 MANUTENZIONE IVECO EUROCARGO;27-09-2018;781;0;567;1;Spese correnti;3;Acquisto di beni e servizi;2;Acquisto di servizi;9;Manutenzione ordinaria e riparazioni;1;"Manutenzione ordinaria e riparazioni di mezzi di trasporto ad uso civile, di sicurezza e ordine pubblico";01-10-2018;
2334;1;1645;"492,56";"492,56";MOTOR SERVICE SRL;Z9E2048176;SALDO Fatt.n. 4/PA  del 03/09/2018 SOSTITUZIONE BATTERIA IVECO;27-09-2018;781;0;624;1;Spese correnti;3;Acquisto di beni e servizi;2;Acquisto di servizi;9;Manutenzione ordinaria e riparazioni;1;"Manutenzione ordinaria e riparazioni di mezzi di trasporto ad uso civile, di sicurezza e ordine pubblico";01-10-2018;
2335;1;1646;"37,81";"37,81";CIVIS SPA;Z5D21A9503;SALDO Fatt.n. V9/0002464  del 02/09/2018 SERVIZIO ISPETTIVO VIA VOLTA MESE AGOSTO 2018;27-09-2018;370;0;73;1;Spese correnti;3;Acquisto di beni e servizi;2;Acquisto di servizi;13;Servizi ausiliari per il funzionamento dell'ente;1;"Servizi di sorveglianza, custodia e accoglienza";01-10-2018;
2336;1;1647;"63,01";"63,01";CIVIS SPA;Z5D21A9503;SALDO Fatt.n. V9/0002463  del 02/09/2018 SERVIZIO DI VIGILANZA P.ZZA MATTEOTTI MESE AGOSTO 2018;27-09-2018;370;0;73;1;Spese correnti;3;Acquisto di beni e servizi;2;Acquisto di servizi;13;Servizi ausiliari per il funzionamento dell'ente;1;"Servizi di sorveglianza, custodia e accoglienza";01-10-2018;
2337;1;1648;"3.020,85";"3.020,85";MARGHERITA SOC. COOP. SOCIALE ONLUS;5342930550;SALDO Fatt.n. 195/E  del 31/08/2018 SERVIZIO DI ASSISTENZA DOMICILIARE MESE AGOSTO 2018;28-09-2018;3140;0;611;1;Spese correnti;3;Acquisto di beni e servizi;2;Acquisto di servizi;99;Altri servizi;999;Altri servizi diversi n.a.c.;01-10-2018;
2338;1;1649;"360,00";"360,00";OMESSO NOMINATIVO NEL RISPETTO DELLA NORMATIVA SULLA PROTEZIONE DATI PERSONALI; ;IMPEGNATIVA DI CURA DOMICILIARE. IMPEGNO DI SPESA E CONTESTUALE LIQUIDAZIONE SALDO ICDb 1^ SEMESTRE 2018.;28-09-2018;3234;0;621;1;Spese correnti;4;Trasferimenti correnti;2;Trasferimenti correnti a Famiglie;2;Interventi assistenziali;999;Altri assegni e sussidi assistenziali;01-10-2018;
2339;1;1650;"416,27";"416,27";ASSITECA SPA - FILIALE DI VERONA;Z05235E0A0;INTEGRAZIONE IMPEGNO DI SPESA E LIQUIDAZIONE PREMIO POLIZZA ASSICURATIVA N. 200412302 RCA FLOTTE/LM NOBIS PERIODO 30/04/2017 - 30/04/2018.;28-09-2018;764;0;624;1;Spese correnti;10;Altre spese correnti;4;Premi di assicurazione;1;Premi di assicurazione contro i danni;3;Premi di assicurazione per responsabilità civile verso terzi;01-10-2018;
2340;1;1651;"302,00";"302,00";ASSOCIAZIONE RESPONSABILI FINANZIARI COMUNALI; ;IMPEGNO DI SPESA CON LASSOCIAZIONE RESPONSABILI FINANZIARI COMUNALI PER PARTECIPAZIONE A CORSI VARI;28-09-2018;150;0;625;1;Spese correnti;3;Acquisto di beni e servizi;2;Acquisto di servizi;4;Acquisto di servizi per formazione e addestramento del personale dell'ente;999;Acquisto di servizi per altre spese per formazione e addestramento n.a.c.;01-10-2018;
2341;1;1652;"145,00";"145,00";MAGGIOLI SPA;ZE52274A96;SALDO Fatt.n. 0005953627  del 23/03/2018 FORNITURA DI LIBRI;28-09-2018;257;0;245;1;Spese correnti;3;Acquisto di beni e servizi;2;Acquisto di servizi;16;Servizi amministrativi;999;Altre spese per servizi amministrativi;01-10-2018;
2342;1;1653;"50,00";"50,00";TELEMEC 2 SNC;Z8A24DCE2A;SALDO Fatt.n. 3/PA  del 20/09/2018 INTERVENTO CONTROLLO TECNICO CONDIZIONATORI;28-09-2018;1651;4;597;1;Spese correnti;3;Acquisto di beni e servizi;2;Acquisto di servizi;9;Manutenzione ordinaria e riparazioni;8;Manutenzione ordinaria e riparazioni di beni immobili;01-10-2018;
2343;1;1665;"7.612,80";"7.612,80";TESTA GABRIELE;Z3B1BD4F51;"SALDO Fatt.n. 3/PA  del 14/09/2018 SALDO POSIZIONI C. SANDRIGO/ZOLIN L.&amp; C.SOC.AGRIC. SS+1 COME DA CONCILIAZIONE AVVENUTA AVANTI ALLA COMMISSIONE DI CONCILIAZ. ORDINE AVV.TI DI PADOVA IN DATA 10/09/2018";01-10-2018;500;0;839;1;Spese correnti;3;Acquisto di beni e servizi;2;Acquisto di servizi;11;Prestazioni professionali e specialistiche;6;Patrocinio legale;02-10-2018;
2344;1;1669;"4.271,15";"4.271,15";S.I.A. Societa' Intercomunale Ambiente SRL; ;ACCONTO Fatt.n. 163/PA18  del 31/08/2018 CONFERIMENTO RSU SECCO - MESE AGOSTO 2018;02-10-2018;2695;0;163;1;Spese correnti;3;Acquisto di beni e servizi;2;Acquisto di servizi;15;Contratti di servizio pubblico;5;Contratti di servizio per il conferimento in discarica dei rifiuti;03-10-2018;
2345;1;1670;"1.462,14";"1.462,14";S.I.A. Societa' Intercomunale Ambiente SRL; ;SALDO Fatt.n. 163/PA18  del 31/08/2018 CONFERIMENTO RSU SECCO - MESE AGOSTO 2018;02-10-2018;2695;0;566;1;Spese correnti;3;Acquisto di beni e servizi;2;Acquisto di servizi;15;Contratti di servizio pubblico;5;Contratti di servizio per il conferimento in discarica dei rifiuti;03-10-2018;
2348;1;1666;"605,75";"605,75";TRE R SRL;Z85242FF55;SALDO Fatt.n. 59/P  del 18/09/2018 BENNA PER ESCAVATORE;02-10-2018;781;0;526;1;Spese correnti;3;Acquisto di beni e servizi;2;Acquisto di servizi;9;Manutenzione ordinaria e riparazioni;1;"Manutenzione ordinaria e riparazioni di mezzi di trasporto ad uso civile, di sicurezza e ordine pubblico";03-10-2018;
2349;1;1667;"512,54";"512,54";I.P.A.B. SUOR DIODATA BERTOLO; ;SALDO Fatt.n. 135/E  del 20/09/2018 RETTE OSPITI MESE LUGLIO 2018;02-10-2018;3201;0;151;1;Spese correnti;3;Acquisto di beni e servizi;2;Acquisto di servizi;15;Contratti di servizio pubblico;8;Contratti di servizio di assistenza sociale residenziale e semiresidenziale;03-10-2018;
2350;1;1668;"552,07";"552,07";I.P.A.B. SUOR DIODATA BERTOLO; ;SALDO Fatt.n. 138/E  del 20/09/2018 RETTE OSPITI MESE AGOSTO 2018;02-10-2018;3201;0;151;1;Spese correnti;3;Acquisto di beni e servizi;2;Acquisto di servizi;15;Contratti di servizio pubblico;8;Contratti di servizio di assistenza sociale residenziale e semiresidenziale;03-10-2018;
2355;1;1676;"219,60";"219,60";COVER UP SRL;Z591C0FAD9;SALDO Fatt.n. 689B  del 26/07/2018 CANONE NOLEGGIO;03-10-2018;340;0;853;1;Spese correnti;3;Acquisto di beni e servizi;2;Acquisto di servizi;19;Servizi informatici e di telecomunicazioni;5;Servizi per i sistemi e relativa manutenzione;04-10-2018;
2356;1;1677;"67,10";"67,10";COVER UP SRL;ZEF1962A6B;SALDO Fatt.n. 725B  del 31/07/2018 NOLEGGIO MULTIFUNZIONE EPSON WORKFORCE PRO WF-R5690DTVFL;03-10-2018;340;0;255;1;Spese correnti;3;Acquisto di beni e servizi;2;Acquisto di servizi;19;Servizi informatici e di telecomunicazioni;5;Servizi per i sistemi e relativa manutenzione;04-10-2018;
2357;1;1678;"67,10";"67,10";COVER UP SRL;ZEF1962A6B;SALDO Fatt.n. 751B  del 31/08/2018 NOLEGGIO STAMPANTE EPSON;03-10-2018;340;0;255;1;Spese correnti;3;Acquisto di beni e servizi;2;Acquisto di servizi;19;Servizi informatici e di telecomunicazioni;5;Servizi per i sistemi e relativa manutenzione;04-10-2018;
2358;1;1689;"20.252,17";"20.252,17";SMIDERLE IMPIANTI SNC di Smiderle D. e D. & C.;ZD22466F8A;SALDO Fatt.n. 37/2018  del 19/09/2018 MANUTENZIONE IMPIANTO TERMICO SCUOLA NEGRIN;03-10-2018;4051;0;551;2;Spese in conto capitale;2;Investimenti fissi lordi e acquisto di terreni;1;Beni materiali;9;Beni immobili;3;Fabbricati ad uso scolastico;05-10-2018;
2359;1;1680;"858,38";"858,38";ALFA ANTINCENDIO SRL;ZE924CA823;SALDO Fatt.n. 139  del 25/09/2018 NOLO PIATTAFORMA AEREA;03-10-2018;961;0;598;1;Spese correnti;3;Acquisto di beni e servizi;2;Acquisto di servizi;9;Manutenzione ordinaria e riparazioni;5;Manutenzione ordinaria e riparazioni di attrezzature;04-10-2018;
2360;1;1681;"600,00";"600,00";AMMINISTRAZIONE PROVINCIALE DI VICENZA; ;LIQUIDAZIONE SOMME A FAVORE DELL'UFFICIO AVVOCATURA DELLA PROVINCIA;03-10-2018;500;0;879;1;Spese correnti;3;Acquisto di beni e servizi;2;Acquisto di servizi;11;Prestazioni professionali e specialistiche;6;Patrocinio legale;04-10-2018;
2361;1;1679;"2.937,60";"2.937,60";POSTE ITALIANE SPA;Z38219B25B;INTEGRAZIONE CONTO CREDITO POSTALE MACCHINA AFFRANCATRICE;03-10-2018;322;0;66;1;Spese correnti;3;Acquisto di beni e servizi;2;Acquisto di servizi;16;Servizi amministrativi;2;Spese postali;04-10-2018;
2362;1;1682;"701,34";"701,34";CENTRO BIBLIOTECHE LOVAT SRL;ZAC2287ADB;SALDO Fatt.n. 393-18PA  del 19/09/2018 FORNITURA LIBRI PER BIBLIOTECA;04-10-2018;1795;0;260;1;Spese correnti;3;Acquisto di beni e servizi;1;Acquisto di beni;1;"Giornali, riviste e pubblicazioni";2;Pubblicazioni;05-10-2018;
2363;1;1683;"8.599,11";"8.599,11";ONGARO SRL;Z3822301E0;SALDO Fatt.n. 74/PA  del 31/08/2018 LAVORI SU SEGNALETICA STRADALE;04-10-2018;3342;0;379;1;Spese correnti;3;Acquisto di beni e servizi;2;Acquisto di servizi;99;Altri servizi;999;Altri servizi diversi n.a.c.;05-10-2018;
2364;1;1687;"55.466,32";"55.466,32";SCUOLA DELL'INFANZIA "IDA TONOLLI"; ;CONTRIBUTI ALLE SCUOLE DELL'INFANZIA PARITARIE. - IMPEGNO DI SPESA E CONTESTUALE LIQUIDAZIONE ANNO 2018;04-10-2018;1400;0;626;1;Spese correnti;4;Trasferimenti correnti;4;Trasferimenti correnti a Istituzioni Sociali Private;1;Trasferimenti correnti a Istituzioni Sociali Private;1;Trasferimenti correnti a Istituzioni Sociali Private;05-10-2018;
2365;1;1684;"24.533,68";"24.533,68";ASILO INFANTILE "PRINCIPE UMBERTO"; ;CONTRIBUTI ALLE SCUOLE DELL'INFANZIA PARITARIE. - IMPEGNO DI SPESA E CONTESTUALE LIQUIDAZIONE ANNO 2018;04-10-2018;1400;0;627;1;Spese correnti;4;Trasferimenti correnti;4;Trasferimenti correnti a Istituzioni Sociali Private;1;Trasferimenti correnti a Istituzioni Sociali Private;1;Trasferimenti correnti a Istituzioni Sociali Private;05-10-2018;
2367;1;1874;"26,00";"26,00";ECONOMO COMUNALE - DALLE NOGARE LUCIA; ;IMPEGNO DI SPESA PER ACQUISTO DI MATERIALE VARIO PER LA MENSA SCOLASTICA.;04-10-2018;1747;0;629;1;Spese correnti;3;Acquisto di beni e servizi;1;Acquisto di beni;2;Altri beni di consumo;999;Altri beni e materiali di consumo n.a.c.;22-11-2018;
2368;1;1686;"5.049,20";"5.049,20";ENGIE Servizi Spa;Z311F93EEB;SALDO Fatt.n. 2200011315  del 27/09/2018 LAVORI CENTRALE TERMICA SCUOLA MEDIA;04-10-2018;1651;4;514;1;Spese correnti;3;Acquisto di beni e servizi;2;Acquisto di servizi;9;Manutenzione ordinaria e riparazioni;8;Manutenzione ordinaria e riparazioni di beni immobili;05-10-2018;
2369;1;1688;"24,91";"24,91";ASCOTRADE SPA;1514046647;SALDO Fatt.n. 1272349  del 24/09/2018 15351020002625 - PIAZZA GARIBALDI 0 36066 SANDRIGO VI - FORNITURA GAS;04-10-2018;934;0;457;1;Spese correnti;3;Acquisto di beni e servizi;2;Acquisto di servizi;5;Utenze e canoni;6;Gas;05-10-2018;
2370;1;1690;"-6.100,00";"6.100,00";ARCOBALENO - UNIONE ASSOC. SPORTIVE;63128898CC;SALDO Fatt.n. 000004-2018-FE  del 02/10/2018 A TOTALE STORNO FATTURA NR. 1 DEL 28/06/2018;09-10-2018;2838;0;259;1;Spese correnti;3;Acquisto di beni e servizi;2;Acquisto di servizi;99;Altri servizi;999;Altri servizi diversi n.a.c.;10-10-2018;
2370;2;1690;"-6.100,00";"6.100,00";ARCOBALENO - UNIONE ASSOC. SPORTIVE;63128898CC;"SALDO Fatt.n. 000005-2018-FE  del 02/10/2018 A TOTALE STORNO FATTURA NR, 2 DEL 02/07/2018";09-10-2018;2838;0;259;1;Spese correnti;3;Acquisto di beni e servizi;2;Acquisto di servizi;99;Altri servizi;999;Altri servizi diversi n.a.c.;10-10-2018;
2370;3;1690;"-6.100,00";"6.100,00";ARCOBALENO - UNIONE ASSOC. SPORTIVE;63128898CC;SALDO Fatt.n. 000006-2018-FE  del 02/10/2018 A TOTALE STORNO FATTURA NR. 3 DEL 10/09/2018;09-10-2018;2838;0;259;1;Spese correnti;3;Acquisto di beni e servizi;2;Acquisto di servizi;99;Altri servizi;999;Altri servizi diversi n.a.c.;10-10-2018;
2370;4;1690;"6.100,00";"6.100,00";ARCOBALENO - UNIONE ASSOC. SPORTIVE;63128898CC;SALDO Fatt.n. 000001-2018-FE  del 02/10/2018 UTILIZZO E GESTIONE PALAZZETTO DELLO SPORT DI SANDRIGO - SECONDO BIMESTRE 2018;09-10-2018;2838;0;259;1;Spese correnti;3;Acquisto di beni e servizi;2;Acquisto di servizi;99;Altri servizi;999;Altri servizi diversi n.a.c.;10-10-2018;
2370;5;1690;"6.100,00";"6.100,00";ARCOBALENO - UNIONE ASSOC. SPORTIVE;63128898CC;SALDO Fatt.n. 000002-2018-FE  del 02/10/2018 UTILIZZO E GESTIONE PALAZZETTO DELLO SPORT DI SANDRIGO - TERZO BIMESTRE 2018;09-10-2018;2838;0;259;1;Spese correnti;3;Acquisto di beni e servizi;2;Acquisto di servizi;99;Altri servizi;999;Altri servizi diversi n.a.c.;10-10-2018;
2370;6;1690;"6.100,00";"6.100,00";ARCOBALENO - UNIONE ASSOC. SPORTIVE;63128898CC;SALDO Fatt.n. 000003-2018-FE  del 10/09/2018 UTILIZZO E GESTIONE PALAZZETTO DELLO SPORT SANDRIGO;09-10-2018;2838;0;259;1;Spese correnti;3;Acquisto di beni e servizi;2;Acquisto di servizi;99;Altri servizi;999;Altri servizi diversi n.a.c.;10-10-2018;
2370;7;1690;"6.100,00";"6.100,00";ARCOBALENO - UNIONE ASSOC. SPORTIVE;63128898CC;SALDO Fatt.n. 000003-2018-FE  del 02/10/2018 UTILIZZO E GESTIONE PALAZZETTO DELLO SPORT DI SANDRIGO - QUARTO BIMESTRE 2018;09-10-2018;2838;0;259;1;Spese correnti;3;Acquisto di beni e servizi;2;Acquisto di servizi;99;Altri servizi;999;Altri servizi diversi n.a.c.;10-10-2018;
2371;1;1878;"400,00";"800,00";OMESSO NOMINATIVO NEL RISPETTO DELLA NORMATIVA SULLA PROTEZIONE DATI PERSONALI; ;PROGETTO DI INTEGRAZIONE SOCIALE. - RIA - CITTADINANZE REINCONTRATE 4. - LIQUIDAZIONE 5^ MENSILITA';10-10-2018;3248;0;573;1;Spese correnti;4;Trasferimenti correnti;3;Trasferimenti correnti a Imprese;99;Trasferimenti correnti a altre imprese;999;Trasferimenti correnti a altre imprese;23-11-2018;
2371;2;1880;"400,00";"800,00";OMESSO NOMINATIVO NEL RISPETTO DELLA NORMATIVA SULLA PROTEZIONE DATI PERSONALI; ;PROGETTO DI INTEGRAZIONE SOCIALE. - RIA - CITTADINANZE REINCONTRATE 4. - LIQUIDAZIONE 5^ MENSILITA';10-10-2018;3248;0;573;1;Spese correnti;4;Trasferimenti correnti;3;Trasferimenti correnti a Imprese;99;Trasferimenti correnti a altre imprese;999;Trasferimenti correnti a altre imprese;23-11-2018;
2373;1;1691;"600,00";"600,00";EDICOLA BASSO MANUELA;ZEF2251692;LIQUIDAZIONE EDICOLA BASSO MANUELA PER FORNITURA PERIODICI PER LA BIBLIOTECA 2 E 3 TRIMESTRE;10-10-2018;1795;0;238;1;Spese correnti;3;Acquisto di beni e servizi;1;Acquisto di beni;1;"Giornali, riviste e pubblicazioni";2;Pubblicazioni;11-10-2018;
2374;1;1692;"50,20";"50,20";I.N.A.I.L.; ;S 08 MM 313409 PVP - ESPLETAMENTO PRIMA VERIFICA PERIODICA PONTE MOBILE SVILUPPABILE SU CARRO AD AZIONAMENTO MOTORIZZATO PRESSO CIMITERO DI SANDRIGO: PAGAMENTO ONERI INAIL.;10-10-2018;2280;0;643;1;Spese correnti;3;Acquisto di beni e servizi;1;Acquisto di beni;2;Altri beni di consumo;999;Altri beni e materiali di consumo n.a.c.;11-10-2018;
2375;1;1712;"65,00";"65,00";AMMINISTRAZIONE PROVINCIALE DI VICENZA; ;RICHIESTA AUTORIZZAZIONE DI VI.ABILITA' PER DEMOLIZIONE "CASA ROSSA" IN FREGIO ALLA S.P. 248 SCHIAVONESCA-MAROSTICANA.;10-10-2018;761;0;641;1;Spese correnti;3;Acquisto di beni e servizi;2;Acquisto di servizi;99;Altri servizi;999;Altri servizi diversi n.a.c.;11-10-2018;
2376;1;1693;"317,00";"317,00";MERENTI DUILIO;Z8A238674E;ACCONTO Fatt.n. 000004-2018-PA  del 01/10/2018 MANUTENZIONE CONDIZIONATORI;10-10-2018;259;4;424;1;Spese correnti;3;Acquisto di beni e servizi;2;Acquisto di servizi;9;Manutenzione ordinaria e riparazioni;8;Manutenzione ordinaria e riparazioni di beni immobili;11-10-2018;
2377;1;1694;"232,00";"232,00";MERENTI DUILIO;Z8A238674E;SALDO Fatt.n. 000004-2018-PA  del 01/10/2018 MANUTENZIONE CONDIZIONATORI;10-10-2018;928;0;425;1;Spese correnti;3;Acquisto di beni e servizi;2;Acquisto di servizi;9;Manutenzione ordinaria e riparazioni;8;Manutenzione ordinaria e riparazioni di beni immobili;11-10-2018;
2378;1;1697;"427,00";"427,00";GLOBAL POWER SERVICE SPA;ZBF1FCDD7F;SALDO Fatt.n. 2018-V5-190  del 30/09/2018 RIPRISTINO PUNTI LUCE VIA S.GAETANO VIA SESSO;10-10-2018;3320;0;555;1;Spese correnti;3;Acquisto di beni e servizi;2;Acquisto di servizi;9;Manutenzione ordinaria e riparazioni;4;Manutenzione ordinaria e riparazioni di impianti e macchinari;11-10-2018;
2379;1;1698;"-4.765,32";"4.765,32";SCREMIN SRL;Z5E1C492E5;SALDO Fatt.n. 34FPA  del 28/09/2018 A TOTALE STORNO FATTURA NR. 7/FPA DEL 31/01/2017;10-10-2018;3343;0;796;1;Spese correnti;3;Acquisto di beni e servizi;2;Acquisto di servizi;99;Altri servizi;999;Altri servizi diversi n.a.c.;11-10-2018;
2379;2;1698;"4.765,32";"4.765,32";SCREMIN SRL;Z5E1C492E5;SALDO Fatt.n. 35FPA  del 28/09/2018 MANUTENZIONE SEMAFORO QUATTRO VENTI;10-10-2018;3343;0;796;1;Spese correnti;3;Acquisto di beni e servizi;2;Acquisto di servizi;99;Altri servizi;999;Altri servizi diversi n.a.c.;11-10-2018;
2379;3;1698;"4.765,32";"4.765,32";SCREMIN SRL;Z5E1C492E5;SALDO Fatt.n. 7FPA  del 31/01/2017 SOSTITUZIONE CAVI SEMAFORICI - SEMAFORO "4  VENTI";10-10-2018;3343;0;796;1;Spese correnti;3;Acquisto di beni e servizi;2;Acquisto di servizi;99;Altri servizi;999;Altri servizi diversi n.a.c.;11-10-2018;
2380;1;1695;"1.952,04";"1.952,04";T.E.S. SPA;ZBC222FE3C;ACCONTO Fatt.n. 646PA  del 28/09/2018 INSTALLAZIONE SEGNALETICA STRADALE;10-10-2018;3380;0;213;1;Spese correnti;3;Acquisto di beni e servizi;1;Acquisto di beni;2;Altri beni di consumo;999;Altri beni e materiali di consumo n.a.c.;11-10-2018;
2381;1;1696;"506,26";"506,26";T.E.S. SPA;ZBC222FE3C;SALDO Fatt.n. 646PA  del 28/09/2018 INSTALLAZIONE SEGNALETICA STRADALE;10-10-2018;3380;0;602;1;Spese correnti;3;Acquisto di beni e servizi;1;Acquisto di beni;2;Altri beni di consumo;999;Altri beni e materiali di consumo n.a.c.;11-10-2018;
2382;1;1699;"20,97";"20,97";ASCOTRADE SPA;1514046647;SALDO Fatt.n. 1301163  del 24/09/2018 15351020010455 - PIAZZA MARCONI 4 36066 SANDRIGO VI;10-10-2018;934;0;457;1;Spese correnti;3;Acquisto di beni e servizi;2;Acquisto di servizi;5;Utenze e canoni;6;Gas;11-10-2018;
2383;1;1700;"238,26";"238,26";VIACQUA SPA; ;SALDO Fatt.n. 2018/3002146/1  del 25/09/2018 MATRICOLA:3602005 - INDIRIZZO FORNITURA: PIAZZA MATTEOTTI 10 - 36066 SANDRIGO VI;10-10-2018;259;1;236;1;Spese correnti;3;Acquisto di beni e servizi;2;Acquisto di servizi;5;Utenze e canoni;5;Acqua;11-10-2018;
2384;1;1701;"161,32";"161,32";VIACQUA SPA; ;SALDO Fatt.n. 2018/3002143/1  del 25/09/2018 MATRICOLA:043843BE - INDIRIZZO FORNITURA: PIAZZA GARIBALDI 11 - 36066 SANDRIGO VI;10-10-2018;259;1;236;1;Spese correnti;3;Acquisto di beni e servizi;2;Acquisto di servizi;5;Utenze e canoni;5;Acqua;11-10-2018;
2385;1;1702;"38,23";"38,23";VIACQUA SPA; ;SALDO Fatt.n. 2018/3002145/1  del 25/09/2018 MATRICOLA:4125785 - INDIRIZZO FORNITURA: PIAZZA MATTEOTTI 10 - 36066 SANDRIGO VI;10-10-2018;259;1;236;1;Spese correnti;3;Acquisto di beni e servizi;2;Acquisto di servizi;5;Utenze e canoni;5;Acqua;11-10-2018;
2386;1;1703;"484,56";"484,56";VIACQUA SPA; ;ACCONTO Fatt.n. 2018/3002144/1  del 25/09/2018 MATRICOLA:40479 - INDIRIZZO FORNITURA: PIAZZA MATTEOTTI 10 - 36066 SANDRIGO VI;10-10-2018;1810;1;240;1;Spese correnti;3;Acquisto di beni e servizi;2;Acquisto di servizi;5;Utenze e canoni;5;Acqua;11-10-2018;
2387;1;1704;"175,44";"175,44";VIACQUA SPA; ;SALDO Fatt.n. 2018/3002144/1  del 25/09/2018 MATRICOLA:40479 - INDIRIZZO FORNITURA: PIAZZA MATTEOTTI 10 - 36066 SANDRIGO VI;10-10-2018;1810;1;133;1;Spese correnti;3;Acquisto di beni e servizi;2;Acquisto di servizi;5;Utenze e canoni;5;Acqua;11-10-2018;
2388;1;1705;"64,08";"64,08";VIACQUA SPA; ;SALDO Fatt.n. 2018/3002150/1  del 25/09/2018 MATRICOLA:FB028574 - INDIRIZZO FORNITURA: VIA TUGURIO 1/SN - 36066 SANDRIGO VI;10-10-2018;2799;0;242;1;Spese correnti;3;Acquisto di beni e servizi;2;Acquisto di servizi;5;Utenze e canoni;5;Acqua;11-10-2018;
2389;1;1706;"38,23";"38,23";VIACQUA SPA; ;SALDO Fatt.n. 2018/3002135/1  del 25/09/2018 MATRICOLA:20016550 - INDIRIZZO FORNITURA: VIA SAN SISTO 1 - 36066 SANDRIGO VI;10-10-2018;2799;0;242;1;Spese correnti;3;Acquisto di beni e servizi;2;Acquisto di servizi;5;Utenze e canoni;5;Acqua;11-10-2018;
2390;1;1707;"1.738,99";"1.738,99";VIACQUA SPA; ;SALDO Fatt.n. 2018/3002136/1  del 25/09/2018 MATRICOLA:A20012506 - INDIRIZZO FORNITURA: VIA CHIESA DI LUPIA 32 - 36066 SANDRIGO VI;10-10-2018;1573;1;131;1;Spese correnti;3;Acquisto di beni e servizi;2;Acquisto di servizi;5;Utenze e canoni;5;Acqua;11-10-2018;
2391;1;1708;"908,60";"908,60";VIACQUA SPA; ;ACCONTO Fatt.n. 2018/3002153/1  del 25/09/2018 MATRICOLA:20001258 - INDIRIZZO FORNITURA: VIA FRATTE 1 - 36066 SANDRIGO VI;10-10-2018;2799;0;135;1;Spese correnti;3;Acquisto di beni e servizi;2;Acquisto di servizi;5;Utenze e canoni;5;Acqua;11-10-2018;
2392;1;1709;"377,96";"377,96";VIACQUA SPA; ;SALDO Fatt.n. 2018/3002153/1  del 25/09/2018 MATRICOLA:20001258 - INDIRIZZO FORNITURA: VIA FRATTE 1 - 36066 SANDRIGO VI;10-10-2018;2799;0;242;1;Spese correnti;3;Acquisto di beni e servizi;2;Acquisto di servizi;5;Utenze e canoni;5;Acqua;11-10-2018;
2393;1;1710;"138,55";"138,55";VIACQUA SPA; ;SALDO Fatt.n. 2018/3002152/1  del 25/09/2018 MATRICOLA:55355AE - INDIRIZZO FORNITURA: VIA GALVANI 18 - 36066 SANDRIGO VI;10-10-2018;2686;0;162;1;Spese correnti;3;Acquisto di beni e servizi;2;Acquisto di servizi;5;Utenze e canoni;5;Acqua;11-10-2018;
2394;1;1713;"20,62";"20,62";E.N.P.A. SEZIONE VICENZA;Z9E21AB929;SALDO Fatt.n. 1353/PA  del 28/09/2018 MANTENIMENTO CANI DAL 6/7/2018  AL 19/72018;11-10-2018;1990;0;79;1;Spese correnti;3;Acquisto di beni e servizi;2;Acquisto di servizi;99;Altri servizi;999;Altri servizi diversi n.a.c.;12-10-2018;
2395;1;1718;"180,00";"180,00";IPAB COMM. A MICHELAZZO; ;SALDO Fatt.n. 78/B  del 30/09/2018 RETTE OSPITI MESE SETTEMBRE 2018;11-10-2018;3201;0;153;1;Spese correnti;3;Acquisto di beni e servizi;2;Acquisto di servizi;15;Contratti di servizio pubblico;8;Contratti di servizio di assistenza sociale residenziale e semiresidenziale;12-10-2018;
2396;1;1714;"726,81";"726,81";KUWAIT PETROLEUM ITALIA SPA;ZE3176A2E8;ACCONTO Fatt.n. PJ00373452  del 30/09/2018 CONSUMI CARBURANTE MESE SETTEMBRE 2018;11-10-2018;780;0;251;1;Spese correnti;3;Acquisto di beni e servizi;1;Acquisto di beni;2;Altri beni di consumo;2;"Carburanti, combustibili e lubrificanti";12-10-2018;
2397;1;1715;"87,79";"87,79";KUWAIT PETROLEUM ITALIA SPA;ZE3176A2E8;ACCONTO Fatt.n. PJ00373452  del 30/09/2018 CONSUMI CARBURANTE MESE SETTEMBRE 2018;11-10-2018;3182;0;252;1;Spese correnti;3;Acquisto di beni e servizi;1;Acquisto di beni;2;Altri beni di consumo;2;"Carburanti, combustibili e lubrificanti";12-10-2018;
2398;1;1716;"47,49";"47,49";KUWAIT PETROLEUM ITALIA SPA;ZE3176A2E8;SALDO Fatt.n. PJ00373452  del 30/09/2018 CONSUMI CARBURANTE MESE SETTEMBRE 2018;11-10-2018;3182;0;566;1;Spese correnti;3;Acquisto di beni e servizi;1;Acquisto di beni;2;Altri beni di consumo;2;"Carburanti, combustibili e lubrificanti";12-10-2018;
2399;1;1717;"115,00";"115,00";MAGGIOLI SPA;ZAE24DE889;SALDO Fatt.n. 0005962389  del 30/09/2018 TESTO PER UFFICIO TRIBUTI;11-10-2018;324;1;596;1;Spese correnti;3;Acquisto di beni e servizi;1;Acquisto di beni;1;"Giornali, riviste e pubblicazioni";1;Giornali e riviste;12-10-2018;
2400;1;1719;"1.860,50";"1.860,50";BIOCONTROL SRL;Z79219890C;SALDO Fatt.n. 2/68  del 31/08/2018 ADULTICIDA ZANZARE;11-10-2018;2000;0;61;1;Spese correnti;3;Acquisto di beni e servizi;2;Acquisto di servizi;99;Altri servizi;999;Altri servizi diversi n.a.c.;12-10-2018;
2401;1;1720;"2.992,00";"2.992,00";COOP.SOCIALE DI SOLIDARIETA' S.MARCO a r.l. O.N.L.U.S.;ZE021A05E0;SALDO Fatt.n. 194/01  del 30/09/2018 SERVIZIO CONDUZIONE ECOCENTRO DI VIA GALVANI - MESE SETTEMBRE 2018;11-10-2018;2689;0;164;1;Spese correnti;3;Acquisto di beni e servizi;2;Acquisto di servizi;13;Servizi ausiliari per il funzionamento dell'ente;999;Altri servizi ausiliari n.a.c.;12-10-2018;
2402;1;1721;"31.853,42";"31.853,42";SO.RA.RIS. SPA; ;SALDO Fatt.n. 000159/PA  del 29/09/2018 SERVIZIO NETTEZZA URBANA MESE SETTEMBRE 2018;11-10-2018;2691;0;542;1;Spese correnti;3;Acquisto di beni e servizi;2;Acquisto di servizi;15;Contratti di servizio pubblico;4;Contratti di servizio per la raccolta rifiuti;12-10-2018;
2403;1;1728;"41,47";"41,47";BANCO POSTA - POSTE ITALIANE SPA;ZF421B5C8C;IMPEGNO DI SPESA PER LA GESTIONE DEI CONTI CORRENTI POSTALI PER L'ANNO 2018.;11-10-2018;1115;0;71;1;Spese correnti;3;Acquisto di beni e servizi;2;Acquisto di servizi;3;Aggi di riscossione;999;Altri aggi di riscossione n.a.c.;17-10-2018;
2404;1;1722;"7.683,02";"7.683,02";GLOBAL POWER SERVICE SPA;6239603B46;SALDO Fatt.n. 2018-V5-202  del 01/10/2018 CANONE RISPARMIO ENERGETICO CONVENZIONE IP - OTTOBRE 2018;11-10-2018;3320;0;127;1;Spese correnti;3;Acquisto di beni e servizi;2;Acquisto di servizi;9;Manutenzione ordinaria e riparazioni;4;Manutenzione ordinaria e riparazioni di impianti e macchinari;12-10-2018;
2405;1;1729;"671,60";"671,60";MINISTERO DELL'INTERNO; ;CIE EMESSE DAL 16 AL 30 SETTEMBRE 2018 -LIQUIDAZIONE COMPETENZE DOVUTE AL MINISTERO;16-10-2018;901;0;147;1;Spese correnti;4;Trasferimenti correnti;1;Trasferimenti correnti a Amministrazioni Pubbliche;1;Trasferimenti correnti a Amministrazioni Centrali;1;Trasferimenti correnti a Ministeri;17-10-2018;
2411;1;1775;"24,00";"24,00";PERSONALE DIPENDENTE; ;STIPENDI MESE DI: OTTOBRE 18;18-10-2018;104;0;39;1;Spese correnti;3;Acquisto di beni e servizi;2;Acquisto di servizi;2;"Organizzazione eventi, pubblicita` e servizi per trasferta";1;Rimborso per viaggio e trasloco;29-10-2018;
2418;1;1775;"11,80";"11,80";PERSONALE DIPENDENTE; ;STIPENDI MESE DI: OTTOBRE 18;18-10-2018;113;0;40;1;Spese correnti;3;Acquisto di beni e servizi;2;Acquisto di servizi;2;"Organizzazione eventi, pubblicita` e servizi per trasferta";1;Rimborso per viaggio e trasloco;29-10-2018;
2423;1;1775;"14,20";"14,20";PERSONALE DIPENDENTE; ;STIPENDI MESE DI: OTTOBRE 18;18-10-2018;633;0;41;1;Spese correnti;3;Acquisto di beni e servizi;2;Acquisto di servizi;2;"Organizzazione eventi, pubblicita` e servizi per trasferta";1;Rimborso per viaggio e trasloco;29-10-2018;
2474;1;1802;"16,00";"16,00";PERSONALE DIPENDENTE; ;STIPENDI MESE DI: OTTOBRE 18;18-10-2018;3103;0;47;1;Spese correnti;3;Acquisto di beni e servizi;2;Acquisto di servizi;2;"Organizzazione eventi, pubblicita` e servizi per trasferta";1;Rimborso per viaggio e trasloco;29-10-2018;
2493;1;1802;"5.333,70";"5.333,70";AMMINISTRATORI COMUNALI E CONSIGLIERI; ;STIPENDI MESE DI: OTTOBRE 18;18-10-2018;20;0;8;1;Spese correnti;3;Acquisto di beni e servizi;2;Acquisto di servizi;1;Organi e incarichi istituzionali dell'amministrazione;1;Organi istituzionali dell'amministrazione - Indennità;29-10-2018;
2494;1;1802;"32,10";"32,10";AMMINISTRATORI COMUNALI E CONSIGLIERI; ;STIPENDI MESE DI: OTTOBRE 18;18-10-2018;40;0;591;1;Spese correnti;3;Acquisto di beni e servizi;2;Acquisto di servizi;2;"Organizzazione eventi, pubblicita` e servizi per trasferta";1;Rimborso per viaggio e trasloco;29-10-2018;
2495;1;1802;"10,00";"10,00";AMMINISTRATORI COMUNALI E CONSIGLIERI; ;STIPENDI MESE DI: OTTOBRE 18;18-10-2018;40;0;638;1;Spese correnti;3;Acquisto di beni e servizi;2;Acquisto di servizi;2;"Organizzazione eventi, pubblicita` e servizi per trasferta";1;Rimborso per viaggio e trasloco;29-10-2018;
2500;1;1763;"921,10";"921,10";GLOBAL POWER SERVICE SPA;6239603B46;SALDO Fatt.n. 2018-V5-201  del 01/10/2018 CANONE MENSILE MANUTENZIONE ORDINARIA IMPIANTO IP - OTTOBRE 2018;22-10-2018;3302;0;128;1;Spese correnti;3;Acquisto di beni e servizi;2;Acquisto di servizi;9;Manutenzione ordinaria e riparazioni;4;Manutenzione ordinaria e riparazioni di impianti e macchinari;25-10-2018;
2501;1;1764;"583,13";"583,13";MATERIALE EDILE DONA' SRL;Z5A21B8566;SALDO Fatt.n. 0000013  del 26/09/2018 MATERIALE EDILE VARIO;22-10-2018;960;0;564;1;Spese correnti;3;Acquisto di beni e servizi;1;Acquisto di beni;2;Altri beni di consumo;999;Altri beni e materiali di consumo n.a.c.;25-10-2018;
2502;1;1746;"500,00";"500,00";HIGH PROMOTION ASSOCIAZIONE; ;EROGAZIONE CONTRIBUTI AD ASSOCIAZIONI ANNO 2018. IMPEGNO DI SPESA E CONTESTUALE LIQUIDAZIONE 2018;23-10-2018;451;0;646;1;Spese correnti;4;Trasferimenti correnti;4;Trasferimenti correnti a Istituzioni Sociali Private;1;Trasferimenti correnti a Istituzioni Sociali Private;1;Trasferimenti correnti a Istituzioni Sociali Private;25-10-2018;
2503;1;2136;"100,00";"100,00";ASSOCIAZ. NAZIONALE COMBATTENTI E REDUCI; ;EROGAZIONE CONTRIBUTI AD ASSOCIAZIONI ANNO 2018. IMPEGNO DI SPESA E CONTESTUALE LIQUIDAZIONE 2018;23-10-2018;451;0;647;1;Spese correnti;4;Trasferimenti correnti;4;Trasferimenti correnti a Istituzioni Sociali Private;1;Trasferimenti correnti a Istituzioni Sociali Private;1;Trasferimenti correnti a Istituzioni Sociali Private;28-12-2018;
2504;1;1747;"300,00";"300,00";ASSOCIAZIONE CONTROMANO ONLUS; ;EROGAZIONE CONTRIBUTI AD ASSOCIAZIONI ANNO 2018. IMPEGNO DI SPESA E CONTESTUALE LIQUIDAZIONE 2018;23-10-2018;451;0;648;1;Spese correnti;4;Trasferimenti correnti;4;Trasferimenti correnti a Istituzioni Sociali Private;1;Trasferimenti correnti a Istituzioni Sociali Private;1;Trasferimenti correnti a Istituzioni Sociali Private;25-10-2018;
2505;1;1748;"350,00";"350,00";POLISPORTIVA OLIMPIA ASS.SP.DILETT.; ;EROGAZIONE CONTRIBUTI AD ASSOCIAZIONI ANNO 2018. IMPEGNO DI SPESA E CONTESTUALE LIQUIDAZIONE 2018;23-10-2018;450;0;650;1;Spese correnti;4;Trasferimenti correnti;4;Trasferimenti correnti a Istituzioni Sociali Private;1;Trasferimenti correnti a Istituzioni Sociali Private;1;Trasferimenti correnti a Istituzioni Sociali Private;25-10-2018;
2506;1;1749;"500,00";"500,00";SANDRIGO BIKE SPORT TEAM - A.S.D.; ;EROGAZIONE CONTRIBUTI AD ASSOCIAZIONI ANNO 2018. IMPEGNO DI SPESA E CONTESTUALE LIQUIDAZIONE 2018;23-10-2018;450;0;651;1;Spese correnti;4;Trasferimenti correnti;4;Trasferimenti correnti a Istituzioni Sociali Private;1;Trasferimenti correnti a Istituzioni Sociali Private;1;Trasferimenti correnti a Istituzioni Sociali Private;25-10-2018;
2507;1;1750;"1.000,00";"1.000,00";SANDRIGO HOCKEY A.S.D.; ;EROGAZIONE CONTRIBUTI AD ASSOCIAZIONI ANNO 2018. IMPEGNO DI SPESA E CONTESTUALE LIQUIDAZIONE 2018;23-10-2018;450;0;652;1;Spese correnti;4;Trasferimenti correnti;4;Trasferimenti correnti a Istituzioni Sociali Private;1;Trasferimenti correnti a Istituzioni Sociali Private;1;Trasferimenti correnti a Istituzioni Sociali Private;25-10-2018;
2509;1;1815;"100,00";"100,00";ASSOCIAZIONE UGUALMENTE ABILI; ;EROGAZIONE CONTRIBUTI AD ASSOCIAZIONI ANNO 2018. IMPEGNO DI SPESA E CONTESTUALE LIQUIDAZIONE 2018;23-10-2018;451;0;649;1;Spese correnti;4;Trasferimenti correnti;4;Trasferimenti correnti a Istituzioni Sociali Private;1;Trasferimenti correnti a Istituzioni Sociali Private;1;Trasferimenti correnti a Istituzioni Sociali Private;31-10-2018;
2510;1;1751;"-2.537,60";"2.537,60";SCAVAZZON SILVIA; ;SALDO Fatt.n. 3/E  del 09/10/2018 A TOTALE STORNO FATTURA NR. 2/E DEL 5/10//2018;23-10-2018;31;0;829;1;Spese correnti;3;Acquisto di beni e servizi;2;Acquisto di servizi;1;Organi e incarichi istituzionali dell'amministrazione;8;"Compensi agli organi istituzionali di revisione, di controllo ed altri incarichi istituzionali dell'amministrazione";25-10-2018;
2510;2;1751;"2.537,60";"2.537,60";SCAVAZZON SILVIA; ;SALDO Fatt.n. 4/E  del 09/10/2018 INCARICO PRIMO SEMESTRE 2018;23-10-2018;31;0;829;1;Spese correnti;3;Acquisto di beni e servizi;2;Acquisto di servizi;1;Organi e incarichi istituzionali dell'amministrazione;8;"Compensi agli organi istituzionali di revisione, di controllo ed altri incarichi istituzionali dell'amministrazione";25-10-2018;
2510;3;1751;"2.537,60";"2.537,60";SCAVAZZON SILVIA; ;SALDO Fatt.n. 2/E  del 05/10/2018 INCARICO PRIMO SEMESTRE 2018;23-10-2018;31;0;829;1;Spese correnti;3;Acquisto di beni e servizi;2;Acquisto di servizi;1;Organi e incarichi istituzionali dell'amministrazione;8;"Compensi agli organi istituzionali di revisione, di controllo ed altri incarichi istituzionali dell'amministrazione";25-10-2018;
2511;1;1752;"157,38";"157,38";COVER UP SRL;Z74223316C;SALDO Fatt.n. 780B  del 28/09/2018 WEB CAM;23-10-2018;342;0;253;1;Spese correnti;3;Acquisto di beni e servizi;1;Acquisto di beni;2;Altri beni di consumo;6;Materiale informatico;25-10-2018;
2512;1;1753;"91,50";"91,50";SOLUZIONE UFFICIO S.R.L.;ZC71E9FEEC;SALDO Fatt.n. 7303/E  del 02/10/2018 MANUTENZIONE FOTOCOPIATRICE RICOH AFICIO 3030 - UFF. RAGIONERIA;23-10-2018;340;0;387;1;Spese correnti;3;Acquisto di beni e servizi;2;Acquisto di servizi;19;Servizi informatici e di telecomunicazioni;5;Servizi per i sistemi e relativa manutenzione;25-10-2018;
2513;1;1754;"1.730,07";"1.730,07";E.N.P.A. SEZIONE VICENZA;Z9E21AB929;SALDO Fatt.n. 1385/PA  del 04/10/2018 GIORNATE RICOVERO SECONDO QUADRIMESTRE 2018;23-10-2018;1990;0;79;1;Spese correnti;3;Acquisto di beni e servizi;2;Acquisto di servizi;99;Altri servizi;999;Altri servizi diversi n.a.c.;25-10-2018;
2514;1;1755;"247,61";"247,61";COSTRUZIONI GENERALI GIRARDINI SPA;Z9E21B7F37;SALDO Fatt.n. 0000142/E  del 30/09/2018 CONGLOMERATO;23-10-2018;3420;0;114;1;Spese correnti;3;Acquisto di beni e servizi;1;Acquisto di beni;2;Altri beni di consumo;999;Altri beni e materiali di consumo n.a.c.;25-10-2018;
2515;1;1756;"63,01";"63,01";CIVIS SPA;Z5D21A9503;SALDO Fatt.n. V9/0002785  del 02/10/2018 SERVIZIO VIGILANZA P.ZZA MATTEOTTI 10;23-10-2018;370;0;73;1;Spese correnti;3;Acquisto di beni e servizi;2;Acquisto di servizi;13;Servizi ausiliari per il funzionamento dell'ente;1;"Servizi di sorveglianza, custodia e accoglienza";25-10-2018;
2516;1;1757;"37,81";"37,81";CIVIS SPA;Z5D21A9503;SALDO Fatt.n. V9/0002786  del 02/10/2018 SERVIZIO ISPETTIVO VIA VOLTA;23-10-2018;370;0;73;1;Spese correnti;3;Acquisto di beni e servizi;2;Acquisto di servizi;13;Servizi ausiliari per il funzionamento dell'ente;1;"Servizi di sorveglianza, custodia e accoglienza";25-10-2018;
2517;1;1765;"1.472,82";"1.472,82";EDIT GRAF di ISEPPI STEFANO;Z1B22EEF15;SALDO Fatt.n. 2/845  del 28/09/2018 SPESE POSTALI PER INVIO INFORMATIVA TARI;24-10-2018;1115;2;283;1;Spese correnti;3;Acquisto di beni e servizi;2;Acquisto di servizi;16;Servizi amministrativi;2;Spese postali;25-10-2018;
